Workbook

Sheet Turinys
A1: 1. EISMO ĮVYKIŲ DALYVIAI | B1: SUTRUMPINIMAI
A2: 1.1. Eismo įvykiai ir nukentėjusieji juose 2001-2021 m. | B2: EĮ | C2: – įskaitinis eismo įvykis;
A3: 1.2. Eismo įvykiuose nukentėjusių pasiskirstymas pagal pasekmes, 2018–2021 m. | B3: ED | C3: – eismo dalyvis;
A4: 1.3. Eismo įvykiuose žuvusių ir sužeistų eismo dalyvių pasiskirstymas, 2018–2021 m. | B4: TP | C4: – transporto priemonė;
A5: 1.4. Eismo įvykiuose nukentėjusių ir nenukentėjusių pasiskirstymas, 2018–2021 m. | B5: LAKD | C5: – Valstybės įmonė Lietuvos automobilių kelių direkcija prie Susiekimo ministerijos;
A6: 1.5. Eismo įvykiuose žuvusių ir sužeistų keleivių pasiskirstymas, 2018–2021 m. | B6: ES | C6: – Europos Sąjunga;
A7: 1.6. Eismo įvykiuose nukentėjusių keleivių pasiskirstymas pagal saugos diržo segėjimą, 2018–2021 m. | B7: JD | C7: – "Juodoji dėmė", tai kelio ruožas, kuriame yra padidėjęs avaringumas, ir rodikliai yra pasiekę arba viršiję ribines reikšmes.
A8: 1.7. Eismo įvykiai su pažeidžiamais eismo dalyviais ir nukentėjusiųjų juose pasiskirstymas pagal eismo įvykio schemą ir pasekmes, 2018–2021 m. laikotarpiu | B8: LEIDINIO „2018–2021 M. EISMO ĮVYKIŲ STATISTIKA LIETUVOJE“ PRIEDAI
A9: 1.8. Eismo įvykiai su pėsčiaisiais ir nukentėjusiųjų juose pasiskirstymas pagal eismo įvykio schemą ir pasekmes, 2018–2021 m. laikotarpiu
A10: 1.9. Eismo įvykiuose nukentėjusių pėsčiųjų pasiskirstymas pagal amžių, 2018–2021 m. laikotarpiu | B10: TURINYS
A11: 1.10. Eismo įvykiai su dviratininkais ir nukentėjusiųjų juose pasiskirstymas pagal eismo įvykio schemą ir pasekmes, 2018–2021 m. laikotarpiu
A12: 1.11. Eismo įvykiuose nukentėjusių dviratininkų pasiskirstymas pagal amžių, 2018–2021 m. laikotarpiu | C12: Pasirikti temą:
A13: 1.12. Eismo įvykiai su paspirtukininkais ir nukentėjusiųjų juose pasiskirstymas pagal eismo įvykio schemą ir pasekmes, 2018–2021 m. laikotarpiu | B13: 1. EISMO ĮVYKIŲ DALYVIAI
A14: 1.13. Eismo įvykiuose nukentėjusiųjų skaičius pagal amžiaus grupes, 2018–2021 m.
A15: 1.14. Eismo įvykiuose dalyvavę eismo dalyviai pagal amžiaus grupes, jų pasiskirstymas pagal pasekmes, 2018-2021 m. laikotarpiu | B15: 2. EISMO ĮVYKIAI IR INFRASTRUKTŪRA
A16: 1.15. Eismo įvykiuose dalyvavę eismo dalyviai (vaikai ir paaugliai), jų pasiskirstymas pagal eismo įvykio rūšį ir pasekmes, 2018-2021 m. laikotarpiu
A17: 1.16. Eismo įvykiuose dalyvavusių vaikų pasiskirstymas pagal eismo dalyvius ir pasekmes, 2018-2021 m. laikotarpiu | B17: 3. EISMO ĮVYKIŲ YPATYBĖS/APLINKYBĖS/EISMO SĄLYGOS
A18: 1.17. Eismo įvykiuose dalyvavusių vaikų iki 12 m. pasiskirstymas pagal kėdutės naudojimą ir pasekmes, 2018-2021 m. laikotarpiu
A19: 1.18. Eismo įvykiuose žuvusių ir sužeistų eismo dalyvių pasiskirstymas pagal lytį, 2018–2021 m. | B19: 4. KELIŲ TRANSPORTO PRIEMONIŲ PARKAS
A20: 1.19. Eismo įvykiuose žuvusių ir sužeistų eismo dalyvių pasiskirstymas pagal eismo dalyvio tipą ir lytį, 2018–2021 m.
A21: 1.20. 2018–2021 m. laikotarpiu eismo įvykiuose dalyvavusių eismo dalyvių pasiskirstymas pagal lytį ir eismo įvykių pasekmes | B21: 5. EISMO ĮVYKIŲ SUKELTI NUOSTOLIAI LIETUVOS EKONOMIKAI
A22: 1.21. Įskaitinių eismo įvykių kaltininkų grupės pagal eismo dalyvių tipus, 2018–2021 m.
A23: 1.22. Eismo įvykių kaltininkų pasiskirstymas pagal eismo dalyvio tipą ir blaivumą, 2018-2021 m. | B23: 6. JUODOSIOS DĖMĖS VALSTYBINĖS REIKŠMĖS KELIUOSE IR GATVĖSE
A24: 1.23. Eismo įvykių pasiskirstymas pagal neblaivių kaltininkų eismo dalyvio tipą ir tuose eismo įvykiuose nukentėję eismo dalyviai, 2018-2021 m.
A25: 1.24. 2021 m. eismo įvykių pasiskirstymas pagal eismo įvykio rūšį, kaltininkų grupes ir jų blaivumą | B25: 7. AVARINGUMAS EUROPOS SĄJUNGOS IR KITOSE ŠALYSE
A26: 1.25. TP vairuotojų pasiskirstymas pagal amžių, 2018–2021 m.
A27: 1.26. Nukentėjusių TP vairuotojų pasiskirstymas pagal saugos diržų segėjimą, 2018–2021 m.
A28: 1.27. Eismo įvykiuose dalyvavusių motorinių transporto priemonių vairuotojų kaltininkų vairavimo stažas, 2018–2021 m.
A29: 2. EISMO ĮVYKIAI IR INFRASTRUKTŪRA
A30: 2.1. 2018–2021 m. įvykusių eismo įvykių ir nukentėjusių pasiskirstymas automagistralėse ir greitkeliuose, gyvenamojoje ir užmiesčio teritorijose
A31: 2.2. Eismo įvykių ir nukentėjusiųjų pasiskirstymas valstybinės ir vietinės reikšmės keliuose, 2018–2021 m.
A32: 2.3. Valstybinė ir vietinės reikšmės kelių avaringumo rodikliai 2021 m.
A33: 2.4. Eismo įvykių TEN-T keliuose ir nukentėjusių juose pasiskirstymas 2018–2021 m.
A34: 2.5. Eismo įvykių TEN-T keliuose ir nukentėjusių juose pasiskirstymas pagal TEN-T tipą 2018–2021 m.
A35: 2.6. E kategorijos kelių sudėtis, įskaitinių eismo įvykių ir nukentėjusiųjų pasiskirstymas juose, 2018–2021 m.
A36: 2.7. Eismo įvykių ir nukentėjusių juose pasiskirstymas Via Baltica, 2018–2021 m.
A37: 2.8. Eismo įvykiai ir nukentėjusieji savivaldybėse, 2018–2021 m.
A38: 2.9. Eismo įvykių ir nukentėjusiųjų pasiskirstymas valstybinės ir vietinės reikšmės keliuose pagal kelio dangos tipą, 2018–2021 m.
A39: 2.10. Eismo įvykių ir nukentėjusiųjų pasiskirstymas rajoniniuose keliuose pagal kelio dangos tipą, 2018–2021 m. | B39: SUTRUMPINIMAI
A40: 2.11. Eismo įvykių ir nukentėjusiųjų pasiskirstymas valstybinės reikšmės keliuose, 2018–2021 m. | B40: EĮ | C40: – įskaitinis eismo įvykis;
A41: 3. EISMO ĮVYKIŲ YPATYBĖS/APLINKYBĖS/EISMO SĄLYGOS | B41: ED | C41: – eismo dalyvis;
A42: 3.1. Eismo įvykių pasiskirstymas pagal rūšis, 2018–2021 m. | B42: TP | C42: – transporto priemonė;
A43: 3.2. Eismo įvykių pasiskirstymas pagal rūšis užmiestyje ir gyvenvietėje, 2018–2021 m. | B43: LAKD | C43: – Valstybės įmonė Lietuvos automobilių kelių direkcija;
A44: 3.3. Eismo įvykių pasiskirstymas pagal vietą ir aplinkybes, 2018–2021 m. | B44: TKA | C44: – Viešoji įstaiga Transporto kompetencijų agentūra;
A45: 3.4. Eismo įvykių ir nukentėjusių pasiskirstymas šviesiu ir tamsiu paros metu, 2018–2021 m. | B45: ES | C45: – Europos Sąjunga;
A46: 3.5. Eismo įvykių ir nukentėjusiųjų juose pasiskirstymas pagal valandas 2021 m. | B46: JD | C46: – Juodoji dėmė, tai kelio arba gatvės ruožas ar sankryža (įskaitant kelius ir gatves su skiriamąja juosta), kurioje per pastaruosius 4 kalendorinius metus yra įvykę 4 arba daugiau įskaitinių eismo įvykių..
A47: 3.6. Eismo įvykių ir nukentėjusiųjų juose pasiskirstymas pagal oro sąlygas, 2018– 2021 m.
A48: 3.7. Eismo įvykių ir nukentėjusiųjų juose pasiskirstymas pagal kelio dangos būklę, 2018– 2021 m.
A49: 3.8. Eismo įvykių ir nukentėjusiųjų juose pasiskirstymas pagal metų laikus
A50: 3.9. Eismo įvykių ir juose nukentėjusiųjų pasiskirstymas pagal mėnesius ir ketvirčius
A51: 3.10. Eismo įvykių ir juose nukentėjusiųjų pasiskirstymas pagal savaitės dienas
A52: 4. KELIŲ TRANSPORTO PRIEMONIŲ PARKAS
A53: 4.1. Motorinių transporto priemonių ir gyventojų skaičius 2001–2021 m.
A54: 4.2. Transporto priemonių, eismo įvykių ir nukentėjusių juose pasiskirstymas 2001–2021 m.
A55: 4.3. Transporto priemonių tipai, sukėlę ir dalyvavę eismo įvykiuose 2018-2021 m.
A56: 5. EISMO ĮVYKIŲ NUOSTOLIAI SUKELTI LIETUVOS EKONOMIKAI
A57: 5.1. Žala, kurią sudarė eismo įvykyje žuvęs, sunkiai ar lengvai sužeistas žmogus, 2018–2021 m.
A58: 5.2. Žala Lietuvos ekonomikai dėl eismo įvykiuose nukentėjusių žmonių, 2018–2021 m.
A59: 5.3. Žala Lietuvos ekonomikai dėl įskaitinių eismo įvykių, įvykusių valstybinės ir vietinės reikšmės keliuose, 2018–2021 m.
A60: 5.4. Žalos Lietuvos ekonomikai dėl įskaitinių eismo įvykių kitimas, valstybinės ir vietinės reikšmės keliuose, 2018–2021 m.
A61: 5.5. Žala Lietuvos ekonomikai dėl įskaitinių eismo įvykių kitimas gyvenvietėse ir užmiesčio keliuose, 2018–2021 m.
A62: 6. JUODOSIOS DĖMĖS VALSTYBINĖS REIKŠMĖS KELIUOSE IR GATVĖSE
A63: 6.1. 2021 m. ir 2022 m. nustatytų juodųjų dėmių palyginimas
A64: 7. AVARINGUMAS EUROPOS SĄJUNGOS IR KITOSE ŠALYSE
A65: 7.1. Žuvusiųjų skaičius Lietuvoje ir kitose Europos Sąjungos šalyse, 2010-2021 m.
A66: 7.2. Žuvusiųjų skaičius, tenkantis 1 mln. gyventojų Lietuvoje ir kitose Europos Sąjungos šalyse
A67: 7.3. Žuvusiųjų skaičius, tenkantis 1 mln. gyventojų Europos Sąjungos ir kitose šalyse, 2010-2020 m.

Sheet EĮ ir nukentėję kitimas
A6: 1.1. Eismo įvykiai ir nukentėjusieji juose 2001-2021 m.
A7: Metai | B7: EĮ | E7: Žuvo | H7: Sužeista
B8: Iš viso | C8: 1 mln. gyv. | D8: 1000 TP | E8: Iš viso | F8: 1 mln. gyv. | G8: 1000 TP | H8: Iš viso | I8: 1 mln. gyv. | J8: 1000 TP
A9: 2001 m. | B9: 5972 | C9: 1715 | D9: 4.3 | E9: 706 | F9: 202 | G9: 0.51 | H9: 7103 | I9: 2048 | J9: 5.1
A10: 2002 m. | B10: 6090 | C10: 1759 | D10: 4.1 | E10: 697 | F10: 201 | G10: 0.47 | H10: 7427 | I10: 2145 | J10: 5
A11: 2003 m. | B11: 5963 | C11: 1730 | D11: 3.8 | E11: 709 | F11: 206 | G11: 0.45 | H11: 7263 | I11: 2107 | J11: 4.6
A12: 2004 m. | B12: 6372 | C12: 1860.437956 | D12: 3.898788145 | E12: 751 | F12: 219.270073 | G12: 0.4595087723 | H12: 7877 | I12: 2299.854015 | J12: 4.819641277
A13: 2005 m. | B13: 6771 | C13: 1986 | D13: 3.8 | E13: 773 | F13: 227 | G13: 0.43 | H13: 8466 | I13: 2483 | J13: 4.8
A14: 2006 m. | B14: 6658 | C14: 1967 | D14: 3.4 | E14: 760 | F14: 225 | G14: 0.39 | H14: 8334 | I14: 2432 | J14: 4.3
A15: 2007 m. | B15: 6448 | C15: 1905 | D15: 3.3 | E15: 740 | F15: 219 | G15: 0.37 | H15: 8042 | I15: 2376 | J15: 4.1
A16: 2008 m. | B16: 4795 | C16: 1424.388441 | D16: 2.275911694 | E16: 499 | F16: 148.2314561 | G16: 0.2368467018 | H16: 5818 | I16: 1728.277779 | J16: 2.761471165
A17: 2009 m. | B17: 3805 | C17: 1142.983822 | D17: 1.783270532 | E17: 370 | F17: 111.1442875 | G17: 0.1734060701 | H17: 4426 | I17: 1329.525991 | J17: 2.074311531
A18: 2010 m. | B18: 3530 | C18: 1087.851229 | D18: 1.646034502 | E18: 299 | F18: 92.14377264 | G18: 0.139423319 | H18: 4230 | I18: 1303.572436 | J18: 1.97244361
A19: 2011 m. | B19: 3266 | C19: 1020.840653 | D19: 1.502283323 | E19: 296 | F19: 92.51954475 | G19: 0.1361530507 | H19: 3919 | I19: 1224.94627 | J19: 1.802647993
A20: 2012 m. | B20: 3173 | C20: 1065.011697 | D20: 1.417858493 | E20: 301 | F20: 101.0301043 | G20: 0.1345021766 | H20: 3712 | I20: 1245.92607 | J20: 1.658711228
A21: 2013 m. | B21: 3391 | C21: 1151.654684 | D21: 1.489909608 | E21: 256 | F21: 86.94296643 | G21: 0.1124791683 | H21: 4007 | I21: 1360.861197 | J21: 1.760562607
A22: 2014 m. | B22: 3255 | C22: 1138 | D22: 2.2 | E22: 267 | F22: 91 | G22: 0.17 | H22: 3785 | I22: 1331 | J22: 2.611997187
A23: 2015 m. | B23: 3033 | C23: 1050 | D23: 1.9 | E23: 242 | F23: 84 | G23: 0.16 | H23: 3594 | I23: 1244 | J23: 2.32
A24: 2016 m. | B24: 3201 | C24: 1124 | D24: 1.2 | E24: 192 | F24: 67 | G24: 0.11 | H24: 3750 | I24: 1317 | J24: 2.32
A25: 2017 m. | B25: 3051 | C25: 1086.189937 | D25: 2.046406682 | E25: 191 | F25: 67.99812453 | G25: 0.1281100217 | H25: 3557 | I25: 1266.331565 | J25: 2.385797629
A26: 2018 m. | B26: 2925 | C26: 1046.817246 | D26: 1.859435571 | E26: 173 | F26: 61.91431917 | G26: 0.1099768731 | H26: 3390 | I26: 1213.234347 | J26: 2.155038149
A27: 2019 m. | B27: 3190 | C27: 1141.695507 | D27: 1.927548352 | E27: 186 | F27: 66.56907974 | G27: 0.1123899666 | H27: 3771 | I27: 1349.634407 | J27: 2.278615936
A28: 2020 m. | B28: 2826 | C28: 1010.845304 | D28: 1.57614961 | E28: 175 | F28: 62.59657758 | G28: 0.09760303674 | H28: 3203 | I28: 1145.696217 | J28: 1.786414438
A29: 2021 m. | B29: 2808 | C29: 1001 | D29: 1.51 | E29: 148 | F29: 53 | G29: 0.08 | H29: 3211 | I29: 1144 | J29: 1.73
A31: Eismo įvykių skaičiaus kitimas
A54: Žuvusiųjų skaičiaus kitimas
A76: Sužeistųjų skaičiaus kitimas

Sheet Eismo dalyviai
A6: 1.2. Eismo įvykiuose nukentėjusių pasiskirstymas pagal pasekmes, 2018–2021 m.
A7: Metai | B7: EĮ skaičius | C7: Visi eismo įvykiuose dalyvavę ED | D7: EĮ dalyvavę bet nenukentėję ED | E7: Žuvo | F7: Sužeista | I7: nežinoma
F8: visi sužeistieji | G8: iš jų sunkiai sužeisti* | H8: iš jų lengvai sužeisti
A9: 2018 | B9: 2925 | C9: 6950 | D9: 3255 | E9: 173 | F9: 3390 | G9: 165 | H9: 3225 | I9: 132
A10: 2019 | B10: 3190 | C10: 7569 | D10: 3486 | E10: 186 | F10: 3771 | G10: 308 | H10: 3463 | I10: 126
A11: 2020 | B11: 2826 | C11: 6472 | D11: 2926 | E11: 175 | F11: 3203 | G11: 376 | H11: 2827 | I11: 168
A12: 2021 | B12: 2808 | C12: 6571 | D12: 3057 | E12: 148 | F12: 3211 | G12: 392 | H12: 2819 | I12: 155
A13: Viso 2017-2020 m. | B13: =SUM(B9:B12) -> 11749 | C13: 27562 | D13: 12724 | E13: 682 | F13: 13575 | G13: 1241 | H13: 12334 | I13: 581
A14: * - eismo įvykyje dalyvavęs eismo dalyvis buvo gydomas ligoninėje
A17: 1.3. Eismo įvykiuose žuvusių ir sužeistų eismo dalyvių pasiskirstymas, 2018–2021 m.
A18: Eismo dalyviai | B18: 2018 m. | D18: 2019 m. | F18: 2020 m. | H18: 2021 m.
B19: Žuvo | C19: Sužeista | D19: Žuvo | E19: Sužeista | F19: Žuvo | G19: Sužeista | H19: Žuvo | I19: Sužeista
A20: Automobilių vairuotojai | B20: 46 | C20: 948 | D20: 53 | E20: 1127 | F20: 52 | G20: 945 | H20: 59 | I20: 955
A21: Motociklų vairuotojai | B21: 14 | C21: 197 | D21: 23 | E21: 254 | F21: 17 | G21: 212 | H21: 11 | I21: 262
A22: Mopedų vairuotojai | B22: 1 | C22: 52 | D22: 0 | E22: 66 | F22: 1 | G22: 59 | H22: 1 | I22: 58
A23: Keleiviai | B23: 31 | C23: 1021 | D23: 37 | E23: 1142 | F23: 35 | G23: 865 | H23: 37 | I23: 826
A24: Pėstieji | B24: 71 | C24: 838 | D24: 59 | E24: 817 | F24: 52 | G24: 671 | H24: 28 | I24: 631
A25: Dviratininkai | B25: 9 | C25: 289 | D25: 10 | E25: 297 | F25: 14 | G25: 329 | H25: 10 | I25: 283
A26: Paspirtukininkai | B26: 0 | C26: 8 | D26: 0 | E26: 13 | F26: 0 | G26: 29 | H26: 0 | I26: 38
A27: El. paspirtukų naudotojai | B27: 0 | C27: 3 | D27: 0 | E27: 20 | F27: 2 | G27: 53 | H27: 1 | I27: 129
A28: El. dviračių naudotojai | B28: 0 | C28: 1 | D28: 1 | E28: 2 | F28: 0 | G28: 9 | H28: 1 | I28: 10
A29: Kiti | B29: 1 | C29: 33 | D29: 3 | E29: 33 | F29: 2 | G29: 31 | H29: 0 | I29: 19
A30: Viso : | B30: =SUM(B20:B29) -> 173 | C30: 3390 | D30: 186 | E30: 3771 | F30: 175 | G30: 3203 | H30: 148 | I30: 3211
A34: 1.4. Eismo įvykiuose nukentėjusių ir nenukentėjusių pasiskirstymas, 2018–2021 m.
A35: Eismo dalyviai | B35: visi eismo įvykiuose dalyvavę eismo dalyviai | C35: žuvę | D35: sunkiai sužeisti | E35: lengvai sužeisti | F35: eismo įvykiuose dalyvavę bet nenukentėję
A36: Keleiviai | B36: =SUM(C36:F36) -> 5746 | C36: 140 | D36: 340 | E36: 3514 | F36: 1752
A37: Motociklų ir mopedų vairuotojai | B37: 1335 | C37: 68 | D37: 147 | E37: 1013 | F37: 107
A38: Dviratininkai | B38: 1493 | C38: 45 | D38: 76 | E38: 1144 | F38: 228
A39: Pėstieji | B39: 3234 | C39: 210 | D39: 304 | E39: 2653 | F39: 67
A40: Automobilių vairuotojai | B40: 14960 | C40: 210 | D40: 337 | E40: 3638 | F40: 10775
A41: Paspirtukininkai | B41: 391 | C41: 3 | D41: 21 | E41: 272 | F41: 95
A42: Kiti | B42: 403 | C42: 6 | D42: 16 | E42: 100 | F42: 281
A43: Viso | B43: =SUM(B36:B42) -> 27562 | C43: =SUM(C36:C42) -> 682 | D43: 1241 | E43: 12334 | F43: 13305

Sheet Keleiviai
A5: 1.5. Eismo įvykiuose žuvusių ir sužeistų keleivių pasiskirstymas, 2018–2021 m.
A6: Eismo dalyviai | B6: 2018 m. | E6: 2019 m. | H6: 2020 m. | K6: 2021 m.
B7: Žuvo | C7: Sunkiai sužeista | D7: Lengvai sužeista | E7: Žuvo | F7: Sunkiai sužeista | G7: Lengvai sužeista | H7: Žuvo | I7: Sunkiai sužeista | J7: Lengvai sužeista | K7: Žuvo | L7: Sunkiai sužeista | M7: Lengvai sužeista
A8: Automobilių keleiviai | B8: 30 | C8: 38 | D8: 727 | E8: 37 | F8: 74 | G8: 810 | H8: 33 | I8: 78 | J8: 578 | K8: 36 | L8: 82 | M8: 555
A9: Viešojo transporto keleiviai | B9: 0 | C9: 3 | D9: 167 | E9: 0 | F9: 7 | G9: 159 | H9: 0 | I9: 7 | J9: 116 | K9: 0 | L9: 7 | M9: 113
A10: Mopedų ir motociklų keleiviai | B10: 1 | C10: 2 | D10: 32 | E10: 0 | F10: 4 | G10: 30 | H10: 0 | I10: 7 | J10: 25 | K10: 0 | L10: 11 | M10: 37
A11: Krovininių TP keleiviai | B11: 0 | C11: 1 | D11: 19 | E11: 0 | F11: 1 | G11: 21 | H11: 2 | I11: 10 | J11: 12 | K11: 0 | L11: 0 | M11: 7
A12: Mikro autobusas | B12: 0 | C12: 0 | D12: 15 | E12: 0 | F12: 0 | G12: 8 | H12: 0 | I12: 2 | J12: 13 | K12: 0 | L12: 0 | M12: 9
A13: Kitų arba nepatikslintų TP keleiviai | B13: 0 | C13: 0 | D13: 17 | E13: 0 | F13: 0 | G13: 28 | H13: 0 | I13: 6 | J13: 11 | K13: 1 | L13: 0 | M13: 5
A14: Viso : | B14: =SUM(B8:B13) -> 31 | C14: 44 | D14: 977 | E14: 37 | F14: 86 | G14: 1056 | H14: 35 | I14: 110 | J14: 755 | K14: 37 | L14: 100 | M14: 726
A18: 1.6. Eismo įvykiuose nukentėjusių keleivių pasiskirstymas pagal saugos diržo segėjimą, 2018–2021 m.
A19: Saugos diržo užsegimas | B19: 2018–2021 m.
B20: Dalyvavo | C20: Žuvo | D20: Sunkiai sužeista | E20: Lengvai sužeista | F20: Nenukentėjo
A21: Su saugos diržu | B21: 4283 | C21: 87 | D21: 224 | E21: 2456 | F21: 1516
A22: Be saugos diržo | B22: 474 | C22: 51 | D22: 54 | E22: 290 | F22: 79
A23: Saugos diržas neįrengtas | B23: 43 | C23: 0 | D23: 1 | E23: 29 | F23: 13
A24: Informacija apie saugos diržą nenurodyta | B24: 946 | C24: 2 | D24: 61 | E24: 739 | F24: 144
A25: Viso: | B25: =SUM(B21:B24) -> 5746 | C25: =SUM(C21:C24) -> 140 | D25: =SUM(D21:D24) -> 340 | E25: =SUM(E21:E24) -> 3514 | F25: =SUM(F21:F24) -> 1752

Sheet Nukentėję pažeidžiamiausi ED
A6: 1.7. Eismo įvykiai su pažeidžiamais eismo dalyviais ir nukentėjusiųjų juose pasiskirstymas pagal eismo įvykio schemą ir pasekmes, 2018–2021 m. laikotarpiu
A7: 2018-2021 EĮ su eismo dalyviais EĮ schema | B7: Žuvę ED | D7: Sužeisti ED
D8: Visi sužeistieji | F8: iš jų sunkiai sužeisti | H8: iš jų lengvai sužeisti
B9: sk. | C9: % | D9: sk. | E9: % | F9: sk. | G9: % | H9: sk. | I9: %
A10: PĖSTIEJI:
A11: Užvažiavimas ant pėsčiojo sankryžoje ir jos prieigoje | B11: 40 | C11: =B11*100/$B$15 -> 19.04761905 | D11: 731 | E11: =D11*100/$D$15 -> 24.72100101 | F11: 66 | G11: =F11*100/$F$15 -> 21.71052632 | H11: 665 | I11: =H11*100/$H$15 -> 25.06596306
A12: Užvažiavimas ant pėsčiojo pėsčiųjų perėjoje ne sankryžoje | B12: 31 | C12: =B12*100/$B$15 -> 14.76190476 | D12: 820 | E12: =D12*100/$D$15 -> 27.73080825 | F12: 87 | G12: =F12*100/$F$15 -> 28.61842105 | H12: 733 | I12: =H12*100/$H$15 -> 27.62909913
A13: Užvažiavimas ant pėsčiojo ne sankryžoje, kai nėra pėsčiųjų perėjos | B13: 134 | C13: 63.80952381 | D13: 1286 | E13: 43.49002367 | F13: 139 | G13: 45.72368421 | H13: 1147 | I13: 43.23407463
A14: Kitos EĮ schemos su pėsčiaisiais | B14: 5 | C14: =B14*100/$B$15 -> 2.380952381 | D14: 120 | E14: 4.058167061 | F14: 12 | G14: 3.947368421 | H14: 108 | I14: 4.070863174
A15: Viso: | B15: =SUM(B11:B14) -> 210 | C15: =SUM(C11:C14) -> 100 | D15: =SUM(D11:D14) -> 2957 | E15: 100 | F15: 304 | G15: 100 | H15: 2653 | I15: 100
A16: DVIRATININKAI:
A17: Susidūrimas su dviratininku sankryžoje ir jos prieigoje | B17: 8 | C17: =B17*100/$B$23 -> 17.77777778 | D17: 542 | E17: =D17*100/$D$23 -> 44.42622951 | F17: 23 | G17: =F17*100/$F$23 -> 30.26315789 | H17: 519 | I17: =H17*100/$H$23 -> 45.36713287
A18: Susidūrimas su dviratininku, ta pačia kryptimi važiuojančio keliu/gatve | B18: 16 | C18: =B18*100/$B$23 -> 35.55555556 | D18: 160 | E18: =D18*100/$D$23 -> 13.1147541 | F18: 19 | G18: =F18*100/$F$23 -> 25 | H18: 141 | I18: =H18*100/$H$23 -> 12.32517483
A19: Užvažiavimas ant dviratininko, kertančio važiuojamąją dalį dviračių pervažoje/pėsčiųjų perėjoje ne sankryžoje | B19: 0 | C19: 0 | D19: 21 | E19: 1.721311475 | F19: 1 | G19: 1.315789474 | H19: 20 | I19: 1.748251748
A20: Užvažiavimas ant dviratininko, kertančio važiuojamąją dalį ne sankryžoje, kai nėra dviračių pervažos/pėsčiųjų perėjos | B20: 1 | C20: 2.222222222 | D20: 16 | E20: 1.31147541 | F20: 0 | G20: 0 | H20: 16 | I20: 1.398601399
A21: Priešpriešiniai susidūrimai su dviratininku | B21: 9 | C21: 20 | D21: 80 | E21: 6.557377049 | F21: 5 | G21: 6.578947368 | H21: 75 | I21: 6.555944056
A22: Kitos EĮ schemos su dviratininkais | B22: 11 | C22: 24.44444444 | D22: 401 | E22: 32.86885246 | F22: 28 | G22: 36.84210526 | H22: 373 | I22: 32.6048951
A23: Viso: | B23: =SUM(B17:B22) -> 45 | C23: =SUM(C17:C22) -> 100 | D23: 1220 | E23: 100 | F23: 76 | G23: 100 | H23: 1144 | I23: 100
A24: PASPIRTUKININKAI:
A25: Užvažiavimas ant paspirtukininko sankryžoje ir jos prieigoje | B25: 2 | C25: =B25*100/$B$31 -> 66.66666667 | D25: 122 | E25: =D25*100/$D$31 -> 41.63822526 | F25: 9 | G25: =F25*100/$F$31 -> 42.85714286 | H25: 113 | I25: =H25*100/$H$31 -> 41.54411765
A26: Užvažiavimas ant paspirtukininko, kertančio važiuojamąją dalį pėsčiųjų perėjoje ne sankryžoje | B26: 0 | C26: =B26*100/$B$31 -> 0 | D26: 11 | E26: =D26*100/$D$31 -> 3.754266212 | F26: 1 | G26: =F26*100/$F$31 -> 4.761904762 | H26: 10 | I26: =H26*100/$H$31 -> 3.676470588
A27: Užvažiavimas ant paspirtukininko, kertančio važiuojamąją dalį ne sankryžoje, kai nėra pėsčiųjų perėjos | B27: 0 | C27: 0 | D27: 9 | E27: 3.071672355 | F27: 1 | G27: 4.761904762 | H27: 8 | I27: 2.941176471
A28: Priešpriešiniai susidūrimai su paspirtukininku | B28: 0 | C28: 0 | D28: 20 | E28: 6.825938567 | F28: 1 | G28: 4.761904762 | H28: 19 | I28: 6.985294118
A29: Užvažiavimas ant paspirtukininko ta pačia kryptimi važiuojančio keliu | B29: 0 | C29: 0 | D29: 11 | E29: 3.754266212 | F29: 1 | G29: 4.761904762 | H29: 10 | I29: 3.676470588
A30: Kitos EĮ schemos su paspirtukininkais | B30: 1 | C30: =B30*100/$B$31 -> 33.33333333 | D30: 120 | E30: 40.9556314 | F30: 8 | G30: 38.0952381 | H30: 112 | I30: 41.17647059
A31: Viso: | B31: =SUM(B25:B30) -> 3 | C31: =SUM(C25:C30) -> 100 | D31: 293 | E31: 100 | F31: 21 | G31: 100 | H31: 272 | I31: 100
A32: MOTOCIKLŲ VAIRUOTOJAI:
A33: Susidūrimas su motociklu sankryžoje ir jos prieigoje | B33: 21 | C33: =B33*100/$B$38 -> 32.30769231 | D33: 349 | E33: =D33*100/$D$38 -> 37.72972973 | F33: 54 | G33: =F33*100/$F$38 -> 42.51968504 | H33: 295 | I33: =H33*100/$H$38 -> 36.96741855
A34: Nuvažiavimas nuo kelio | B34: 15 | C34: =B34*100/$B$38 -> 23.07692308 | D34: 186 | E34: =D34*100/$D$38 -> 20.10810811 | F34: 29 | G34: =F34*100/$F$38 -> 22.83464567 | H34: 157 | I34: =H34*100/$H$38 -> 19.67418546
A35: Susidūrimas su motociklu, važiuojančiu ta pačia kryptimi | B35: 10 | C35: 15.38461538 | D35: 95 | E35: 10.27027027 | F35: 6 | G35: 4.724409449 | H35: 89 | I35: 11.15288221
A36: Priešpriešinis susidūrimas su motociklu | B36: 10 | C36: 15.38461538 | D36: 47 | E36: 5.081081081 | F36: 14 | G36: 11.02362205 | H36: 33 | I36: 4.135338346
A37: Kitos EĮ schemos su motociklais | B37: 9 | C37: 13.84615385 | D37: 248 | E37: 26.81081081 | F37: 24 | G37: 18.8976378 | H37: 224 | I37: 28.07017544
A38: Viso: | B38: =SUM(B33:B37) -> 65 | C38: =SUM(C33:C37) -> 100 | D38: 925 | E38: 100 | F38: 127 | G38: 100 | H38: 798 | I38: 100
A39: MOPEDŲ VAIRUOTOJAI:
A40: Susidūrimas su mopedu sankryžoje ir jos prieigoje | B40: 0 | C40: =B40*100/$B$45 -> 0 | D40: 104 | E40: =D40*100/$D$45 -> 44.25531915 | F40: 9 | G40: =F40*100/$F$45 -> 45 | H40: 95 | I40: =H40*100/$H$45 -> 44.18604651
A41: Nuvažiavimas nuo kelio | B41: 0 | C41: =B41*100/$B$45 -> 0 | D41: 19 | E41: =D41*100/$D$45 -> 8.085106383 | F41: 2 | G41: =F41*100/$F$45 -> 10 | H41: 17 | I41: =H41*100/$H$45 -> 7.906976744
A42: Susidūrimas su mopedu, važiuojančiu ta pačia kryptimi | B42: 0 | C42: 0 | D42: 29 | E42: 12.34042553 | F42: 0 | G42: 0 | H42: 29 | I42: 13.48837209
A43: Priešpriešinis susidūrimas su mopedu | B43: 1 | C43: 33.33333333 | D43: 7 | E43: 2.978723404 | F43: 0 | G43: 0 | H43: 7 | I43: 3.255813953
A44: Kitos EĮ schemos su mopedais | B44: 2 | C44: 66.66666667 | D44: 76 | E44: 32.34042553 | F44: 9 | G44: 45 | H44: 67 | I44: 31.1627907
A45: Viso: | B45: =SUM(B40:B44) -> 3 | C45: =SUM(C40:C44) -> 100 | D45: 235 | E45: 100 | F45: 20 | G45: 100 | H45: 215 | I45: 100

Sheet Pėstieji
A6: 1.8. Eismo įvykiai su pėsčiaisiais ir nukentėjusiųjų juose pasiskirstymas pagal eismo įvykio schemą ir pasekmes, 2018–2021 m. laikotarpiu
A7: 2018-2021 EĮ su pėsčiaisiais EĮ schema | B7: Žuvo | C7: Visi sužeistieji | D7: Sunkiai sužeista | E7: Lengvai sužeista | F7: Nenukentėjo | G7: Dalyvavo, skč. | H7: Dalyvavo, %
A8: Užvažiavimas ant pėsčiojo sankryžoje ir jos prieigoje | B8: 40 | C8: 731 | D8: 66 | E8: 665 | F8: 16 | G8: =B8+C8+F8 -> 787 | H8: =G8*100/$G$12 -> 24.33518862
A9: Užvažiavimas ant pėsčiojo pėsčiųjų perėjoje ne sankryžoje | B9: 31 | C9: 820 | D9: 87 | E9: 733 | F9: 9 | G9: =B9+C9+F9 -> 860 | H9: =G9*100/$G$12 -> 26.59245516
A10: Užvažiavimas ant pėsčiojo ne sankryžoje, kai nėra pėsčiųjų perėjos | B10: 134 | C10: 1286 | D10: 139 | E10: 1147 | F10: 21 | G10: 1441 | H10: 44.55782313
A11: Kitos EĮ schemos su pėsčiaisiais | B11: 5 | C11: 120 | D11: 12 | E11: 108 | F11: 21 | G11: 146 | H11: 4.514533086
A12: Viso: | B12: =SUM(B8:B11) -> 210 | C12: =SUM(C8:C11) -> 2957 | D12: 304 | E12: 2653 | F12: 67 | G12: 3234 | H12: 100
A16: 1.9. Eismo įvykiuose nukentėjusių pėsčiųjų pasiskirstymas pagal amžių, 2018–2021 m. laikotarpiu
A17: Amžiaus grupė | B17: Nukentėjo
A18: ≤ 6 m. | B18: 89
A19: 7–12 m. | B19: 303
A20: 13-18 m. | B20: 270
A21: 19–24 m. | B21: 212
A22: 25–64 m. | B22: 1457
A23: 65-74 m. | B23: 362
A24: ≥75 m. | B24: 462
A25: Nenustatyta | B25: 12
A26: Viso: | B26: =SUM(B18:B25) -> 3167

Sheet Dviratininkai
A6: 1.10. Eismo įvykiai su dviratininkais ir nukentėjusiųjų juose pasiskirstymas pagal eismo įvykio schemą ir pasekmes, 2018–2021 m. laikotarpiu
A7: 2018-2021 EĮ su dviratininkais EĮ schema | B7: Žuvo | C7: Visi sužeistieji | D7: Sunkiai sužeista | E7: Lengvai sužeista | F7: Nenukentėjo | G7: Dalyvavo, skč. | H7: Dalyvavo, %
A8: Susidūrimas su dviratininku sankryžoje ir jos prieigoje | B8: 8 | C8: 542 | D8: 23 | E8: 519 | F8: 38 | G8: 588 | H8: =G8*100/$G$14 -> 39.38379102
A9: Susidūrimas su dviratininku, ta pačia kryptimi važiuojančio keliu/gatve | B9: 16 | C9: 160 | D9: 19 | E9: 141 | F9: 18 | G9: 194 | H9: 12.99397187
A10: Užvažiavimas ant dviratininko, kertančio važiuojamąją dalį dviračių pervažoje/pėsčiųjų perėjoje ne sankryžoje | B10: 0 | C10: 21 | D10: 1 | E10: 20 | F10: 6 | G10: 27 | H10: 1.808439384
A11: Užvažiavimas ant dviratininko, kertančio važiuojamąją dalį ne sankryžoje, kai nėra dviračių pervažos/pėsčiųjų perėjos | B11: 1 | C11: 16 | D11: 0 | E11: 16 | F11: 86 | G11: 103 | H11: 6.898861353
A12: Priešpriešiniai susidūrimai su dviratininku | B12: 9 | C12: 80 | D12: 5 | E12: 75 | F12: 31 | G12: 120 | H12: 8.037508372
A13: Kitos EĮ schemos su dviratininkais | B13: 11 | C13: 401 | D13: 28 | E13: 373 | F13: 49 | G13: 461 | H13: 30.877428
A14: Viso: | B14: =SUM(B8:B13) -> 45 | C14: =SUM(C8:C13) -> 1220 | D14: =SUM(D8:D13) -> 76 | E14: 1144 | F14: 228 | G14: 1493 | H14: 100
A18: 1.11. Eismo įvykiuose nukentėjusių dviratininkų pasiskirstymas pagal amžių, 2018–2021 m. laikotarpiu
A19: Amžiaus grupė | B19: Nukentėjo
A20: ≤ 6 m. | B20: 12
A21: 7–12 m. | B21: 110
A22: 13-18 m. | B22: 176
A23: 19–24 m. | B23: 84
A24: 25–34 m. | B24: 177
A25: 35–44 m. | B25: 160
A26: 45–54 m. | B26: 174
A27: 55–64 m. | B27: 154
A28: 65-74 m. | B28: 119
A29: ≥75 m. | B29: 94
A30: Nenustatyta | B30: 5
A31: Viso: | B31: =SUM(B20:B30) -> 1265

Sheet Paspirtukininkai
A6: 1.12. Eismo įvykiai su paspirtukininkais ir nukentėjusiųjų juose pasiskirstymas pagal eismo įvykio schemą ir pasekmes, 2018–2021 m. laikotarpiu
A7: 2018-2021 EĮ su paspirtukininkais EĮ schema | B7: Žuvo | C7: Visi sužeistieji | D7: Sunkiai sužeista | E7: Lengvai sužeista | F7: Nenukentėjo | G7: Dalyvavo, skč. | H7: Dalyvavo, %
A8: Užvažiavimas ant paspirtukininko sankryžoje ir jos prieigoje | B8: 2 | C8: 122 | D8: 9 | E8: 113 | F8: 9 | G8: =SUM(C8:F8) -> 253 | H8: =G8*100/$G$14 -> 37.15124816
A9: Užvažiavimas ant paspirtukininko, kertančio važiuojamąją dalį pėsčiųjų perėjoje ne sankryžoje | B9: 0 | C9: 11 | D9: 1 | E9: 10 | F9: 1 | G9: =SUM(C9:F9) -> 23 | H9: =G9*100/$G$14 -> 3.377386197
A10: Užvažiavimas ant paspirtukininko, kertančio važiuojamąją dalį ne sankryžoje, kai nėra pėsčiųjų perėjos | B10: 0 | C10: 9 | D10: 1 | E10: 8 | F10: 44 | G10: 62 | H10: 9.104258443
A11: Priešpriešiniai susidūrimai su paspirtukininku | B11: 0 | C11: 20 | D11: 1 | E11: 19 | F11: 11 | G11: 51 | H11: 7.488986784
A12: Užvažiavimas ant paspirtukininko ta pačia kryptimi važiuojančio keliu | B12: 0 | C12: 11 | D12: 1 | E12: 10 | F12: 9 | G12: 31 | H12: 4.552129222
A13: Kitos EĮ schemos su paspirtukininkais | B13: 1 | C13: 120 | D13: 8 | E13: 112 | F13: 21 | G13: 261 | H13: 38.32599119
A14: Viso: | B14: =SUM(B8:B13) -> 3 | C14: =SUM(C8:C13) -> 293 | D14: 21 | E14: 272 | F14: 95 | G14: 681 | H14: 100

Sheet Eismo dalyviai pagal amžių
A6: 1.13. Eismo įvykiuose nukentėjusiųjų skaičius pagal amžiaus grupes, 2018–2021 m.
A7: Amžiaus grupė | C7: 2018m. | E7: 2019 m. | G7: 2020 m. | I7: 2021 m.
C8: Žuvo | D8: Sužeista | E8: Žuvo | F8: Sužeista | G8: Žuvo | H8: Sužeista | I8: Žuvo | J8: Sužeista
A9: Mažamečiai, kurie be suaugusiųjų eisme paprastai nedalyvauja | B9: ≤ 6 m. | C9: 0 | D9: 94 | E9: 0 | F9: 73 | G9: 0 | H9: 88 | I9: 1 | J9: 86
A10: 1-6 klasė (pirmosios savarankiškos kelionės) | B10: 7–12 m. | C10: 4 | D10: 192 | E10: 5 | F10: 200 | G10: 1 | H10: 162 | I10: 3 | J10: 175
A11: 7-12 klasė (paaugliai) | B11: 13-18 m. | C11: 8 | D11: 341 | E11: 3 | F11: 287 | G11: 8 | H11: 276 | I11: 4 | J11: 342
A12: Subrendę jaunuoliai, pradedantys vairuotojai | B12: 19–24 m. | C12: 22 | D12: 408 | E12: 24 | F12: 494 | G12: 15 | H12: 402 | I12: 14 | J12: 357
A13: Suaugę, darbingo amžiaus | B13: 25–34 m. | C13: 24 | D13: 569 | E13: 24 | F13: 657 | G13: 17 | H13: 563 | I13: 27 | J13: 543
B14: 35–44 m. | C14: 19 | D14: 458 | E14: 21 | F14: 501 | G14: 24 | H14: 433 | I14: 22 | J14: 466
B15: 45–54 m. | C15: 27 | D15: 419 | E15: 28 | F15: 481 | G15: 33 | H15: 391 | I15: 26 | J15: 388
B16: 55-64 m. | C16: 27 | D16: 402 | E16: 34 | F16: 462 | G16: 30 | H16: 414 | I16: 19 | J16: 396
A17: Suaugę, vyresnio amžiaus | B17: 65-74 m. | C17: 21 | D17: 250 | E17: 20 | F17: 288 | G17: 23 | H17: 234 | I17: 16 | J17: 236
B18: ≥75 m. | C18: 20 | D18: 250 | E18: 27 | F18: 322 | G18: 22 | H18: 233 | I18: 15 | J18: 214
B19: nenustatyta | C19: 1 | D19: 7 | E19: 0 | F19: 6 | G19: 2 | H19: 7 | I19: 1 | J19: 8
A20: Viso: | C20: =SUM(C9:C19) -> 173 | D20: =SUM(D9:D19) -> 3390 | E20: 186 | F20: 3771 | G20: 175 | H20: 3203 | I20: 148 | J20: 3211
A23: 1.14. Eismo įvykiuose dalyvavę eismo dalyviai pagal amžiaus grupes, jų pasiskirstymas pagal pasekmes, 2018-2021 m. laikotarpiu
A24: Amžiaus grupė | B24: Visi eismo įvykiuose dalyvavę eismo dalyviai | D24: EĮ kaltininkai | F24: Žuvę eismo dalyviai | H24: Sužeisti eismo dalyviai | N24: Eismo įvykiuose dalyvavę bet nenukentėję arba nežinomi eismo dalyviai
H25: visi sužeistieji | J25: iš jų sunkiai sužeisti** | L25: iš jų lengvai sužeisti
B26: sk. | C26: %* | D26: sk. | E26: %* | F26: sk. | G26: %*** | H26: sk. | I26: %*** | J26: sk. | K26: %*** | L26: sk. | M26: %*** | N26: sk. | O26: %***
A27: ≤ 6 m. | B27: 494 | C27: =B27*100/$B$38 -> 1.792322763 | D27: 35 | E27: =D27*100/B27 -> 7.085020243 | F27: 1 | G27: =F27*100/B27 -> 0.2024291498 | H27: 341 | I27: =H27*100/B27 -> 69.02834008 | J27: 25 | K27: =J27*100/B27 -> 5.060728745 | L27: 316 | M27: =L27*100/B27 -> 63.96761134 | N27: 152 | O27: =N27*100/B27 -> 30.76923077
A28: 7–12 m. | B28: 877 | C28: =B28*100/$B$38 -> 3.181917132 | D28: 218 | E28: =D28*100/B28 -> 24.85746864 | F28: 13 | G28: 1.482326112 | H28: 729 | I28: =H28*100/B28 -> 83.12428734 | J28: 42 | K28: =J28*100/B28 -> 4.789053592 | L28: 687 | M28: =L28*100/B28 -> 78.33523375 | N28: 135 | O28: =N28*100/B28 -> 15.39338655
A29: 13-18 m. | B29: 1649 | C29: 5.982874973 | D29: 498 | E29: =D29*100/B29 -> 30.20012129 | F29: 23 | G29: 1.394784718 | H29: 1246 | I29: 75.56094603 | J29: 107 | K29: 6.488781079 | L29: 1139 | M29: 69.07216495 | N29: 380 | O29: =N29*100/B29 -> 23.04426925
A30: 19–24 m. | B30: 3544 | C30: 12.85828314 | D30: 1582 | E30: =D30*100/B30 -> 44.63882619 | F30: 75 | G30: 2.116252822 | H30: 1661 | I30: 46.86794582 | J30: 139 | K30: 3.922121896 | L30: 1522 | M30: 42.94582393 | N30: 1808 | O30: 51.01580135
A31: 25–34 m. | B31: 5147 | C31: 18.67426166 | D31: 2181 | E31: 42.37419856 | F31: 92 | G31: 1.787448999 | H31: 2332 | I31: 45.30794638 | J31: 213 | K31: 4.13833301 | L31: 2119 | M31: 41.16961337 | N31: 2723 | O31: 52.90460462
A32: 35–44 m. | B32: 4274 | C32: 15.50685727 | D32: 1747 | E32: 40.87505849 | F32: 86 | G32: 2.012166589 | H32: 1858 | I32: 43.47215723 | J32: 162 | K32: 3.790360318 | L32: 1696 | M32: 39.68179691 | N32: 2330 | O32: 54.51567618
A33: 45–54 m. | B33: 3941 | C33: 14.29867208 | D33: 1583 | E33: 40.16747019 | F33: 114 | G33: 2.892666836 | H33: 1679 | I33: 42.60340015 | J33: 165 | K33: 4.186754631 | L33: 1514 | M33: 38.41664552 | N33: 2148 | O33: 54.50393301
A34: 55-64 m. | B34: 3666 | C34: 13.30092156 | D34: 1408 | E34: 38.40698309 | F34: 110 | G34: 3.000545554 | H34: 1674 | I34: 45.66284779 | J34: 173 | K34: 4.719039825 | L34: 1501 | M34: 40.94380797 | N34: 1882 | O34: 51.33660666
A35: 65-74 m. | B35: 1853 | C35: 6.723024454 | D35: 702 | E35: 37.8845116 | F35: 80 | G35: 4.31732326 | H35: 1008 | I35: 54.39827307 | J35: 107 | K35: 5.77441986 | L35: 901 | M35: 48.62385321 | N35: 765 | O35: 41.28440367
A36: ≥75 m. | B36: 1470 | C36: 5.333430085 | D36: 473 | E36: =D36*100/B36 -> 32.17687075 | F36: 84 | G36: =F36*100/B36 -> 5.714285714 | H36: 1019 | I36: =H36*100/B36 -> 69.31972789 | J36: 102 | K36: =J36*100/B36 -> 6.93877551 | L36: 917 | M36: =L36*100/B36 -> 62.38095238 | N36: 367 | O36: =N36*100/B36 -> 24.96598639
A37: Nenustatyta | B37: 647 | C37: 2.347434874 | D37: 323 | E37: =D37*100/B37 -> 49.92272025 | F37: 4 | G37: =F37*100/B37 -> 0.6182380216 | H37: 28 | I37: =H37*100/B37 -> 4.327666151 | J37: 6 | K37: =J37*100/B37 -> 0.9273570325 | L37: 22 | M37: =L37*100/B37 -> 3.400309119 | N37: 615 | O37: =N37*100/B37 -> 95.05409583
A38: Viso: | B38: =SUM(B27:B37) -> 27562 | C38: =SUM(C27:C37) -> 100 | D38: =SUM(D27:D37) -> 10750 | E38: =D38*100/B38 -> 39.00297511 | F38: =SUM(F27:F37) -> 682 | G38: =F38*100/B38 -> 2.474421305 | H38: =SUM(H27:H37) -> 13575 | I38: =H38*100/B38 -> 49.25259415 | J38: =SUM(J27:J37) -> 1241 | K38: =J38*100/B38 -> 4.50257601 | L38: =SUM(L27:L37) -> 12334 | M38: =L38*100/B38 -> 44.75001814 | N38: =SUM(N27:N37) -> 13305 | O38: =N38*100/B38 -> 48.27298454
A39: * nurodomas, procentas nuo visų eismo įvykiuose žuvusių/sužeistų/nenukentėjusių/nežinomų eismo dalyvių
A40: ** eismo įvykyje dalyvavę eismo dalyviai buvo gydomi ligoninėje
A41: *** nurodomas, procentas nuo visų dalyvavusių šio eismo dalyvių tipo

Sheet Vaikai
A6: 1.15. Eismo įvykiuose dalyvavę eismo dalyviai (vaikai ir paaugliai), jų pasiskirstymas pagal eismo įvykio rūšį ir pasekmes, 2018-2021 m. laikotarpiu
A7: Eismo įvykio rūšis | B7: ≤ 6 m. | E7: 7–12 m. | H7: 13-18 m.
B8: Dalyvavo | C8: Žuvo | D8: Sužeista | E8: Dalyvavo | F8: Žuvo | G8: Sužeista | H8: Dalyvavo | I8: Žuvo | J8: Sužeista
A9: Apvirtimas | B9: 32 | C9: 0 | D9: 18 | E9: 32 | F9: 5 | G9: 18 | H9: 175 | I9: 6 | J9: 127
A10: Kiti eismo įvykiai | B10: 67 | C10: 1 | D10: 46 | E10: 83 | F10: 2 | G10: 67 | H10: 210 | I10: 1 | J10: 158
A11: Susidūrimas | B11: 267 | C11: 0 | D11: 175 | E11: 291 | F11: 3 | G11: 214 | H11: 508 | I11: 6 | J11: 337
A12: Susidūrimas su dviračiu | B12: 13 | C12: 0 | D12: 12 | E12: 122 | F12: 1 | G12: 115 | H12: 205 | I12: 2 | J12: 175
A13: Susidūrimas su mopedu | B13: 1 | C13: 0 | D13: 1 | E13: 3 | F13: 0 | G13: 3 | H13: 87 | I13: 1 | J13: 76
A14: Susidūrimas su motociklu | B14: 2 | C14: 0 | D14: 2 | E14: 4 | F14: 0 | G14: 2 | H14: 58 | I14: 1 | J14: 50
A15: Susidūrimas su stovinčia transporto priemone | B15: 14 | C15: 0 | D15: 5 | E15: 13 | F15: 0 | G15: 6 | H15: 31 | I15: 0 | J15: 22
A16: Užvažiavimas ant gyvūno | B16: 6 | C16: 0 | D16: 1 | E16: 7 | F16: 0 | G16: 3 | H16: 14 | I16: 0 | J16: 12
A17: Užvažiavimas ant kliūties | B17: 5 | C17: 0 | D17: 4 | E17: 12 | F17: 0 | G17: 10 | H17: 39 | I17: 1 | J17: 29
A18: Užvažiavimas ant pėsčiojo | B18: 87 | C18: 0 | D18: 77 | E18: 310 | F18: 2 | G18: 291 | H18: 322 | I18: 5 | J18: 260
A19: Viso: | B19: =SUM(B9:B18) -> 494 | C19: =SUM(C9:C18) -> 1 | D19: 341 | E19: 877 | F19: 13 | G19: 729 | H19: 1649 | I19: 23 | J19: 1246
A23: 1.16. Eismo įvykiuose dalyvavusių vaikų pasiskirstymas pagal eismo dalyvius ir pasekmes, 2018-2021 m. laikotarpiu
A24: Eismo dalyvis | B24: ≤ 6 m. | H24: 7–12 m. | N24: 13-18 m.
B25: Dalyvavo | C25: Žuvo | D25: Sužeista | E25: Sunkiai sužeista | F25: Lengvai sužeista | G25: Nenukentėjo | H25: Dalyvavo | I25: Žuvo | J25: Sužeista | K25: Sunkiai sužeista | L25: Lengvai sužeista | M25: Nenukentėjo | N25: Dalyvavo | O25: Žuvo | P25: Sužeista | Q25: Sunkiai sužeista | R25: Lengvai sužeista | S25: Nenukentėjo
A26: Keleiviai | B26: 383 | C26: 1 | D26: 234 | E26: 18 | F26: 216 | G26: 148 | H26: 372 | I26: 9 | J26: 251 | K26: 13 | L26: 238 | M26: 112 | N26: 635 | O26: 9 | P26: 446 | Q26: 45 | R26: 401 | S26: 180
A27: Pėstieji | B27: 91 | C27: 0 | D27: 89 | E27: 6 | F27: 83 | G27: 2 | H27: 306 | I27: 2 | J27: 301 | K27: 18 | L27: 283 | M27: 3 | N27: 281 | O27: 5 | P27: 265 | Q27: 26 | R27: 239 | S27: 11
A28: Paspirtukininkai | B28: 5 | C28: 0 | D28: 4 | E28: 0 | F28: 4 | G28: 1 | H28: 61 | I28: 0 | J28: 56 | K28: 3 | L28: 53 | M28: 5 | N28: 68 | O28: 1 | P28: 59 | Q28: 5 | R28: 54 | S28: 8
A29: Dviratininkai | B29: 13 | C29: 0 | D29: 12 | E29: 1 | F29: 11 | G29: 1 | H29: 124 | I29: 1 | J29: 109 | K29: 7 | L29: 102 | M29: 14 | N29: 207 | O29: 1 | P29: 175 | Q29: 7 | R29: 168 | S29: 31
A30: Mopedų ir motociklų vairuotojai | B30: 1 | C30: 0 | D30: 1 | E30: 0 | F30: 1 | G30: 0 | H30: 11 | I30: 1 | J30: 9 | K30: 1 | L30: 8 | M30: 1 | N30: 276 | O30: 3 | P30: 238 | Q30: 21 | R30: 217 | S30: 35
A31: Automobilių vairuotojai | B31: - | C31: - | D31: - | E31: - | F31: - | G31: - | H31: - | I31: - | J31: - | K31: - | L31: - | M31: - | N31: 162 | O31: 4 | P31: 54 | Q31: 3 | R31: 51 | S31: 104
A32: Kita | B32: 1 | C32: 0 | D32: 1 | E32: 0 | F32: 1 | G32: 0 | H32: 3 | I32: 0 | J32: 3 | K32: 0 | L32: 3 | M32: - | N32: 20 | O32: 0 | P32: 9 | Q32: 0 | R32: 9 | S32: 11
A33: Viso: | B33: =SUM(B26:B32) -> 494 | C33: 1 | D33: 341 | E33: =SUM(E26:E32) -> 25 | F33: 316 | G33: 152 | H33: 877 | I33: 13 | J33: 729 | K33: 42 | L33: 687 | M33: 135 | N33: 1649 | O33: 23 | P33: 1246 | Q33: 107 | R33: 1139 | S33: 380
A37: 1.17. Eismo įvykiuose dalyvavusių vaikų iki 12 m. pasiskirstymas pagal kėdutės naudojimą ir pasekmes, 2018-2021 m. laikotarpiu*
A38: Vaikai iki 12 m. | B38: Dalyvavo | C38: Žuvo | E38: Sunkiai sužeista | G38: Lengvai sužeista | I38: Nenukentėjo
C39: skč. | D39: % | E39: skč. | F39: % | G39: skč. | H39: % | I39: skč. | J39: %
A40: Naudota kėdutė | B40: 208 | C40: 1 | D40: =C40*100/B40 -> 0.4807692308 | E40: 7 | F40: =E40*100/B40 -> 3.365384615 | G40: 116 | H40: =G40*100/B40 -> 55.76923077 | I40: 84 | J40: =I40*100/B40 -> 40.38461538
A41: Nenaudota kėdutė | B41: 70 | C41: 3 | D41: =C41*100/B41 -> 4.285714286 | E41: 6 | F41: =E41*100/B41 -> 8.571428571 | G41: 41 | H41: =G41*100/B41 -> 58.57142857 | I41: 20 | J41: =I41*100/B41 -> 28.57142857
A42: * - duomenys pateikiami tik apie tuos vaikus, prie kurių buvo nurodyta informacija apie kėdutės (ne)naudojimą

Sheet Eismo dalyviai pagal lytis
A6: 1.18. Eismo įvykiuose žuvusių ir sužeistų eismo dalyvių pasiskirstymas pagal lytį, 2018–2021 m.
A7: Lytis | B7: 2018 m. | D7: 2019 m. | F7: 2020 m. | H7: 2021 m.
B8: Žuvo | C8: Sužeista | D8: Žuvo | E8: Sužeista | F8: Žuvo | G8: Sužeista | H8: Žuvo | I8: Sužeista
A9: moterys | B9: 51 | C9: 1645 | D9: 48 | E9: 1745 | F9: 57 | G9: 1382 | H9: 36 | I9: 1406
A10: vyrai | B10: 121 | C10: 1736 | D10: 138 | E10: 2018 | F10: 117 | G10: 1805 | H10: 112 | I10: 1786
A11: nežinoma | B11: 1 | C11: 9 | D11: 0 | E11: 8 | F11: 1 | G11: 16 | H11: 0 | I11: 19
A15: 1.19. Eismo įvykiuose žuvusių ir sužeistų eismo dalyvių pasiskirstymas pagal eismo dalyvio tipą ir lytį, 2018–2021 m.
A16: ED tipas/lytis | B16: 2018 m. | D16: 2019 m. | F16: 2020 m. | H16: 2021 m.
B17: Žuvo | C17: Sužeista | D17: Žuvo | E17: Sužeista | F17: Žuvo | G17: Sužeista | H17: Žuvo | I17: Sužeista
A18: TP/motociklų/ mopedų vairuotojai | B18: =B19+B20 -> 60 | C18: 1195 | D18: 76 | E18: 1444 | F18: 70 | G18: 1215 | H18: 71 | I18: 1268
A19: moterys | B19: 6 | C19: 389 | D19: 10 | E19: 441 | F19: 15 | G19: 357 | H19: 5 | I19: 358
A20: vyrai | B20: 54 | C20: 806 | D20: 66 | E20: 1003 | F20: 55 | G20: 858 | H20: 66 | I20: 910
A21: Pėstieji | B21: =B22+B23 -> 71 | C21: 836 | D21: 59 | E21: 815 | F21: 51 | G21: 665 | H21: =H22+H23 -> 28 | I21: 626
A22: moterys | B22: 29 | C22: 502 | D22: 22 | E22: 486 | F22: 21 | G22: 363 | H22: 11 | I22: 376
A23: vyrai | B23: 42 | C23: 334 | D23: 37 | E23: 329 | F23: 30 | G23: 302 | H23: 17 | I23: 250
A24: Dviratininkai, paspirtukininkai | B24: =B25+B26 -> 9 | C24: 300 | D24: 11 | E24: 332 | F24: 16 | G24: 415 | H24: 12 | I24: 454
A25: moterys | B25: 2 | C25: 100 | D25: 0 | E25: 91 | F25: 1 | G25: 122 | H25: 3 | I25: 147
A26: vyrai | B26: 7 | C26: 200 | D26: 11 | E26: 241 | F26: 15 | G26: 293 | H26: 9 | I26: 307
A27: Keleiviai | B27: =B28+B29 -> 31 | C27: 1017 | D27: 37 | E27: 1140 | F27: 35 | G27: =G28+G29 -> 862 | H27: =H28+H29 -> 37 | I27: 824
A28: moterys | B28: 14 | C28: 648 | D28: 16 | E28: 722 | F28: 20 | G28: 535 | H28: 17 | I28: 521
A29: vyrai | B29: 17 | C29: 369 | D29: 21 | E29: 418 | F29: 15 | G29: 327 | H29: 20 | I29: 303
A30: Kiti | B30: =B31+B32 -> 1 | C30: 33 | D30: 3 | E30: 32 | F30: 2 | G30: 30 | H30: =H31+H32 -> 0 | I30: 19
A31: moterys | B31: 0 | C31: 6 | D31: 0 | E31: 5 | F31: 0 | G31: 5 | H31: 0 | I31: 3
A32: vyrai | B32: 1 | C32: 27 | D32: 3 | E32: 27 | F32: 2 | G32: 25 | H32: 0 | I32: 16
A33: Nežinomi | B33: 1 | C33: 9 | D33: 0 | E33: 8 | F33: 1 | G33: 16 | H33: 0 | I33: 20
A34: Viso: | B34: =B18+B21+B24+B27+B30+B33 -> 173 | C34: =C18+C21+C24+C27+C30+C33 -> 3390 | D34: =D18+D21+D24+D27+D30+D33 -> 186 | E34: 3771 | F34: 175 | G34: 3203 | H34: 148 | I34: 3211
A38: 1.20. 2018–2021 m. laikotarpiu eismo įvykiuose dalyvavusių eismo dalyvių pasiskirstymas pagal lytį ir eismo įvykių pasekmes
A39: lytis | B39: Visi eismo įvykiuose dalyvavę eismo dalyviai | D39: EĮ kaltininkai | F39: Žuvę ED | H39: Sužeisti eismo dalyviai | N39: Eismo įvykiuose dalyvavę bet nenukentėję arba nežinomi eismo dalyviai
H40: visi sužeistieji | J40: iš jų sunkiai sužeisti** | L40: iš jų lengvai sužeisti
B41: sk. | C41: %* | D41: sk. | E41: %* | F41: sk. | G41: %*** | H41: sk. | I41: %*** | J41: sk. | K41: %*** | L41: sk. | M41: %*** | N41: sk. | O41: %***
A42: moterys | B42: 9866 | C42: =B42*100/B45 -> 35.79566069 | D42: 2755 | E42: =D42*100/D45 -> 25.62790698 | F42: 192 | G42: =F42*100/B42 -> 1.946077438 | H42: 6178 | I42: =H42*100/B42 -> 62.61909588 | J42: 449 | K42: =J42*100/B42 -> 4.550983175 | L42: 5729 | M42: =L42*100/B42 -> 58.06811271 | N42: 3496 | O42: =N42*100/B42 -> 35.43482668
A43: vyrai | B43: 17009 | C43: =B43*100/B45 -> 61.71177708 | D43: 7654 | E43: =D43*100/D45 -> 71.2 | F43: 488 | G43: =F43*100/B43 -> 2.869069316 | H43: 7345 | I43: =H43*100/B43 -> 43.18302075 | J43: 785 | K43: =J43*100/B43 -> 4.615203716 | L43: 6560 | M43: =L43*100/B43 -> 38.56781704 | N43: 9176 | O43: =N43*100/B43 -> 53.94790993
A44: nežinoma | B44: 687 | C44: =B44*100/B45 -> 2.492562223 | D44: 341 | E44: =D44*100/D45 -> 3.172093023 | F44: 2 | G44: =F44*100/B44 -> 0.2911208151 | H44: 52 | I44: =H44*100/B44 -> 7.569141194 | J44: 7 | K44: =J44*100/B44 -> 1.018922853 | L44: 45 | M44: =L44*100/B44 -> 6.550218341 | N44: 633 | O44: =N44*100/B44 -> 92.13973799
A45: Viso: | B45: =SUM(B42:B44) -> 27562 | C45: =SUM(C42:C44) -> 100 | D45: =SUM(D42:D44) -> 10750 | E45: =SUM(E42:E44) -> 100 | F45: =SUM(F42:F44) -> 682 | G45: =F45*100/B45 -> 2.474421305 | H45: =SUM(H42:H44) -> 13575 | I45: =H45*100/B45 -> 49.25259415 | J45: =SUM(J42:J44) -> 1241 | K45: =J45*100/B45 -> 4.50257601 | L45: =SUM(L42:L44) -> 12334 | M45: =L45*100/B45 -> 44.75001814 | N45: =SUM(N42:N44) -> 13305 | O45: =N45*100/B45 -> 48.27298454
A46: * nurodomas, procentas nuo visų eismo įvykiuose žuvusių/sužeistų/nenukentėjusių/nežinomų eismo dalyvių/kaltininkų
A47: ** eismo įvykyje dalyvavę eismo dalyviai buvo gydomi ligoninėje
A48: *** nurodomas, procentas nuo visų dalyvavusių šio eismo dalyvių tipo

Sheet Eismo įvykių kaltininkai
A6: 1.21. Įskaitinių eismo įvykių kaltininkų grupės pagal eismo dalyvių tipus, 2018–2021 m.
A7: Eismo įvykių kaltininkai | B7: Eismo įvykių kaltininkai
B8: 2018 m. | D8: 2019 m. | F8: 2020 m. | H8: 2021 m.
B9: sk. | C9: % | D9: sk. | E9: % | F9: sk. | G9: % | H9: sk. | I9: %
A10: TP vairuotojai | B10: 2115 | C10: 72.30769231 | D10: 2236 | E10: 70.09404389 | F10: 1898 | G10: 67.16206653 | H10: 1975 | I10: =H10*100/$H$20 -> 70.33475783
A11: Motociklų vairuotojai | B11: 119 | C11: 4.068376068 | D11: 149 | E11: 4.670846395 | F11: 144 | G11: 5.095541401 | H11: 181 | I11: =H11*100/$H$20 -> 6.445868946
A12: Mopedų vairuotojai | B12: 31 | C12: 1.05982906 | D12: 43 | E12: 1.347962382 | F12: 36 | G12: 1.27388535 | H12: 34 | I12: 1.210826211
A13: Pėstieji | B13: 229 | C13: 7.829059829 | D13: 211 | E13: 6.614420063 | F13: 149 | G13: 5.272469922 | H13: 138 | I13: 4.914529915
A14: Dviratininkai | B14: 156 | C14: 5.333333333 | D14: 151 | E14: 4.73354232 | F14: 153 | G14: 5.414012739 | H14: 182 | I14: 6.481481481
A15: Paspirtukininkai | B15: 3 | C15: 0.1025641026 | D15: 7 | E15: 0.2194357367 | F15: 10 | G15: 0.3538570418 | H15: 26 | I15: 0.9259259259
A16: El. paspirtukų naudotojai | B16: 0 | C16: 0 | D16: 14 | E16: 0.4388714734 | F16: 26 | G16: 0.9200283086 | H16: 87 | I16: 3.098290598
A17: El. dviračių naudotojai | B17: 2 | C17: 0.06837606838 | D17: 4 | E17: 0.1253918495 | F17: 7 | G17: 0.2476999292 | H17: 6 | I17: 0.2136752137
A18: Kiti ED | B18: 53 | C18: 1.811965812 | D18: 79 | E18: 2.476489028 | F18: 61 | G18: 2.158527955 | H18: 35 | I18: 1.246438746
A19: Kaltininkai ne ED arba nenurodyta | B19: 217 | C19: 7.418803419 | D19: 296 | E19: 9.278996865 | F19: 342 | G19: 12.10191083 | H19: 144 | I19: 5.128205128
A20: Viso : | B20: =SUM(B10:B19) -> 2925 | C20: 100 | D20: 3190 | E20: 100 | F20: 2826 | G20: 100 | H20: 2808 | I20: 100
A24: 1.22. Eismo įvykių kaltininkų pasiskirstymas pagal eismo dalyvio tipą ir blaivumą, 2018-2021 m.
A25: Eismo dalyviai | B25: 2018 m. EĮ kaltininkai | E25: 2019m. EĮ kaltininkai | H25: 2020 m. EĮ kaltininkai | K25: 2021 m. EĮ kaltininkai
B26: visi | C26: iš jų neblaivūs | E26: visi | F26: iš jų neblaivūs | H26: visi | I26: iš jų neblaivūs | K26: visi | L26: iš jų neblaivūs
B27: sk. | C27: sk. | D27: % | E27: sk. | F27: sk. | G27: % | H27: sk. | I27: sk. | J27: % | K27: sk. | L27: sk. | M27: %
A28: Automobilių vairuotojai | B28: 2115 | C28: 173 | D28: =C28*100/B28 -> 8.179669031 | E28: 2236 | F28: 178 | G28: =F28*100/E28 -> 7.960644007 | H28: 1898 | I28: 214 | J28: =I28*100/H28 -> 11.27502634 | K28: 1975 | L28: 174 | M28: =L28*100/K28 -> 8.810126582
A29: Motociklų vairuotojai | B29: 119 | C29: 13 | D29: =C29*100/B29 -> 10.92436975 | E29: 149 | F29: 9 | G29: =F29*100/E29 -> 6.040268456 | H29: 144 | I29: 18 | J29: =I29*100/H29 -> 12.5 | K29: 181 | L29: 11 | M29: =L29*100/K29 -> 6.077348066
A30: Mopedų vairuotojai | B30: 31 | C30: 8 | D30: 25.80645161 | E30: 43 | F30: 10 | G30: 23.25581395 | H30: 36 | I30: 12 | J30: 33.33333333 | K30: 34 | L30: 5 | M30: 14.70588235
A31: Keleiviai | B31: 20 | C31: 3 | D31: 15 | E31: 37 | F31: 7 | G31: 18.91891892 | H31: 16 | I31: 1 | J31: 6.25 | K31: 23 | L31: 3 | M31: 13.04347826
A32: Pėstieji | B32: 229 | C32: 63 | D32: 27.51091703 | E32: 211 | F32: 50 | G32: 23.69668246 | H32: 149 | I32: 32 | J32: 21.47651007 | K32: 138 | L32: 32 | M32: 23.1884058
A33: Dviratininkai | B33: 156 | C33: 22 | D33: 14.1025641 | E33: 151 | F33: 29 | G33: 19.20529801 | H33: 153 | I33: 27 | J33: 17.64705882 | K33: 182 | L33: 28 | M33: 15.38461538
A34: Paspirtukininkai | B34: 3 | C34: 0 | D34: 0 | E34: 7 | F34: 0 | G34: 0 | H34: 10 | I34: 0 | J34: 0 | K34: 26 | L34: 0 | M34: 0
A35: El. paspirtukų naudotojai | B35: 0 | C35: 0 | D35: 0 | E35: 14 | F35: 0 | G35: 0 | H35: 26 | I35: 5 | J35: 19.23076923 | K35: 87 | L35: 17 | M35: 19.54022989
A36: El. dviračių naudotojai | B36: 2 | C36: 0 | D36: =C36*100/B36 -> 0 | E36: 4 | F36: 1 | G36: 25 | H36: 7 | I36: 2 | J36: 28.57142857 | K36: 6 | L36: 0 | M36: 0
A37: Kiti ED | B37: 33 | C37: 4 | D37: 12.12121212 | E37: 42 | F37: 5 | G37: 11.9047619 | H37: 45 | I37: 1 | J37: 2.222222222 | K37: 12 | L37: 1 | M37: 8.333333333
A38: Viso EĮ skaičius, kai kaltininkai ED: | B38: =SUM(B28:B37) -> 2708 | C38: 286 | D38: 10.56129985 | E38: =SUM(E28:E37) -> 2894 | F38: 289 | G38: 9.9861783 | H38: =SUM(H28:H37) -> 2484 | I38: 312 | J38: 12.56038647 | K38: =SUM(K28:K37) -> 2664 | L38: 271 | M38: 10.17267267
A39: EĮ sk., kurių kaltininkai ne ED arba nenurodyta | B39: 217 | C39: - | D39: - | E39: 296 | F39: - | G39: - | H39: 342 | I39: - | J39: - | K39: 144 | L39: - | M39: -
A40: Viso : | B40: =B28+B29+B30+B31+B32+B33+B34+B35+B36+B37+B39 -> 2925 | C40: =C28+C29+C30+C31+C32+C33+C34+C35+C36+C37 -> 286 | D40: 10 | E40: =E28+E29+E30+E31+E32+E33+E34+E35+E36+E37+E39 -> 3190 | F40: =F28+F29+F30+F31+F32+F33+F34+F35+F36+F37 -> 289 | G40: 11 | H40: =H28+H29+H30+H31+H32+H33+H34+H35+H36+H37+H39 -> 2826 | I40: =I28+I29+I30+I31+I32+I33+I34+I35+I36+I37 -> 312 | J40: 10 | K40: =K28+K29+K30+K31+K32+K33+K34+K35+K36+K37+K39 -> 2808 | L40: =L28+L29+L30+L31+L32+L33+L34+L35+L36+L37 -> 271 | M40: 13
A44: 1.23. Eismo įvykių pasiskirstymas pagal neblaivių kaltininkų eismo dalyvio tipą ir tuose eismo įvykiuose nukentėję eismo dalyviai, 2018-2021 m.
A45: Eismo įvykių kaltininkai | B45: 2018 m. | E45: 2019 m. | H45: 2020 m. | K45: 2021 m.
B46: Eismo įvykiai | C46: Žuvo | D46: Sužeista | E46: Eismo įvykiai | F46: Žuvo | G46: Sužeista | H46: Eismo įvykiai | I46: Žuvo | J46: Sužeista | K46: Eismo įvykiai | L46: Žuvo | M46: Sužeista
A47: TP vairuotojai | B47: 173 | C47: 21 | D47: 222 | E47: 178 | F47: 21 | G47: 264 | H47: 214 | I47: 19 | J47: 259 | K47: 174 | L47: 25 | M47: 214
A48: Motociklų vairuotojai | B48: 13 | C48: 1 | D48: 13 | E48: 9 | F48: 1 | G48: 9 | H48: 18 | I48: 1 | J48: 22 | K48: 11 | L48: 0 | M48: 12
A49: Mopedų vairuotojai | B49: 8 | C49: 0 | D49: 9 | E49: 10 | F49: 0 | G49: 13 | H49: 12 | I49: 0 | J49: 12 | K49: 5 | L49: 0 | M49: 6
A50: Pėstieji | B50: 63 | C50: 15 | D50: 50 | E50: 50 | F50: 4 | G50: 46 | H50: 32 | I50: 5 | J50: 29 | K50: 32 | L50: 3 | M50: 31
A51: Dviratininkai | B51: 22 | C51: 1 | D51: 21 | E51: 29 | F51: 3 | G51: 28 | H51: 27 | I51: 0 | J51: 28 | K51: 28 | L51: 2 | M51: 26
A52: Paspirtukininkai | B52: 0 | C52: 0 | D52: 0 | E52: 0 | F52: 0 | G52: 0 | H52: 0 | I52: 0 | J52: 0 | K52: 0 | L52: 0 | M52: 0
A53: El. paspirtukų naudotojai | B53: 0 | C53: 0 | D53: 0 | E53: 0 | F53: 0 | G53: 0 | H53: 5 | I53: 0 | J53: 5 | K53: 17 | L53: 0 | M53: 18
A54: El. dviračių naudotojai | B54: 0 | C54: 0 | D54: 0 | E54: 1 | F54: 0 | G54: 1 | H54: 2 | I54: 0 | J54: 2 | K54: 0 | L54: 0 | M54: 0
A55: Kiti ED | B55: =4+3 -> 7 | C55: 2 | D55: 7 | E55: =5+7 -> 12 | F55: 2 | G55: 15 | H55: =1+1 -> 2 | I55: 0 | J55: 3 | K55: 4 | L55: 0 | M55: 5
A56: Viso: | B56: 286 | C56: 40 | D56: 322 | E56: 289 | F56: 31 | G56: 376 | H56: =SUM(H47:H55) -> 312 | I56: 25 | J56: 360 | K56: =SUM(K47:K55) -> 271 | L56: =SUM(L47:L55) -> 30 | M56: 312
A61: 1.24. 2021 m. eismo įvykių pasiskirstymas pagal eismo įvykio rūšį, kaltininkų grupes ir jų blaivumą
A62: Eismo įvykių kaltininkai | B62: Viso ED kaltininkai | C62: TP vairuotojai (TP, mopedų, motociklų) | F62: Kiti ED (vairavimo instruktoriai, raiteliai, asmenys varantys gyvulius, keleiviai, nežinomi) | I62: Dviratininkai | L62: Dviračių elektrinių priem. naudotojai (el.dviračių vairuotojai ir keleiviai, el.paspirtukų vairuotojai ir keleiviai, el. vienaračių vairuotojai) | O62: Pėstieji | R62: Mechaninių paspirtukų naudotojai
C63: 2021 m. viso EĮ kaltininkai /iš jų neblaivūs kaltininkai
A64: Eismo įvykio rūšis | B64: sk. | C64: visi kaltininkai | D64: % kaltininkų | E64: iš jų neblaivūs kaltininkai | F64: visi kaltininkai | G64: % kaltininkų | H64: iš jų neblaivūs kaltininkai | I64: visi kaltininkai | J64: % kaltininkų | K64: iš jų neblaivūs kaltininkai | L64: visi kaltininkai | M64: % kaltininkų | N64: iš jų neblaivūs kaltininkai | O64: visi kaltininkai | P64: % kaltininkų | Q64: iš jų neblaivūs kaltininkai | R64: visi kaltininkai | S64: % kaltininkų | T64: iš jų neblaivūs kaltininkai
A65: Susidūrimas | B65: 812 | C65: 807 | D65: =C65*100/B65 -> 99.38423645 | E65: 54 | F65: 5 | G65: =F65*100/B65 -> 0.6157635468
A66: Apvirtimas | B66: 226 | C66: 224 | D66: 99.11504425 | E66: 45 | F66: 2 | G66: =F66*100/B66 -> 0.8849557522
A67: Susidūrimas su motociklu | B67: 132 | C67: 132 | D67: 100 | E67: 7
A68: Susidūrimas su mopedu | B68: 29 | C68: 29 | D68: 100
A69: Užvažiavimas ant kliūties | B69: 28 | C69: 26 | D69: 92.85714286 | E69: 8 | F69: 2 | G69: =F69*100/B69 -> 7.142857143 | H69: 2
A70: Nuvažiavimas nuo kelio | B70: 26 | C70: 26 | D70: 100 | E70: 8
A71: Atsitrenkimas į medį | B71: 22 | C71: 22 | D71: 100 | E71: 2
A72: Susidūrimas su stovinčia TP | B72: 57 | C72: 56 | D72: 98.24561404 | E72: 8 | I72: 1 | J72: =I72*100/B72 -> 1.754385965
A73: EĮ su visuomeninio TP keleiviais | B73: 76 | C73: 58 | D73: 76.31578947 | F73: 17 | G73: =F73*100/B73 -> 22.36842105 | H73: 1 | O73: 1 | P73: =O73*100/B73 -> 1.315789474
A74: Užvažiavimas ant gyvūno | B74: 19 | C74: 18 | D74: 94.73684211 | F74: 1 | G74: =F74*100/B74 -> 5.263157895
A75: Susidūrimas su bėgine TP | B75: 3 | C75: 2 | D75: 66.66666667 | I75: 1 | J75: =I75*100/B75 -> 33.33333333
A76: Kiti eismo įvykiai | B76: 190 | C76: 187 | D76: 98.42105263 | E76: 38 | F76: 3 | G76: =F76*100/B76 -> 1.578947368 | H76: 1
A77: Susidūrimas su dviračiu | B77: 235 | C77: 120 | D77: 51.06382979 | E77: 4 | F77: 1 | G77: =F77*100/B77 -> 0.4255319149 | I77: 111 | J77: =I77*100/B77 -> 47.23404255 | K77: 17 | L77: 2 | M77: =L77*100/B77 -> 0.8510638298 | O77: 1 | P77: =O77*100/B77 -> 0.4255319149 | Q77: 1
A78: Susidūrimas su paspirtuku | B78: 196 | C78: 72 | D78: 36.73469388 | F78: 2 | G78: =F78*100/B78 -> 1.020408163 | I78: 7 | J78: =I78*100/B78 -> 3.571428571 | K78: 1 | L78: 87 | M78: =L78*100/B78 -> 44.3877551 | N78: 17 | O78: 3 | P78: =O78*100/B78 -> 1.530612245 | R78: 25 | S78: =R78*100/B78 -> 12.75510204
A79: Susidūrimas tarp stovinčios TP ir dviračio | B79: 3 | C79: 1 | D79: 33.33333333 | I79: 2 | J79: =I79*100/B79 -> 66.66666667 | K79: 2
A80: Susidūrimas dviračio ir paspirtuko | B80: 7 | I80: 5 | J80: =I80*100/B80 -> 71.42857143 | K80: 1 | L80: 1 | M80: =L80*100/B80 -> 14.28571429 | R80: 1 | S80: =R80*100/B80 -> 14.28571429
A81: Susidūrimas dviračio ir riedžio | B81: 1 | F81: 1 | G81: =F81*100/B81 -> 100
A82: Susidūrimas dviračio ir mopedo | B82: 4 | C82: 2 | D82: =C82*100/B82 -> 50 | I82: 2 | J82: =I82*100/B82 -> 50
A83: Susidūrimas dviračio ir motociklo | B83: 1 | I83: 1 | J83: =I83*100/B83 -> 100 | K83: 1
A84: Susidūrimas tarp dviračių | B84: 20 | I84: 20 | J84: =I84*100/B84 -> 100 | K84: 1
A85: Apvirtimas su dviračiu | B85: 11 | F85: 1 | G85: =F85*100/B85 -> 9.090909091 | I85: 8 | J85: =I85*100/B85 -> 72.72727273 | K85: 5 | L85: 2 | M85: =L85*100/B85 -> 18.18181818
A86: Užvažiavimas ant pėsčiojo | B86: 534 | C86: 408 | D86: =C86*100/B86 -> 76.40449438 | E86: 16 | O86: 126 | P86: =O86*100/B86 -> 23.59550562 | Q86: 31
A87: Susidūrimas tarp dviračio ir pėsčiojo | B87: 32 | I87: 24 | J87: =I87*100/B87 -> 75 | L87: 1 | M87: =L87*100/B87 -> 3.125 | O87: 7 | P87: =O87*100/B87 -> 21.875
A88: Viso: | B88: =SUM(B65:B87) -> 2664 | C88: =SUM(C65:C87) -> 2190 | D88: =C88*100/B88 -> 82.20720721 | E88: =SUM(E65:E87) -> 190 | F88: =SUM(F65:F87) -> 35 | G88: =F88*100/B88 -> 1.313813814 | H88: =SUM(H65:H87) -> 4 | I88: =SUM(I65:I87) -> 182 | J88: =I88*100/B88 -> 6.831831832 | K88: =SUM(K65:K87) -> 28 | L88: =SUM(L65:L87) -> 93 | M88: =L88*100/B88 -> 3.490990991 | N88: =SUM(N65:N87) -> 17 | O88: =SUM(O65:O87) -> 138 | P88: =O88*100/B88 -> 5.18018018 | Q88: =SUM(Q65:Q87) -> 32 | R88: =SUM(R65:R87) -> 26 | S88: =R88*100/B88 -> 0.975975976 | T88: =SUM(T65:T87) -> 0

Sheet TP vairuotojai
A6: 1.25. TP vairuotojų pasiskirstymas pagal amžių, 2018–2021 m.
A7: Amžiaus grupė | B7: vairuotojai kaltininkai | C7: kalt.+nekalt. neblaivūs
A8: ≤ 6 m. | B8: - | C8: -
A9: 7–12 m. | B9: - | C9: -
A10: 13-18 m. | B10: 124 | C10: 21
A11: 19–24 m. | B11: 1362 | C11: 129
A12: 25–34 m. | B12: 1734 | C12: 256
A13: 35–44 m. | B13: 1405 | C13: 173
A14: 45–54 m. | B14: 1310 | C14: 112
A15: 55–64 m. | B15: 1174 | C15: 74
A16: 65-74 m. | B16: 564 | C16: 20
A17: ≥75 m. | B17: 340 | C17: 4
A18: Nenustatyta | B18: 211 | C18: 0
A19: Viso: | B19: =SUM(B8:B18) -> 8224 | C19: =SUM(C8:C18) -> 789
A23: 1.26. Nukentėjusių TP vairuotojų pasiskirstymas pagal saugos diržų segėjimą, 2018–2021 m.
B24: 2018–2021 m.
B25: Dalyvavo | C25: Žuvo | D25: Sunkiai sužeista | E25: Lengvai sužeista | F25: Nenukentėjo
A26: Su saugos diržu | B26: 13294 | C26: 152 | D26: 288 | E26: 3438 | F26: 9416
A27: Be saugos diržo | B27: 554 | C27: 56 | D27: 39 | E27: 179 | F27: 280
A28: Saugos diržas neįrengtas | B28: 14 | C28: 0 | D28: 0 | E28: 0 | F28: 14
A29: Informacija apie saugos diržą nenurodyta | B29: 1098 | C29: 2 | D29: 10 | E29: 21 | F29: 1065
A30: Viso: | B30: =SUM(B26:B29) -> 14960 | C30: =SUM(C26:C29) -> 210 | D30: =SUM(D26:D29) -> 337 | E30: =SUM(E26:E29) -> 3638 | F30: =SUM(F26:F29) -> 10775

Sheet Eismo įvykių kaltininkų stažas
A6: 1.27. Eismo įvykiuose dalyvavusių motorinių transporto priemonių vairuotojų kaltininkų vairavimo stažas, 2018–2021 m.
A7: Stažas, m. | B7: EĮ skaičius
B8: 2018 m. | C8: 2019 m. | D8: 2020 m. | E8: 2021 m.
A9: iki 1 | B9: 148 | C9: 127 | D9: 85 | E9: 92
A10: 1 | B10: 132 | C10: 172 | D10: 148 | E10: 133
A11: 2 | B11: 102 | C11: 96 | D11: 90 | E11: 102
A12: 3 | B12: 80 | C12: 84 | D12: 86 | E12: 89
A13: 4 | B13: 52 | C13: 69 | D13: 58 | E13: 64
A14: 5 | B14: 88 | C14: 86 | D14: 78 | E14: 90
A15: 6 | B15: 48 | C15: 54 | D15: 42 | E15: 36
A16: 7 | B16: 52 | C16: 53 | D16: 49 | E16: 46
A17: 8 | B17: 59 | C17: 58 | D17: 45 | E17: 41
A18: 9 | B18: 46 | C18: 43 | D18: 35 | E18: 31
A19: 10 | B19: 116 | C19: 126 | D19: 84 | E19: 129
A20: 11 | B20: 42 | C20: 50 | D20: 33 | E20: 26
A21: 12 | B21: 61 | C21: 55 | D21: 51 | E21: 47
A22: 13 | B22: 35 | C22: 41 | D22: 23 | E22: 46
A23: 14 | B23: 27 | C23: 33 | D23: 34 | E23: 38
A24: 15 | B24: 56 | C24: 84 | D24: 66 | E24: 79
A25: 16 | B25: 42 | C25: 41 | D25: 29 | E25: 33
A26: 17 | B26: 32 | C26: 34 | D26: 28 | E26: 49
A27: 18 | B27: 54 | C27: 39 | D27: 24 | E27: 31
A28: 19 | B28: 51 | C28: 36 | D28: 23 | E28: 27
A29: 20 | B29: 81 | C29: 123 | D29: 98 | E29: 94
A30: 21 | B30: 52 | C30: 42 | D30: 27 | E30: 31
A31: 22 | B31: 50 | C31: 55 | D31: 56 | E31: 52
A32: 23 | B32: 53 | C32: 50 | D32: 41 | E32: 41
A33: 24 | B33: 52 | C33: 69 | D33: 65 | E33: 35
A34: 25 | B34: 49 | C34: 92 | D34: 65 | E34: 73
A35: 26 | B35: 25 | C35: 18 | D35: 44 | E35: 55
A36: 27 | B36: 29 | C36: 18 | D36: 30 | E36: 55
A37: 28 | B37: 28 | C37: 22 | D37: 18 | E37: 28
A38: 29 | B38: 19 | C38: 19 | D38: 12 | E38: 12
A39: 30 | B39: 53 | C39: 55 | D39: 77 | E39: 54
A40: 31 | B40: 11 | C40: 17 | D40: 15 | E40: 16
A41: 32 | B41: 12 | C41: 20 | D41: 12 | E41: 16
A42: 33 | B42: 20 | C42: 12 | D42: 14 | E42: 5
A43: 34 | B43: 21 | C43: 20 | D43: 13 | E43: 16
A44: 35 | B44: 22 | C44: 27 | D44: 21 | E44: 22
A45: 36 | B45: 20 | C45: 18 | D45: 10 | E45: 8
A46: 37 | B46: 11 | C46: 12 | D46: 7 | E46: 15
A47: 38 | B47: 19 | C47: 7 | D47: 6 | E47: 5
A48: 39 | B48: 16 | C48: 14 | D48: 7 | E48: 6
A49: 40 | B49: 22 | C49: 28 | D49: 28 | E49: 27
A50: virš 40 | B50: 109 | C50: 122 | D50: 67 | E50: 75
A51: Nenurodyta | B51: 168 | C51: 187 | D51: 234 | E51: 220
A52: Viso: | B52: 2265 | C52: 2428 | D52: 2078 | E52: =SUM(E9:E51) -> 2190

Sheet Eismo įvykiai gyv.-užm.
A6: 2.1. 2018–2021 m. įvykusių eismo įvykių ir nukentėjusių pasiskirstymas automagistralėse ir greitkeliuose, gyvenamojoje ir užmiesčio teritorijose
A7: Teritorija | B7: 2018 m. | E7: 2019 m. | H7: 2020 m. | K7: 2021 m. | N7: 2018-2021 m. vidurkis per metus
B8: EĮ | C8: Žuvo | D8: Sužeista | E8: EĮ | F8: Žuvo | G8: Sužeista | H8: EĮ | I8: Žuvo | J8: Sužeista | K8: EĮ | L8: Žuvo | M8: Sužeista | N8: EĮ | O8: Žuvo | P8: Viso sužeista | Q8: iš jų sunkiai sužeista | R8: iš jų lengvai sužeista | S8: Rizika nukentėti (žūti ir būti sunkiai susižeistam)
A9: Automagistralės ir greitkeliai (A1 ir A2) | B9: 51 | C9: 5 | D9: 64 | E9: 87 | F9: 6 | G9: 120 | H9: 67 | I9: 7 | J9: 86 | K9: 73 | L9: 10 | M9: 102 | N9: =(B9+E9+H9+K9)/4 -> 69.5 | O9: =(C9+F9+I9+L9)/4 -> 7 | P9: =(D9+G9+J9+M9)/4 -> 93 | Q9: =43/4 -> 10.75 | R9: =329/4 -> 82.25 | S9: =(Q9+O9)*100/N9 -> 25.53956835
A10: Užmiestis | B10: 694 | C10: 97 | D10: 905 | E10: 767 | F10: 91 | G10: 1015 | H10: 709 | I10: 99 | J10: 880 | K10: 631 | L10: 68 | M10: 811 | N10: =(B10+E10+H10+K10)/4 -> 700.25 | O10: 88.75 | P10: =(D10+G10+J10+M10)/4 -> 902.75 | Q10: =488/4 -> 122 | R10: =3123/4 -> 780.75 | S10: =(Q10+O10)*100/N10 -> 30.09639414
A11: Gyvenvietė | B11: 2180 | C11: 71 | D11: 2421 | E11: 2336 | F11: 89 | G11: 2636 | H11: 2050 | I11: 69 | J11: 2237 | K11: 2104 | L11: 70 | M11: 2298 | N11: 2167.5 | O11: 74.75 | P11: 2398 | Q11: =710/4 -> 177.5 | R11: =8882/4 -> 2220.5 | S11: =(Q11+O11)*100/N11 -> 11.6378316
A12: Viso: | B12: =SUM(B9:B11) -> 2925 | C12: 173 | D12: 3390 | E12: 3190 | F12: 186 | G12: 3771 | H12: 2826 | I12: 175 | J12: 3203 | K12: =SUM(K9:K11) -> 2808 | L12: 148 | M12: 3211 | N12: 2937.25 | O12: 170.5 | P12: =SUM(P9:P11) -> 3393.75 | Q12: =SUM(Q9:Q11) -> 310.25 | R12: =SUM(R9:R11) -> 3083.5 | S12: 16.36735041
A13: * automagistralėms ir greitkeliams priskirti A1 ir A2 keliai, kitų kelių (A5 ir A9) ruožai įgavo greitkelio statusą skirtingu metu, todėl čia neįtraukti
A14: ** gyvenvietėms priskirti eismo įvykiai, kuriems policijos pateiktuose duomenyse yra nurodytas adresas

Sheet Eismo įvykiai mag-krašt-rajon
A6: 2.2. Eismo įvykių ir nukentėjusiųjų pasiskirstymas valstybinės ir vietinės reikšmės keliuose, 2018–2021 m.
A7: Kelio reikšmė | B7: 2018 m. | E7: 2019 m. | H7: 2020 m. | K7: 2021 m. | N7: Kelių ilgis, km*** | O7: 2021 m. 100-ui kelio kilometrų tenka:
B8: EĮ | C8: Žuvo | D8: Sužeista | E8: EĮ | F8: Žuvo | G8: Sužeista | H8: EĮ | I8: Žuvo | J8: Sužeista | K8: EĮ | L8: Žuvo | M8: Sužeista | O8: EĮ/100km | P8: Žuvusių/ 100km | Q8: Sužeistų/ 100km
A9: Valstybinės reikšmės keliai*
A10: Magistraliniai | B10: 264 | C10: 34 | D10: 368 | E10: 321 | F10: 40 | G10: 422 | H10: 253 | I10: 37 | J10: 323 | K10: 260 | L10: 39 | M10: 329 | N10: 1751.28 | O10: =K10*100/N10 -> 14.84628386 | P10: =L10*100/N10 -> 2.226942579 | Q10: =M10*100/N10 -> 18.78625919
A11: Krašto | B11: 449 | C11: 47 | D11: 597 | E11: 561 | F11: 48 | G11: 733 | H11: 421 | I11: 48 | J11: 520 | K11: 414 | L11: 44 | M11: 527 | N11: 4927.82 | O11: =K11*100/N11 -> 8.401280891 | P11: =L11*100/N11 -> 0.8928897565 | Q11: =M11*100/N11 -> 10.69438413
A12: Rajoniniai | B12: 355 | C12: 37 | D12: 409 | E12: 415 | F12: 32 | G12: 515 | H12: 377 | I12: 42 | J12: 432 | K12: 378 | L12: 24 | M12: 463 | N12: 14544.8 | O12: =K12*100/N12 -> 2.598866949 | P12: =L12*100/N12 -> 0.1650074253 | Q12: =M12*100/N12 -> 3.183268247
A13: Vietinės reikšmės keliai** | B13: 1857 | C13: 55 | D13: 2016 | E13: 1893 | F13: 66 | G13: 2101 | H13: 1775 | I13: 48 | J13: 1928 | K13: 1756 | L13: 41 | M13: 1892 | N13: 70213 | O13: =K13*100/N13 -> 2.50096136 | P13: =L13*100/N13 -> 0.05839374475 | Q13: =M13*100/N13 -> 2.694657684
A14: Viso: | B14: =SUM(B10:B13) -> 2925 | C14: 173 | D14: 3390 | E14: 3190 | F14: 186 | G14: 3771 | H14: 2826 | I14: 175 | J14: 3203 | K14: =SUM(K10:K13) -> 2808 | L14: =SUM(L10:L13) -> 148 | M14: =SUM(M10:M13) -> 3211
A15: * valstybinės reikšmės keliai, priklausantys LAKD | N15: *** Valstybinės reikšmės automobilių kelių sąrašas (šaltinis: Lietuvos Respublikos Vyriausybės nutarimas 1999 m. birželio 9 d. Nr. 757, suvestinė redakcija nuo 2020 kovo 23 d.). *** Vietinės reikšmės kelių, gatvių ilgiai (šaltinis: Statistikos departamentas, www.stat.gov.lt, 2021-04-02).
A16: ** savivaldybėms priklausantys keliai ir gatvės
A18: 2.3. Valstybinė ir vietinės reikšmės kelių avaringumo rodikliai 2021 m.
A19: Kelio reikšmė | B19: Kelių ilgis, km | C19: EĮ | F19: Žuvo | J19: Sužeista
C20: viso | D20: Dalis nuo bendro EĮ skaičiaus, % | E20: EĮ skaičius, tenkantis 1 km | F20: viso | G20: Dalis nuo bendro žuvusiųjų skaičiaus, % | H20: Žuvo 100 EĮ | I20: Žuvusiųjų skaičius, tenkantis 1 km | J20: viso | K20: Dalis nuo bendro sužeistųjų skaičiaus, % | L20: Sužeista 100 EĮ | M20: Sužeistųjų skaičius, tenkantis 1 km
A21: Magistraliniai | B21: 1751.28 | C21: 260 | D21: =C21/$C$25 -> 0.09259259259 | E21: =C21/B21 -> 0.1484628386 | F21: 39 | G21: =F21/$F$25 -> 0.2635135135 | H21: =F21/C21*100 -> 15 | I21: =F21/B21 -> 0.02226942579 | J21: 329 | K21: =J21/$J$25 -> 0.1024602927 | L21: =J21/C21*100 -> 126.5384615 | M21: =J21/B21 -> 0.1878625919
A22: Krašto | B22: 4927.82 | C22: 414 | D22: =C22/$C$25 -> 0.1474358974 | E22: =C22/B22 -> 0.08401280891 | F22: 44 | G22: =F22/$F$25 -> 0.2972972973 | H22: =F22/C22*100 -> 10.62801932 | I22: =F22/B22 -> 0.008928897565 | J22: 527 | K22: =J22/$J$25 -> 0.1641233261 | L22: =J22/C22*100 -> 127.294686 | M22: =J22/B22 -> 0.1069438413
A23: Rajoniniai | B23: 14544.8 | C23: 378 | D23: 0.1346153846 | E23: =C23/B23 -> 0.02598866949 | F23: 24 | G23: 0.1621621622 | H23: =F23/C23*100 -> 6.349206349 | I23: =F23/B23 -> 0.001650074253 | J23: 463 | K23: 0.1441918405 | L23: =J23/C23*100 -> 122.4867725 | M23: =J23/B23 -> 0.03183268247
A24: Vietinės reikšmės | B24: 70213 | C24: 1756 | D24: 0.6253561254 | E24: =C24/B24 -> 0.0250096136 | F24: 41 | G24: 0.277027027 | H24: =F24/C24*100 -> 2.334851936 | I24: =F24/B24 -> 0.0005839374475 | J24: 1892 | K24: 0.5892245406 | L24: =J24/C24*100 -> 107.7448747 | M24: =J24/B24 -> 0.02694657684
A25: Viso: | B25: =SUM(B21:B24) -> 91436.9 | C25: =SUM(C21:C24) -> 2808 | D25: 1 | E25: =SUM(E21:E24) -> 0.2834739306 | F25: 148 | G25: 1 | H25: 34.31207761 | I25: 0.03343233506 | J25: 3211 | K25: 1 | L25: 484.0647947 | M25: 0.3535856925

Sheet TEN-T keliai
A5: 2.4. Eismo įvykių TEN-T keliuose ir nukentėjusių juose pasiskirstymas 2018–2021 m.
A6: TEN-T kelias | D6: 2018-2020 m. | G6: 2021 m.
A7: Kelio nr. | B7: Pavadinimas | C7: Ilgis, km | D7: Eismo įvykiai | E7: Žuvo | F7: Sužeista | G7: Eismo įvykiai | H7: Žuvo | I7: Sužeista
A8: Visuotinis TEN-T kelių tinklas
A9: A2 | B9: Vilnius–Panevėžys | C9: 119.085 | D9: 43 | E9: 6 | F9: 57 | G9: 8 | H9: 4 | I9: 9
A10: A4 | B10: Vilnius–Varėna–Gardinas | C10: 118.348 | D10: 47 | E10: 3 | F10: 65 | G10: 15 | H10: 1 | I10: 17
A11: A6 | B11: Kaunas–Zarasai–Daugpilis | C11: 178.791 | D11: 81 | E11: 8 | F11: 113 | G11: 19 | H11: 1 | I11: 26
A12: A9 | B12: Panevėžys–Šiauliai | C12: 70.297 | D12: 52 | E12: 7 | F12: 69 | G12: 14 | H12: 2 | I12: 13
A13: A11 | B13: Šiauliai–Palanga | C13: 142.833 | D13: 69 | E13: 9 | F13: 102 | G13: 29 | H13: 2 | I13: 44
A14: A12 | B14: Ryga–Šiauliai–Tauragė–Kaliningradas | C14: 185.969 | D14: 75 | E14: 9 | F14: 94 | G14: 16 | H14: 2 | I14: 21
A15: A13 | B15: Klaipėda–Liepoja | C15: 43.834 | D15: 34 | E15: 4 | F15: 47 | G15: 6 | H15: 2 | I15: 5
A16: A14 | B16: Vilnius–Utena | C16: 84.999 | D16: 28 | E16: 7 | F16: 42 | G16: 10 | H16: 1 | I16: 13
A17: A16 | B17: Vilnius–Prienai–Marijampolė | C17: 119.858 | D17: 42 | E17: 12 | F17: 46 | G17: 18 | H17: 8 | I17: 18
A18: A18 | B18: Šiaulių aplinkkelis | C18: 16.652 | D18: 10 | E18: 1 | F18: 10 | G18: 2 | H18: 0 | I18: 3
A19: 106 | B19: Naujoji Vilnia–Rudamina–Vaidotai | C19: 13.474 | D19: 14 | E19: 1 | F19: 15 | G19: 4 | H19: 0 | I19: 7
A20: 117 | B20: Zarasai–Bradesiai–Obeliai | C20: 40.957 | D20: 2 | E20: 1 | F20: 1 | G20: 0 | H20: 0 | I20: 0
A21: 122 | B21: Daugpilis–Rokiškis–Panevėžys | C21: 96.918 | D21: 25 | E21: 3 | F21: 41 | G21: 8 | H21: 0 | I21: 12
A22: 128 | B22: Naujieji Valkininkai–Daugai–Alytus | C22: 44.187 | D22: 10 | E22: 3 | F22: 14 | G22: 2 | H22: 0 | I22: 5
A23: 130 | B23: Kaunas–Prienai–Alytus | C23: 0.826 | D23: 1 | E23: 0 | F23: 1 | G23: 1 | H23: 0 | I23: 1
A24: 131 | B24: Alytus–Simnas–Kalvarija | C24: 54.549 | D24: 14 | E24: 1 | F24: 16 | G24: 6 | H24: 0 | I24: 10
A25: 139 | B25: Kauno HE–Garliava | C25: 4.692 | D25: 4 | E25: 0 | F25: 6 | G25: 2 | H25: 3 | I25: 1
A26: 141 | B26: Kaunas–Jurbarkas–Šilutė–Klaipėda | C26: 86.554 | D26: 35 | E26: 1 | F26: 51 | G26: 17 | H26: 1 | I26: 23
A27: 201 | B27: Marijampolė–Kalvarija | C27: 2.329 | D27: 1 | E27: 0 | F27: 2 | G27: 0 | H27: 0 | I27: 0
A28: 2207 | B28: Dreižiai–Agluonėnai | C28: 1.48 | D28: 0 | E28: 0 | F28: 0 | G28: 0 | H28: 0 | I28: 0
A29: 10001 | B29: Santaikos g., Ulonų g. | C29: 4.261 | D29: 7 | E29: 0 | F29: 7 | G29: 2 | H29: 0 | I29: 2
A30: 10002 | B30: Kauno g., Kęstučio a., Vytauto g. | C30: 5.719 | D30: 9 | E30: 0 | F30: 9 | G30: 1 | H30: 0 | I30: 1
A31: 10003 | B31: Marijampolės pl., T. Masiulio g., R. Kalantos g., Ateities pl. | C31: 14.017 | D31: 23 | E31: 2 | F31: 29 | G31: 13 | H31: 0 | I31: 16
A32: 10004 | B32: Gedimino g., V. Kudirkos g., J. Dailidės g., J. Basanavičiaus a., Vilkaviškio g. | C32: 4.805 | D32: 10 | E32: 0 | F32: 11 | G32: 3 | H32: 0 | I32: 3
A33: 10005 | B33: Klaipėdos g., Vilniaus g., J. Basanavičiaus g., Smėlynės g., Senamiesčio g. | C33: 8.794 | D33: 51 | E33: 2 | F33: 56 | G33: 16 | H33: 2 | I33: 19
A34: 10006 | B34: Vilniaus g., Ežero g., Vytauto g., Žemaitės g., Vilniaus g. | C34: 6.322 | D34: 29 | E34: 1 | F34: 33 | G34: 8 | H34: 1 | I34: 10
A35: 10008 | B35: Ukmergės g. | C35: 6.377 | D35: 14 | E35: 1 | F35: 13 | G35: 8 | H35: 1 | I35: 7
A36: 10009 | B36: Geležinio Vilko g., Molėtų pl. | C36: 12.961 | D36: 36 | E36: 1 | F36: 42 | G36: 10 | H36: 0 | I36: 10
A37: 10011 | B37: Galvės g. | C37: 5.974 | D37: 7 | E37: 2 | F37: 7 | G37: 4 | H37: 0 | I37: 4
A38: 10012 | B38: Savanorių pr. | C38: 5.455 | D38: 15 | E38: 2 | F38: 14 | G38: 4 | H38: 0 | I38: 4
A39: 10013 | B39: Liepkalnio g. | C39: 6.219 | D39: 9 | E39: 1 | F39: 13 | G39: 3 | H39: 1 | I39: 2
A40: Viso: | D40: =SUM(D9:D39) -> 797 | E40: =SUM(E9:E39) -> 88 | F40: 1026 | G40: 249 | H40: 32 | I40: 306
A41: Pagrindinis TEN-T kelių tinklas
A42: A1 | B42: Vilnius–Kaunas–Klaipėda | C42: 294.596 | D42: 160 | E42: 11 | F42: 208 | G42: 62 | H42: 6 | I42: 89
A43: A3 | B43: Vilnius–Minskas | C43: 26.262 | D43: 15 | E43: 4 | F43: 18 | G43: 3 | H43: 0 | I43: 5
A44: A5 | B44: Kaunas–Marijampolė–Suvalkai | C44: 96.742 | D44: 28 | E44: 2 | F44: 32 | G44: 20 | H44: 3 | I44: 21
A45: A7 | B45: Marijampolė–Kybartai–Kaliningradas | C45: 39.442 | D45: 18 | E45: 3 | F45: 24 | G45: 5 | H45: 0 | I45: 7
A46: A8 | B46: Panevėžys–Aristava–Sitkūnai | C46: 79.75 | D46: 29 | E46: 9 | F46: 35 | G46: 12 | H46: 4 | I46: 13
A47: A10 | B47: Panevėžys–Pasvalys–Ryga | C47: 56.987 | D47: 49 | E47: 10 | F47: 68 | G47: 5 | H47: 1 | I47: 8
A48: A15 | B48: Vilnius–Lyda | C48: 38.179 | D48: 24 | E48: 3 | F48: 39 | G48: 5 | H48: 1 | I48: 4
A49: A17 | B49: Panevėžio aplinkkelis | C49: 22.24 | D49: 11 | E49: 0 | F49: 14 | G49: 2 | H49: 1 | I49: 1
A50: A19 | B50: Vilniaus pietinis aplinkkelis | C50: 7.494 | D50: 6 | E50: 1 | F50: 10 | G50: 2 | H50: 0 | I50: 3
A51: 1000 | B51: vakarinis Vilniaus aplinkkelis | C51: 8.818 | D51: 12 | E51: 0 | F51: 13 | G51: 3 | H51: 0 | I51: 6
A52: 10010 | B52: Gariūnų g., Oslo g., Laisvės pr., Tūkstantmečio g., Žirnių g., Minsko pl. | C52: 12.318 | D52: 31 | E52: 3 | F52: 39 | G52: 14 | H52: 0 | I52: 18
A53: 10014 | B53: Eišiškių pl., Baltosios Vokės g., Miškinių Sodų 1-oji g. | C53: 3.168 | D53: 2 | E53: 0 | F53: 2 | G53: 0 | H53: 0 | I53: 0
A54: Viso: | D54: =SUM(D42:D53) -> 385 | E54: =SUM(E42:E53) -> 46 | F54: 502 | G54: 133 | H54: 16 | I54: 175
A55: Viso: | D55: =D40+D54 -> 1182 | E55: =E40+E54 -> 134 | F55: 1528 | G55: 382 | H55: 48 | I55: 481
A59: 2.5. Eismo įvykių TEN-T keliuose ir nukentėjusių juose pasiskirstymas pagal TEN-T tipą 2018–2021 m.
A60: TEN-T keliai | C60: Ilgis, km | D60: 2018–2020 m. vidurkis | G60: 2021 m.
D61: Eismo įvykiai | E61: Žuvo | F61: Sužeista | G61: Eismo įvykiai | H61: Žuvo | I61: Sužeista
A62: Visuotinis TEN-T kelių tinklas | C62: 1507.54 | D62: 266 | E62: 29 | F62: 342 | G62: 249 | H62: 32 | I62: 306
A63: Pagrindinis TEN-T kelių tinklas | C63: 686 | D63: 128 | E63: 15 | F63: 167 | G63: 133 | H63: 16 | I63: 175
A64: Bendras TEN-T kelių tinklas | C64: =SUM(C62:C63) -> 2193.54 | D64: 394 | E64: 44 | F64: 509 | G64: 382 | H64: 48 | I64: 481

Sheet Eismo įvykiai E keliuose
A6: 2.6. E kategorijos kelių sudėtis, įskaitinių eismo įvykių ir nukentėjusiųjų pasiskirstymas juose, 2018–2021 m.
A7: E kelio Nr. | B7: Kelio Nr. | C7: Kelio pavadinimas | D7: Pradžia | E7: Pabaiga | F7: Kelio ilgis, km | G7: 2018 | J7: 2019 | M7: 2020 | P7: 2021 | S7: 2021 m. 100-ui kelio kilometrų tenka:
G8: EĮ | H8: Žuvo | I8: Sužeista | J8: EĮ | K8: Žuvo | L8: Sužeista | M8: EĮ | N8: Žuvo | O8: Sužeista | P8: EĮ | Q8: Žuvo | R8: Sužeista | S8: EĮ/100km | T8: Žuvusių/ 100km | U8: Sužeistų/ 100km
A9: E28 | B9: A7 | C9: Marijampolė–Kybartai–Kaliningradas | D9: 2.5 | E9: 41.929 | F9: 39.429 | G9: 7 | H9: 1 | I9: 11 | J9: 5 | K9: 1 | L9: 8 | M9: 6 | N9: 1 | O9: 5 | P9: 5 | Q9: 0 | R9: 7 | S9: =P9*100/$F9 -> 12.68102158 | T9: =Q9*100/$F9 -> 0 | U9: 17.75343022
B10: A16 | C10: Vilnius–Prienai–Marijampolė | D10: 15.564 | E10: 135.422 | F10: 119.858 | G10: 10 | H10: 4 | I10: 11 | J10: 18 | K10: 4 | L10: 17 | M10: 14 | N10: 4 | O10: 18 | P10: 18 | Q10: 8 | R10: 18 | S10: =P10*100/$F10 -> 15.01777103 | T10: 6.674564902 | U10: 15.01777103
B11: A3 | C11: Vilnius–Minskas | D11: 6.65 | E11: 32.912 | F11: 26.262 | G11: 4 | H11: 2 | I11: 3 | J11: 5 | K11: 1 | L11: 8 | M11: 6 | N11: 1 | O11: 7 | P11: 3 | Q11: 0 | R11: 5 | S11: 11.42334933 | T11: 0 | U11: 19.03891554
A12: E67 | B12: A5 | C12: Kaunas–Marijampolė–Suvalkai | D12: 0 | E12: 96.742 | F12: 96.742 | G12: 10 | H12: 0 | I12: 13 | J12: 7 | K12: 0 | L12: 9 | M12: 11 | N12: 2 | O12: 10 | P12: 20 | Q12: 3 | R12: 22 | S12: 20.67354407 | T12: 3.10103161 | U12: 22.74089847
B13: A1 | C13: Vilnius–Kaunas–Klaipėda | D13: 102.436 | E13: 114.295 | F13: 11.859 | G13: 3 | H13: 0 | I13: 4 | J13: 3 | K13: 0 | L13: 4 | M13: 7 | N13: 1 | O13: 9 | P13: 4 | Q13: 1 | R13: 12 | S13: 33.7296568 | T13: 8.4324142 | U13: 101.1889704
B14: A8 | C14: Panevėžys–Aristava–Sitkūnai | D14: 7.508 | E14: 87.861 | F14: 80.353 | G14: 9 | H14: 1 | I14: 11 | J14: 12 | K14: 5 | L14: 12 | M14: 8 | N14: 3 | O14: 12 | P14: 12 | Q14: 4 | R14: 13 | S14: 14.93410327 | T14: 4.978034423 | U14: 16.17861188
B15: A17 | C15: Panevėžio aplinkkelis | D15: 0 | E15: 22.24 | F15: 22.24 | G15: 4 | H15: 0 | I15: 6 | J15: 0 | K15: 0 | L15: 0 | M15: 7 | N15: 0 | O15: 8 | P15: 2 | Q15: 1 | R15: 1 | S15: 8.992805755 | T15: 4.496402878 | U15: 4.496402878
B16: A10 | C16: Panevėžys–Pasvalys–Ryga | D16: 9.155 | E16: 66.098 | F16: 56.943 | G16: 10 | H16: 2 | I16: 17 | J16: 21 | K16: 3 | L16: 22 | M16: 19 | N16: 5 | O16: 30 | P16: 5 | Q16: 1 | R16: 8 | S16: 8.780710535 | T16: 1.756142107 | U16: 14.04913686
A17: E77 | B17: A12 | C17: Ryga–Šiauliai–Tauragė–Kaliningradas | D17: 0 | E17: 49.738 | F17: 176.217 | G17: 28 | H17: 3 | I17: 37 | J17: 27 | K17: 4 | L17: 35 | M17: 20 | N17: 2 | O17: 22 | P17: 16 | Q17: 2 | R17: 21 | S17: 9.079714216 | T17: =Q17*100/$F17 -> 1.134964277 | U17: =R17*100/$F17 -> 11.91712491
D18: 59.49 | E18: 185.969
B19: A18 | C19: Šiaulių aplinkkelis | D19: 0 | E19: 17.134 | F19: 17.134 | G19: 5 | H19: 1 | I19: 4 | J19: 4 | K19: 0 | L19: 5 | M19: 1 | N19: 0 | O19: 1 | P19: 2 | Q19: 0 | R19: 3 | S19: =P19*100/$F19 -> 11.67269756 | T19: =Q19*100/$F19 -> 0 | U19: 17.50904634
A20: E85 | B20: A1 | C20: Vilnius–Kaunas–Klaipėda | D20: 10 | E20: 306.234 | F20: 296.234 | G20: 42 | H20: 3 | I20: 53 | J20: 65 | K20: 5 | L20: 88 | M20: 55 | N20: 4 | O20: 72 | P20: 64 | Q20: 6 | R20: 92 | S20: =P20*100/$F20 -> 21.60454236 | T20: 2.025425846 | U20: 31.05652964
B21: A15 | C21: Vilnius–Lyda | D21: 10.623 | E21: 48.835 | F21: 38.212 | G21: 7 | H21: 0 | I21: 17 | J21: 10 | K21: 2 | L21: 11 | M21: 7 | N21: 1 | O21: 11 | P21: 5 | Q21: 1 | R21: 4 | S21: =P21*100/$F21 -> 13.0848948 | T21: 2.616978959 | U21: 10.46791584
A22: E262 | B22: A6 | C22: Kaunas–Zarasai–Daugpilis | D22: 5.95 | E22: 66.803 | F22: 173.651 | G22: 31 | H22: 2 | I22: 42 | J22: 33 | K22: 6 | L22: 50 | M22: 17 | N22: 0 | O22: 20 | P22: 21 | Q22: 1 | R22: 29 | S22: =P22*100/$F22 -> 12.09322146 | T22: =Q22*100/$F22 -> 0.5758676886 | U22: =R22*100/$F22 -> 16.70016297
D23: 72.445 | E23: 185.243
B24: A20 | C24: Ukmergės šiaurinis aplinkkelis | D24: 0.019 | E24: 7.647 | F24: 7.628 | G24: 0 | H24: 0 | I24: 0 | J24: 0 | K24: 0 | L24: 0 | M24: 1 | N24: 0 | O24: 1 | P24: 0 | Q24: 0 | R24: 0 | S24: =P24*100/$F24 -> 0 | T24: =Q24*100/$F24 -> 0 | U24: 0
A25: E272 | B25: A2 | C25: Vilnius–Panevėžys | D25: 9.276 | E25: 132.55 | F25: 123.274 | G25: 9 | H25: 2 | I25: 11 | J25: 22 | K25: 1 | L25: 32 | M25: 12 | N25: 3 | O25: 14 | P25: 9 | Q25: 4 | R25: 10 | S25: =P25*100/$F25 -> 7.300809579 | T25: 3.244804257 | U25: 8.112010643
B26: A9 | C26: Panevėžys–Šiauliai | D26: 5 | E26: 75.299 | F26: 70.299 | G26: 17 | H26: 1 | I26: 27 | J26: 20 | K26: 3 | L26: 20 | M26: 15 | N26: 3 | O26: 22 | P26: 14 | Q26: 2 | R26: 13 | S26: =P26*100/$F26 -> 19.91493478 | T26: 2.844990683 | U26: 18.49243944
B27: A11 | C27: Šiauliai–Palanga | D27: 2.65 | E27: 146.515 | F27: 143.865 | G27: 23 | H27: 2 | I27: 34 | J27: 29 | K27: 4 | L27: 44 | M27: 18 | N27: 3 | O27: 25 | P27: 29 | Q27: 2 | R27: 44 | S27: =P27*100/$F27 -> 20.15778681 | T27: 1.390192194 | U27: 30.58422827
B28: A13 | C28: Klaipėda–Liepoja | D28: 0 | E28: 24.665 | F28: 24.665 | G28: 7 | H28: 0 | I28: 8 | J28: 5 | K28: 0 | L28: 5 | M28: 9 | N28: 1 | O28: 9 | P28: 4 | Q28: 1 | R28: 3 | S28: =P28*100/$F28 -> 16.21731198 | T28: 4.054327995 | U28: 12.16298399
C31: Kelias | D31: Kelio ilgis, km | E31: 2021 m. | H31: 2021 m. 100-ui kelio kilometrų tenka:
E32: EĮ | F32: Žuvo | G32: Sužeista | H32: EĮ/100km | I32: Žuvusių/ 100km | J32: Sužeistų/ 100km
C33: E28 | D33: 185.549 | E33: 26 | F33: 8 | G33: 30 | H33: =E33*100/$D33 -> 14.0124711 | I33: 4.311529569 | J33: 16.16823588
C34: E67 | D34: 268.137 | E34: 43 | F34: 10 | G34: 56 | H34: 16.03657832 | I34: 3.729436818 | J34: 20.88484618
C35: E77 | D35: 193.351 | E35: 18 | F35: 2 | G35: 24 | H35: 9.309494132 | I35: 1.034388237 | J35: 12.41265884
C36: E85 | D36: 334.446 | E36: 69 | F36: 7 | G36: 96 | H36: 20.63113328 | I36: 2.093013521 | J36: 28.70418543
C37: E262 | D37: 181.279 | E37: 21 | F37: 1 | G37: 29 | H37: 11.5843534 | I37: 0.5516358762 | J37: 15.99744041
C38: E272 | D38: 362.103 | E38: 56 | F38: 9 | G38: 70 | H38: 15.46521294 | I38: 2.485480651 | J38: 19.33151617
C53: Europos kelių tinklo koridoriai* | F53: E kategorijos keliai*
C55: * šaltinis: https://lt.wikipedia.org/wiki/Lietuvos_keliai

Sheet Via Baltica
A6: 2.7. Eismo įvykių ir nukentėjusių juose pasiskirstymas Via Baltica, 2018–2021 m.
A7: Via Baltica | C7: Pradžia | D7: Pabaiga | E7: Kelio ilgis, km | F7: 2018 | I7: 2019 | L7: 2020 | O7: 2021
A8: Kelio Nr. | B8: Kelio pavadinimas | F8: Eismo įvykių | G8: Žuvo | H8: Sužeista | I8: Eismo įvykių | J8: Žuvo | K8: Sužeista | L8: Eismo įvykių | M8: Žuvo | N8: Sužeista | O8: Eismo įvykių | P8: Žuvo | Q8: Sužeista
A9: A5 | B9: Kaunas–Marijampolė–Suvalkai | C9: 0 | D9: 95.84 | E9: 95.84 | F9: 10 | G9: 5 | H9: 54 | I9: 7 | J9: 0 | K9: 9 | L9: 11 | M9: 2 | N9: 10 | O9: 20 | P9: 3 | Q9: 22
A10: A1 | B10: Vilnius–Kaunas–Klaipėda | C10: 102 | D10: 114.5 | E10: 12.5 | F10: 3 | G10: 0 | H10: 4 | I10: 4 | J10: 0 | K10: 5 | L10: 7 | M10: 1 | N10: 9 | O10: 5 | P10: 1 | Q10: 12
A11: A8 | B11: Panevėžys–Aristava–Sitkūnai | C11: 7.5 | D11: 87.86 | E11: 80.36 | F11: 9 | G11: 1 | H11: 11 | I11: 12 | J11: 5 | K11: 12 | L11: 8 | M11: 3 | N11: 12 | O11: 12 | P11: 4 | Q11: 13
A12: A17 | B12: Panevėžio aplinkkelis | C12: 0 | D12: 22.25 | E12: 22.25 | F12: 4 | G12: 0 | H12: 6 | I12: 0 | J12: 0 | K12: 0 | L12: 7 | M12: 0 | N12: 8 | O12: 2 | P12: 1 | Q12: 1
A13: A10 | B13: Panevėžys–Pasvalys–Ryga | C13: 9.17 | D13: 66.09 | E13: 56.92 | F13: 10 | G13: 2 | H13: 6 | I13: 21 | J13: 3 | K13: 22 | L13: 18 | M13: 5 | N13: 29 | O13: 5 | P13: 1 | Q13: 8
A14: Viso: | E14: =SUM(E9:E13) -> 267.87 | F14: =SUM(F9:F13) -> 36 | G14: =SUM(G9:G13) -> 8 | H14: 81 | I14: 44 | J14: 8 | K14: 48 | L14: 51 | M14: 11 | N14: 68 | O14: 44 | P14: 10 | Q14: 56

Sheet Eismo įvykiai savivaldybėse
A6: 2.8. Eismo įvykiai ir nukentėjusieji savivaldybėse, 2018–2021 m.
A7: Apskritis | B7: Savivaldybė | C7: 2018 m. | H7: 2019 m. | M7: 2020 m. | R7: 2021 m.
C8: EĮ | D8: Žuvo | E8: Sužeista | F8: EĮ dėl neblaivių vairuotojų kaltės | G8: EĮ dėl apsvaigusių nuo narkotinių ar kitų medžiagų vairuotojų kaltės | H8: EĮ | I8: Žuvo | J8: Sužeista | K8: EĮ dėl neblaivių vairuotojų kaltės | L8: EĮ dėl apsvaigusių nuo narkotinių ar kitų medžiagų vairuotojų kaltės | M8: EĮ | N8: Žuvo | O8: Sužeista | P8: EĮ dėl neblaivių vairuotojų kaltės | Q8: EĮ dėl apsvaigusių nuo narkotinių ar kitų medžiagų vairuotojų kaltės | R8: EĮ | S8: Žuvo | T8: Sužeista | U8: EĮ dėl neblaivių vairuotojų kaltės | V8: EĮ dėl apsvaigusių nuo narkotinių ar kitų medžiagų vairuotojų kaltės
A10: Alytaus | B10: Alytaus m. sav. | C10: 45 | D10: 3 | E10: 55 | F10: 1 | G10: 0 | H10: 45 | I10: 0 | J10: 54 | K10: 0 | L10: 0 | M10: 37 | N10: 0 | O10: 39 | P10: 1 | Q10: 0 | R10: 42 | S10: 0 | T10: 46 | U10: 2 | V10: 0
B11: Alytaus r. sav. | C11: 29 | D11: 3 | E11: 54 | F11: 2 | G11: 0 | H11: 32 | I11: 2 | J11: 34 | K11: 1 | L11: 0 | M11: 36 | N11: 3 | O11: 45 | P11: 2 | Q11: 0 | R11: 36 | S11: 4 | T11: 60 | U11: 3 | V11: 0
B12: Druskininkų sav. | C12: 8 | D12: 2 | E12: 7 | F12: 0 | G12: 0 | H12: 8 | I12: 1 | J12: 7 | K12: 0 | L12: 0 | M12: 11 | N12: 1 | O12: 11 | P12: 0 | Q12: 0 | R12: 10 | S12: 0 | T12: 13 | U12: 0 | V12: 0
B13: Lazdijų r. sav. | C13: 14 | D13: 0 | E13: 16 | F13: 1 | G13: 0 | H13: 10 | I13: 0 | J13: 14 | K13: 0 | L13: 0 | M13: 13 | N13: 2 | O13: 3 | P13: 2 | Q13: 0 | R13: 19 | S13: 1 | T13: 19 | U13: 1 | V13: 0
B14: Varėnos r. sav. | C14: 20 | D14: 1 | E14: 29 | F14: 2 | G14: 0 | H14: 27 | I14: 2 | J14: 29 | K14: 3 | L14: 0 | M14: 27 | N14: 1 | O14: 32 | P14: 0 | Q14: 0 | R14: 19 | S14: 3 | T14: 20 | U14: 0 | V14: 0
B15: Viso: | C15: =SUM(C10:C14) -> 116 | D15: 9 | E15: 161 | F15: 6 | G15: 0 | H15: 122 | I15: 5 | J15: 138 | K15: 4 | L15: 0 | M15: 124 | N15: 7 | O15: 130 | P15: 5 | Q15: 0 | R15: =SUM(R10:R14) -> 126 | S15: 8 | T15: 158 | U15: 6 | V15: 0
A16: Kauno | B16: Birštono sav. | C16: 4 | D16: 1 | E16: 8 | F16: 0 | G16: 0 | H16: 3 | I16: 0 | J16: 3 | K16: 0 | L16: 0 | M16: 6 | N16: 1 | O16: 6 | P16: 0 | Q16: 0 | R16: 5 | S16: 1 | T16: 4 | U16: 0 | V16: 0
B17: Jonavos r. sav. | C17: 17 | D17: 0 | E17: 23 | F17: 0 | G17: 0 | H17: 68 | I17: 4 | J17: 87 | K17: 1 | L17: 0 | M17: 59 | N17: 6 | O17: 66 | P17: 2 | Q17: 0 | R17: 43 | S17: 3 | T17: 50 | U17: 0 | V17: 0
B18: Kaišiadorių r. sav. | C18: 20 | D18: 1 | E18: 22 | F18: 3 | G18: 0 | H18: 39 | I18: 1 | J18: 50 | K18: 1 | L18: 0 | M18: 35 | N18: 2 | O18: 53 | P18: 0 | Q18: 0 | R18: 19 | S18: 0 | T18: 22 | U18: 5 | V18: 0
B19: Kauno m. sav. | C19: 382 | D19: 13 | E19: 422 | F19: 5 | G19: 0 | H19: 375 | I19: 13 | J19: 412 | K19: 5 | L19: 0 | M19: 301 | N19: 5 | O19: 326 | P19: 11 | Q19: 0 | R19: 374 | S19: 5 | T19: 415 | U19: 19 | V19: 0
B20: Kauno r. sav. | C20: 83 | D20: 6 | E20: 105 | F20: 4 | G20: 0 | H20: 88 | I20: 4 | J20: 120 | K20: 6 | L20: 0 | M20: 98 | N20: 7 | O20: 119 | P20: 3 | Q20: 0 | R20: 81 | S20: 7 | T20: 98 | U20: 10 | V20: 0
B21: Kėdainių r. sav. | C21: 43 | D21: 5 | E21: 46 | F21: 4 | G21: 0 | H21: 48 | I21: 9 | J21: 56 | K21: 3 | L21: 1 | M21: 41 | N21: 5 | O21: 42 | P21: 0 | Q21: 0 | R21: 48 | S21: 4 | T21: 57 | U21: 4 | V21: 0
B22: Prienų r. sav. | C22: 16 | D22: 1 | E22: 25 | F22: 0 | G22: 0 | H22: 33 | I22: 2 | J22: 49 | K22: 1 | L22: 0 | M22: 37 | N22: 3 | O22: 53 | P22: 0 | Q22: 0 | R22: 37 | S22: 1 | T22: 42 | U22: 5 | V22: 0
B23: Raseinių r. sav. | C23: 42 | D23: 7 | E23: 50 | F23: 1 | G23: 0 | H23: 48 | I23: 3 | J23: 59 | K23: 1 | L23: 0 | M23: 32 | N23: 3 | O23: 52 | P23: 2 | Q23: 0 | R23: 41 | S23: 3 | T23: 53 | U23: 3 | V23: 0
B24: Viso: | C24: =SUM(C16:C23) -> 607 | D24: 34 | E24: 701 | F24: 17 | G24: 0 | H24: 702 | I24: 36 | J24: 836 | K24: 18 | L24: 1 | M24: 609 | N24: 32 | O24: 717 | P24: 18 | Q24: 0 | R24: =SUM(R16:R23) -> 648 | S24: 24 | T24: 741 | U24: 46 | V24: 0
A25: Klaipėdos | B25: Klaipėdos m. sav. | C25: 168 | D25: 6 | E25: 183 | F25: 2 | G25: 0 | H25: 172 | I25: 5 | J25: 198 | K25: 2 | L25: 0 | M25: 163 | N25: 7 | O25: 171 | P25: 2 | Q25: 0 | R25: 153 | S25: 4 | T25: 168 | U25: 3 | V25: 0
B26: Klaipėdos r. sav. | C26: 46 | D26: 6 | E26: 65 | F26: 3 | G26: 0 | H26: 72 | I26: 6 | J26: 97 | K26: 5 | L26: 0 | M26: 79 | N26: 5 | O26: 90 | P26: 3 | Q26: 0 | R26: 67 | S26: 4 | T26: 85 | U26: 4 | V26: 0
B27: Kretingos r. sav. | C27: 36 | D27: 3 | E27: 45 | F27: 0 | G27: 0 | H27: 30 | I27: 3 | J27: 33 | K27: 2 | L27: 0 | M27: 30 | N27: 4 | O27: 35 | P27: 5 | Q27: 0 | R27: 40 | S27: 3 | T27: 54 | U27: 2 | V27: 0
B28: Neringos sav. | C28: 4 | D28: 0 | E28: 4 | F28: 0 | G28: 0 | H28: 3 | I28: 0 | J28: 6 | K28: 0 | L28: 0 | M28: 7 | N28: 0 | O28: 9 | P28: 0 | Q28: 0 | R28: 1 | S28: 0 | T28: 1 | U28: 0 | V28: 0
B29: Palangos m. sav. | C29: 30 | D29: 3 | E29: 43 | F29: 0 | G29: 0 | H29: 39 | I29: 1 | J29: 52 | K29: 1 | L29: 0 | M29: 40 | N29: 0 | O29: 46 | P29: 1 | Q29: 0 | R29: 34 | S29: 3 | T29: 38 | U29: 1 | V29: 0
B30: Skuodo r. sav. | C30: 9 | D30: 1 | E30: 11 | F30: 1 | G30: 0 | H30: 14 | I30: 0 | J30: 16 | K30: 1 | L30: 0 | M30: 10 | N30: 0 | O30: 10 | P30: 1 | Q30: 0 | R30: 10 | S30: 1 | T30: 16 | U30: 2 | V30: 0
B31: Šilutės r. sav. | C31: 51 | D31: 1 | E31: 57 | F31: 4 | G31: 0 | H31: 53 | I31: 6 | J31: 72 | K31: 3 | L31: 0 | M31: 48 | N31: 2 | O31: 59 | P31: 2 | Q31: 0 | R31: 59 | S31: 0 | T31: 69 | U31: 2 | V31: 0
B32: Viso: | C32: =SUM(C25:C31) -> 344 | D32: 20 | E32: 408 | F32: 10 | G32: 0 | H32: 383 | I32: 21 | J32: 474 | K32: 14 | L32: 0 | M32: 377 | N32: 18 | O32: 420 | P32: 14 | Q32: 0 | R32: =SUM(R25:R31) -> 364 | S32: 15 | T32: 431 | U32: 14 | V32: 0
A33: Marijampolės | B33: Kalvarijos sav. | C33: 6 | D33: 0 | E33: 10 | F33: 0 | G33: 0 | H33: 8 | I33: 1 | J33: 12 | K33: 0 | L33: 0 | M33: 5 | N33: 3 | O33: 2 | P33: 0 | Q33: 0 | R33: 6 | S33: 3 | T33: 5 | U33: 1 | V33: 0
B34: Kazlų Rūdos sav. | C34: 21 | D34: 0 | E34: 26 | F34: 0 | G34: 0 | H34: 6 | I34: 0 | J34: 9 | K34: 0 | L34: 0 | M34: 12 | N34: 2 | O34: 14 | P34: 0 | Q34: 0 | R34: 6 | S34: 0 | T34: 8 | U34: 1 | V34: 0
B35: Marijampolės sav. | C35: 44 | D35: 1 | E35: 50 | F35: 1 | G35: 0 | H35: 33 | I35: 6 | J35: 42 | K35: 3 | L35: 0 | M35: 39 | N35: 1 | O35: 40 | P35: 1 | Q35: 0 | R35: 30 | S35: 0 | T35: 36 | U35: 0 | V35: 0
B36: Šakių r. sav. | C36: 22 | D36: 2 | E36: 26 | F36: 2 | G36: 0 | H36: 37 | I36: 7 | J36: 50 | K36: 2 | L36: 0 | M36: 28 | N36: 2 | O36: 35 | P36: 0 | Q36: 0 | R36: 23 | S36: 2 | T36: 27 | U36: 1 | V36: 0
B37: Vilkaviškio r. sav. | C37: 23 | D37: 1 | E37: 30 | F37: 4 | G37: 0 | H37: 38 | I37: 1 | J37: 54 | K37: 2 | L37: 0 | M37: 23 | N37: 1 | O37: 24 | P37: 5 | Q37: 0 | R37: 21 | S37: 0 | T37: 24 | U37: 0 | V37: 0
B38: Viso: | C38: =SUM(C33:C37) -> 116 | D38: 4 | E38: 142 | F38: 7 | G38: 0 | H38: 122 | I38: 15 | J38: 167 | K38: 7 | L38: 0 | M38: 107 | N38: 9 | O38: 115 | P38: 6 | Q38: 0 | R38: =SUM(R33:R37) -> 86 | S38: 5 | T38: 100 | U38: 3 | V38: 0
A39: Panevėžio | B39: Panevėžio m. sav. | C39: 162 | D39: 3 | E39: 165 | F39: 7 | G39: 0 | H39: 159 | I39: 6 | J39: 168 | K39: 5 | L39: 0 | M39: 125 | N39: 4 | O39: 140 | P39: 5 | Q39: 0 | R39: 122 | S39: 5 | T39: 128 | U39: 7 | V39: 0
B40: Panevėžio r. sav. | C40: 62 | D40: 2 | E40: 79 | F40: 8 | G40: 0 | H40: 70 | I40: 6 | J40: 87 | K40: 7 | L40: 0 | M40: 82 | N40: 9 | O40: 94 | P40: 9 | Q40: 0 | R40: 57 | S40: 9 | T40: 71 | U40: 5 | V40: 0
B41: Biržų r. sav. | C41: 22 | D41: 4 | E41: 20 | F41: 1 | G41: 0 | H41: 17 | I41: 1 | J41: 19 | K41: 1 | L41: 0 | M41: 25 | N41: 5 | O41: 31 | P41: 3 | Q41: 0 | R41: 18 | S41: 1 | T41: 18 | U41: 0 | V41: 0
B42: Kupiškio r. sav. | C42: 15 | D42: 3 | E42: 14 | F42: 1 | G42: 0 | H42: 18 | I42: 0 | J42: 27 | K42: 0 | L42: 0 | M42: 13 | N42: 1 | O42: 17 | P42: 1 | Q42: 1 | R42: 10 | S42: 0 | T42: 12 | U42: 1 | V42: 0
B43: Pasvalio r. sav. | C43: 28 | D43: 2 | E43: 32 | F43: 5 | G43: 1 | H43: 37 | I43: 3 | J43: 46 | K43: 5 | L43: 0 | M43: 34 | N43: 6 | O43: 46 | P43: 4 | Q43: 0 | R43: 13 | S43: 3 | T43: 15 | U43: 2 | V43: 0
B44: Rokiškio r. sav. | C44: 21 | D44: 1 | E44: 28 | F44: 2 | G44: 0 | H44: 32 | I44: 4 | J44: 40 | K44: 6 | L44: 0 | M44: 23 | N44: 3 | O44: 23 | P44: 1 | Q44: 0 | R44: 21 | S44: 0 | T44: 25 | U44: 4 | V44: 0
B45: Viso: | C45: =SUM(C39:C44) -> 310 | D45: 15 | E45: 338 | F45: 24 | G45: 1 | H45: 333 | I45: 20 | J45: 387 | K45: 24 | L45: 0 | M45: 302 | N45: 28 | O45: 351 | P45: 23 | Q45: 1 | R45: =SUM(R39:R44) -> 241 | S45: 18 | T45: 269 | U45: 19 | V45: 0
A46: Šiaulių | B46: Šiaulių m. sav. | C46: 133 | D46: 1 | E46: 138 | F46: 3 | G46: 0 | H46: 115 | I46: 2 | J46: 132 | K46: 5 | L46: 0 | M46: 95 | N46: 1 | O46: 103 | P46: 3 | Q46: 0 | R46: 107 | S46: 2 | T46: 114 | U46: 3 | V46: 0
B47: Šiaulių r. sav. | C47: 47 | D47: 7 | E47: 53 | F47: 1 | G47: 0 | H47: 60 | I47: 5 | J47: 77 | K47: 0 | L47: 0 | M47: 54 | N47: 3 | O47: 64 | P47: 3 | Q47: 0 | R47: 40 | S47: 3 | T47: 52 | U47: 3 | V47: 0
B48: Akmenės r. sav. | C48: 8 | D48: 0 | E48: 10 | F48: 0 | G48: 0 | H48: 16 | I48: 0 | J48: 16 | K48: 1 | L48: 0 | M48: 14 | N48: 0 | O48: 17 | P48: 0 | Q48: 0 | R48: 8 | S48: 1 | T48: 12 | U48: 2 | V48: 0
B49: Joniškio r. sav. | C49: 20 | D49: 2 | E49: 22 | F49: 4 | G49: 0 | H49: 16 | I49: 1 | J49: 15 | K49: 1 | L49: 0 | M49: 10 | N49: 1 | O49: 13 | P49: 0 | Q49: 0 | R49: 18 | S49: 0 | T49: 26 | U49: 1 | V49: 0
B50: Kelmės r. sav. | C50: 34 | D50: 4 | E50: 41 | F50: 4 | G50: 0 | H50: 33 | I50: 2 | J50: 41 | K50: 2 | L50: 0 | M50: 24 | N50: 1 | O50: 29 | P50: 1 | Q50: 0 | R50: 20 | S50: 4 | T50: 21 | U50: 1 | V50: 0
B51: Pakruojo r. sav. | C51: 17 | D51: 0 | E51: 24 | F51: 2 | G51: 0 | H51: 11 | I51: 0 | J51: 14 | K51: 0 | L51: 0 | M51: 9 | N51: 0 | O51: 12 | P51: 0 | Q51: 0 | R51: 16 | S51: 2 | T51: 20 | U51: 3 | V51: 0
B52: Radviliškio r. sav. | C52: 34 | D52: 3 | E52: 37 | F52: 2 | G52: 0 | H52: 37 | I52: 3 | J52: 39 | K52: 2 | L52: 0 | M52: 46 | N52: 7 | O52: 58 | P52: 7 | Q52: 0 | R52: 35 | S52: 3 | T52: 40 | U52: 2 | V52: 0
B53: Viso: | C53: =SUM(C46:C52) -> 293 | D53: 17 | E53: 325 | F53: 16 | G53: 0 | H53: 288 | I53: 13 | J53: 334 | K53: 11 | L53: 0 | M53: 252 | N53: 13 | O53: 296 | P53: 14 | Q53: 0 | R53: =SUM(R46:R52) -> 244 | S53: 15 | T53: 285 | U53: 15 | V53: 0
A54: Tauragės | B54: Tauragės r. sav. | C54: 38 | D54: 0 | E54: 49 | F54: 2 | G54: 1 | H54: 45 | I54: 4 | J54: 66 | K54: 2 | L54: 0 | M54: 45 | N54: 3 | O54: 52 | P54: 3 | Q54: 0 | R54: 42 | S54: 1 | T54: 50 | U54: 0 | V54: 0
B55: Jurbarko r. sav. | C55: 11 | D55: 0 | E55: 17 | F55: 0 | G55: 0 | H55: 14 | I55: 2 | J55: 16 | K55: 0 | L55: 0 | M55: 11 | N55: 1 | O55: 11 | P55: 0 | Q55: 0 | R55: 11 | S55: 1 | T55: 13 | U55: 1 | V55: 0
B56: Pagėgių sav. | C56: 5 | D56: 0 | E56: 7 | F56: 0 | G56: 0 | H56: 4 | I56: 0 | J56: 4 | K56: 1 | L56: 0 | M56: 3 | N56: 1 | O56: 2 | P56: 2 | Q56: 0 | R56: 5 | S56: 0 | T56: 5 | U56: 0 | V56: 0
B57: Šilalės r. sav. | C57: 21 | D57: 1 | E57: 27 | F57: 2 | G57: 0 | H57: 19 | I57: 3 | J57: 21 | K57: 4 | L57: 0 | M57: 11 | N57: 1 | O57: 17 | P57: 0 | Q57: 0 | R57: 34 | S57: 7 | T57: 34 | U57: 3 | V57: 0
B58: Viso: | C58: =SUM(C54:C57) -> 75 | D58: 1 | E58: 100 | F58: 4 | G58: 1 | H58: 82 | I58: 9 | J58: 107 | K58: 7 | L58: 0 | M58: 70 | N58: 6 | O58: 82 | P58: 5 | Q58: 0 | R58: =SUM(R54:R57) -> 92 | S58: 9 | T58: 102 | U58: 4 | V58: 0
A59: Telšių | B59: Telšių r. sav. | C59: 42 | D59: 1 | E59: 50 | F59: 5 | G59: 0 | H59: 47 | I59: 1 | J59: 62 | K59: 5 | L59: 0 | M59: 51 | N59: 2 | O59: 63 | P59: 3 | Q59: 0 | R59: 38 | S59: 4 | T59: 50 | U59: 3 | V59: 0
B60: Mažeikių r. sav. | C60: 35 | D60: 1 | E60: 38 | F60: 2 | G60: 0 | H60: 53 | I60: 3 | J60: 62 | K60: 0 | L60: 0 | M60: 29 | N60: 3 | O60: 33 | P60: 4 | Q60: 0 | R60: 50 | S60: 1 | T60: 53 | U60: 1 | V60: 0
B61: Plungės r. sav. | C61: 50 | D61: 4 | E61: 79 | F61: 2 | G61: 0 | H61: 54 | I61: 4 | J61: 76 | K61: 1 | L61: 1 | M61: 45 | N61: 6 | O61: 51 | P61: 3 | Q61: 0 | R61: 33 | S61: 0 | T61: 44 | U61: 5 | V61: 0
B62: Rietavo sav. | C62: 4 | D62: 1 | E62: 3 | F62: 1 | G62: 0 | H62: 13 | I62: 0 | J62: 18 | K62: 0 | L62: 0 | M62: 12 | N62: 1 | O62: 12 | P62: 1 | Q62: 0 | R62: 15 | S62: 0 | T62: 26 | U62: 2 | V62: 0
B63: Viso: | C63: =SUM(C59:C62) -> 131 | D63: 7 | E63: 170 | F63: 10 | G63: 0 | H63: 167 | I63: 8 | J63: 218 | K63: 6 | L63: 1 | M63: 137 | N63: 12 | O63: 159 | P63: 11 | Q63: 0 | R63: =SUM(R59:R62) -> 136 | S63: 5 | T63: 173 | U63: 11 | V63: 0
A64: Utenos | B64: Utenos r. sav. | C64: 39 | D64: 1 | E64: 42 | F64: 2 | G64: 0 | H64: 35 | I64: 3 | J64: 39 | K64: 1 | L64: 0 | M64: 27 | N64: 3 | O64: 29 | P64: 3 | Q64: 0 | R64: 36 | S64: 4 | T64: 37 | U64: 0 | V64: 0
B65: Anykščių r. sav. | C65: 16 | D65: 1 | E65: 20 | F65: 2 | G65: 0 | H65: 17 | I65: 3 | J65: 16 | K65: 0 | L65: 0 | M65: 25 | N65: 0 | O65: 31 | P65: 3 | Q65: 0 | R65: 21 | S65: 1 | T65: 24 | U65: 3 | V65: 0
B66: Ignalinos r. sav. | C66: 9 | D66: 0 | E66: 14 | F66: 0 | G66: 0 | H66: 12 | I66: 0 | J66: 17 | K66: 0 | L66: 0 | M66: 10 | N66: 1 | O66: 9 | P66: 0 | Q66: 0 | R66: 8 | S66: 1 | T66: 8 | U66: 0 | V66: 0
B67: Molėtų r. sav. | C67: 21 | D67: 6 | E67: 28 | F67: 3 | G67: 0 | H67: 16 | I67: 2 | J67: 24 | K67: 1 | L67: 0 | M67: 14 | N67: 4 | O67: 22 | P67: 1 | Q67: 0 | R67: 16 | S67: 2 | T67: 19 | U67: 1 | V67: 0
B68: Visagino sav. | C68: 8 | D68: 0 | E68: 9 | F68: 0 | G68: 0 | H68: 6 | I68: 1 | J68: 5 | K68: 0 | L68: 0 | M68: 8 | N68: 0 | O68: 8 | P68: 0 | Q68: 0 | R68: 8 | S68: 0 | T68: 8 | U68: 0 | V68: 0
B69: Zarasų r. sav. | C69: 9 | D69: 0 | E69: 11 | F69: 0 | G69: 0 | H69: 10 | I69: 0 | J69: 10 | K69: 0 | L69: 0 | M69: 3 | N69: 1 | O69: 2 | P69: 0 | Q69: 0 | R69: 14 | S69: 1 | T69: 17 | U69: 2 | V69: 0
B70: Viso: | C70: =SUM(C64:C69) -> 102 | D70: 8 | E70: 124 | F70: 7 | G70: 0 | H70: 96 | I70: 9 | J70: 111 | K70: 2 | L70: 0 | M70: 87 | N70: 9 | O70: 101 | P70: 7 | Q70: 0 | R70: =SUM(R64:R69) -> 103 | S70: 9 | T70: 113 | U70: 6 | V70: 0
A71: Vilniaus | B71: Vilniaus m. sav. | C71: 604 | D71: 16 | E71: 669 | F71: 16 | G71: 1 | H71: 634 | I71: 21 | J71: 672 | K71: 17 | L71: 0 | M71: 520 | N71: 11 | O71: 562 | P71: 10 | Q71: 0 | R71: 551 | S71: 13 | T71: 582 | U71: 23 | V71: 0
B72: Vilniaus r. sav. | C72: 105 | D72: 20 | E72: 124 | F72: 14 | G72: 1 | H72: 121 | I72: 12 | J72: 150 | K72: 11 | L72: 0 | M72: 102 | N72: 13 | O72: 116 | P72: 8 | Q72: 0 | R72: 81 | S72: 7 | T72: 95 | U72: 10 | V72: 0
B73: Elektrėnų sav. | C73: 16 | D73: 2 | E73: 18 | F73: 1 | G73: 0 | H73: 10 | I73: 1 | J73: 17 | K73: 1 | L73: 0 | M73: 19 | N73: 3 | O73: 21 | P73: 2 | Q73: 0 | R73: 22 | S73: 1 | T73: 25 | U73: 1 | V73: 0
B74: Šalčininkų r. sav. | C74: 23 | D74: 3 | E74: 24 | F74: 1 | G74: 0 | H74: 28 | I74: 2 | J74: 39 | K74: 1 | L74: 0 | M74: 32 | N74: 5 | O74: 35 | P74: 2 | Q74: 0 | R74: 20 | S74: 4 | T74: 23 | U74: 5 | V74: 0
B75: Širvintų r. sav. | C75: 9 | D75: 1 | E75: 8 | F75: 0 | G75: 0 | H75: 14 | I75: 2 | J75: 19 | K75: 1 | L75: 0 | M75: 11 | N75: 2 | O75: 11 | P75: 2 | Q75: 0 | R75: 13 | S75: 2 | T75: 13 | U75: 1 | V75: 0
B76: Švenčionių r. sav. | C76: 12 | D76: 7 | E76: 15 | F76: 2 | G76: 0 | H76: 19 | I76: 4 | J76: 17 | K76: 2 | L76: 0 | M76: 14 | N76: 3 | O76: 13 | P76: 2 | Q76: 0 | R76: 16 | S76: 0 | T76: 23 | U76: 2 | V76: 0
B77: Trakų r. sav. | C77: 38 | D77: 7 | E77: 39 | F77: 1 | G77: 0 | H77: 45 | I77: 4 | J77: 53 | K77: 4 | L77: 0 | M77: 37 | N77: 2 | O77: 48 | P77: 1 | Q77: 0 | R77: 50 | S77: 9 | T77: 56 | U77: 5 | V77: 0
B78: Ukmergės r. sav. | C78: 24 | D78: 2 | E78: 24 | F78: 2 | G78: 0 | H78: 24 | I78: 4 | J78: 32 | K78: 4 | L78: 0 | M78: 26 | N78: 2 | O78: 26 | P78: 0 | Q78: 0 | R78: 15 | S78: 4 | T78: 22 | U78: 1 | V78: 0
B79: Viso: | C79: =SUM(C71:C78) -> 831 | D79: 58 | E79: 921 | F79: 37 | G79: 2 | H79: 895 | I79: 50 | J79: 999 | K79: 41 | L79: 0 | M79: 761 | N79: 41 | O79: 832 | P79: 27 | Q79: 0 | R79: =SUM(R71:R78) -> 768 | S79: 40 | T79: 839 | U79: 48 | V79: 0
B80: Iš viso | C80: =SUM(C15,C24,C32,C38,C45,C53,C58,C63,C70,C79) -> 2925 | D80: 173 | E80: 3390 | F80: =SUM(F15,F24,F32,F38,F45,F53,F58,F63,F70,F79) -> 138 | G80: 4 | H80: 3190 | I80: 186 | J80: 3771 | K80: 134 | L80: 2 | M80: 2826 | N80: 175 | O80: 3203 | P80: 130 | Q80: 1 | R80: =SUM(R15,R24,R32,R38,R45,R53,R58,R63,R70,R79) -> 2808 | S80: 148 | T80: 3211 | U80: 172 | V80: 0

Sheet Eismo įvykiai pagal dangą
A6: 2.9. Eismo įvykių ir nukentėjusiųjų pasiskirstymas valstybinės ir vietinės reikšmės keliuose pagal kelio dangos tipą, 2018–2021 m.
A7: Kelio danga | B7: 2018 m. | E7: 2019 m. | H7: 2020 m. | K7: 2021 m.
B8: Eismo įvykiai | C8: Žuvo | D8: Sužeista | E8: Eismo įvykiai | F8: Žuvo | G8: Sužeista | H8: Eismo įvykiai | I8: Žuvo | J8: Sužeista | K8: Eismo įvykiai | L8: Žuvo | M8: Sužeista
A9: Valstybinės reikšmės keliai:*
A10: asfaltbetonis, cementbetonis | B10: 1007 | C10: 113 | D10: 1308 | E10: 1225 | F10: 112 | G10: 1591 | H10: 987 | I10: 115 | J10: 1211 | K10: 1011 | L10: 105 | M10: 1274
A11: žvyrkeliai, grindinys | B11: 61 | C11: 5 | D11: 66 | E11: 72 | F11: 8 | G11: 79 | H11: 64 | I11: 12 | J11: 64 | K11: 41 | L11: 2 | M11: 45
A12: Vietiniai keliai ir gatvės:**
A13: asfaltbetonis, cementbetonis | B13: 1743 | C13: 49 | D13: 1891 | E13: 1732 | F13: 55 | G13: 1916 | H13: 1580 | I13: 39 | J13: 1703 | K13: 1584 | L13: 32 | M13: 1710
A14: žvyrkeliai, grindinys | B14: 114 | C14: 6 | D14: 125 | E14: 161 | F14: 11 | G14: 185 | H14: 195 | I14: 9 | J14: 225 | K14: 172 | L14: 9 | M14: 182
A15: Viso: | B15: =SUM(B10:B14) -> 2925 | C15: 173 | D15: 3390 | E15: 3190 | F15: 186 | G15: 3771 | H15: 2826 | I15: 175 | J15: 3203 | K15: =SUM(K10:K14) -> 2808 | L15: =SUM(L10:L14) -> 148 | M15: =SUM(M10:M14) -> 3211
A16: * valstybinės reikšmės keliai, priklausantys LAKD
A17: ** savivaldybėms priklausantys keliai ir gatvės
A21: 2.10. Eismo įvykių ir nukentėjusiųjų pasiskirstymas rajoniniuose keliuose pagal kelio dangos tipą, 2018–2021 m.
A22: Kelio danga | B22: 2018 m. | E22: 2019 m. | H22: 2020 m. | K22: 2021 m.
B23: Eismo įvykiai | C23: Žuvo | D23: Sužeista | E23: Eismo įvykiai | F23: Žuvo | G23: Sužeista | H23: Eismo įvykiai | I23: Žuvo | J23: Sužeista | K23: Eismo įvykiai | L23: Žuvo | M23: Sužeista
A24: Rajoniniai keliai:
A25: asfaltbetonis, cementbetonis | B25: 300 | C25: 33 | D25: 348 | E25: 350 | F25: 25 | G25: 442 | H25: 317 | I25: 31 | J25: 371 | K25: 338 | L25: 22 | M25: 420
A26: žvyrkeliai | B26: 53 | C26: 3 | D26: 60 | E26: 60 | F26: 7 | G26: 68 | H26: 57 | I26: 11 | J26: 58 | K26: 38 | L26: 2 | M26: 41
A27: grindinys | B27: 0 | C27: 0 | D27: 0 | E27: 3 | F27: 0 | G27: 3 | H27: 2 | I27: 0 | J27: 2 | K27: 0 | L27: 0 | M27: 0
A28: be dangos | B28: 2 | C28: 1 | D28: 1 | E28: 2 | F28: 0 | G28: 2 | H28: 1 | I28: 0 | J28: 1 | K28: 2 | L28: 0 | M28: 2
A29: Viso: | B29: =SUM(B25:B28) -> 355 | C29: =SUM(C25:C28) -> 37 | D29: 409 | E29: 415 | F29: 32 | G29: 515 | H29: 377 | I29: 42 | J29: 432 | K29: =SUM(K25:K28) -> 378 | L29: 24 | M29: 463
A33: 2.11. Eismo įvykių ir nukentėjusiųjų pasiskirstymas valstybinės reikšmės keliuose, 2018–2021 m.
A34: Kelio reikšmė | B34: 2018–2020 m. vidurkis | E34: 2021 m. | H34: Kelių ilgis, km | I34: 2021 m. 100-ui kelio kilometrų tenka:
B35: EĮ | C35: Žuvo | D35: Sužeista | E35: EĮ | F35: Žuvo | G35: Sužeista | I35: EĮ/100km | J35: Žuvusių/ 100km | K35: Sužeistų/ 100km
A36: Valstybinės reikšmės keliai
A37: Magistraliniai | B37: 279.3333333 | C37: 37 | D37: 371 | E37: 260 | F37: 39 | G37: 329 | H37: 1751.29 | I37: =E37*100/H37 -> 14.84619909 | J37: =F37*100/H37 -> 2.226929863 | K37: =G37*100/H37 -> 18.78615192
A38: Krašto | B38: 477 | C38: 47.66666667 | D38: 616.6666667 | E38: 414 | F38: 44 | G38: 527 | H38: 4927.66 | I38: =E38*100/H38 -> 8.401553679 | J38: =F38*100/H38 -> 0.8929187485 | K38: =G38*100/H38 -> 10.69473137
A39: Rajoniniai su patobulinta danga | B39: 324 | C39: 29.66666667 | D39: 388.6666667 | E39: 338 | F39: 22 | G39: 420 | H39: 8802.38 | I39: =E39*100/H39 -> 3.83987058 | J39: =F39*100/H39 -> 0.2499324046 | K39: =G39*100/H39 -> 4.771436816
A40: Rajoniniai su žvyro danga | B40: 58.33333333 | C40: 7.333333333 | D40: 63.33333333 | E40: 40 | F40: 2 | G40: 43 | H40: 5742.43 | I40: =E40*100/H40 -> 0.6965692224 | J40: =F40*100/H40 -> 0.03482846112 | K40: =G40*100/H40 -> 0.7488119141
A41: Viso: | B41: =SUM(B37:B40) -> 1138.666667 | C41: 121.6666667 | D41: 1439.666667 | E41: 1052 | F41: 107 | G41: =SUM(G37:G40) -> 1319 | H41: 21223.76

Sheet Eismo įvykiai pagal rūšis
A6: 3.1. Eismo įvykių pasiskirstymas pagal rūšis, 2018–2021 m.
A7: Eismo įvykių rūšys | B7: 2018 m. | E7: 2019 m. | H7: 2020 m. | K7: 2021 m.
B8: EĮ | C8: Žuvo | D8: Sužeista | E8: EĮ | F8: Žuvo | G8: Sužeista | H8: EĮ | I8: Žuvo | J8: Sužeista | K8: EĮ | L8: Žuvo | M8: Sužeista
A9: Susidūrimas | B9: =B27+B40 -> 961 | C9: 37 | D9: 1345 | E9: 1081 | F9: 59 | G9: 1531 | H9: 861 | I9: 64 | J9: 1157 | K9: 922 | L9: 59 | M9: 1214
A10: Susidūrimas su motociklu | B10: =B28+B41 -> 67 | C10: 9 | D10: 66 | E10: 91 | F10: 9 | G10: 98 | H10: 73 | I10: 5 | J10: 78 | K10: 91 | L10: 6 | M10: 100
A11: Susidūrimas su mopedu | B11: =B29+B42 -> 22 | C11: 1 | D11: 23 | E11: 24 | F11: 0 | G11: 28 | H11: 25 | I11: 1 | J11: 27 | K11: 33 | L11: 0 | M11: 39
A12: Susidūrimas su dviračiu | B12: =B30+B43 -> 240 | C12: 9 | D12: 237 | E12: 252 | F12: 11 | G12: 245 | H12: 297 | I12: 15 | J12: 293 | K12: 318 | L12: 8 | M12: 317
A13: Užvažiavimas ant pėsčiojo | B13: =B31+B44 -> 853 | C13: 69 | D13: 815 | E13: 819 | F13: 55 | G13: 782 | H13: 667 | I13: 50 | J13: 634 | K13: 599 | L13: 27 | M13: 592
A14: Užvažiavimas ant kliūties | B14: =B32+B45 -> 58 | C14: 8 | D14: 69 | E14: 76 | F14: 3 | G14: 91 | H14: 75 | I14: 4 | J14: 95 | K14: 60 | L14: 3 | M14: 63
A15: Užvažiavimas ant gyvūno | B15: =B33+B46 -> 36 | C15: 1 | D15: 48 | E15: 35 | F15: 2 | G15: 40 | H15: 17 | I15: 0 | J15: 18 | K15: 32 | L15: 2 | M15: 41
A16: Apvirtimas | B16: =B34+B47 -> 233 | C16: 18 | D16: 263 | E16: 293 | F16: 22 | G16: 364 | H16: 267 | I16: 21 | J16: 302 | K16: 257 | L16: 23 | M16: 307
A17: Susidūrimas su stovinčia TP | B17: =B35+B48 -> 34 | C17: 2 | D17: 40 | E17: 44 | F17: 2 | G17: 57 | H17: 59 | I17: 1 | J17: 65 | K17: 62 | L17: 2 | M17: 73
A18: Susidūrimas su bėgine TP | B18: =B36+B49 -> 0 | C18: 0 | D18: 0 | E18: 0 | F18: 0 | G18: 0 | H18: 1 | I18: 0 | J18: 1 | K18: 3 | L18: 1 | M18: 2
A19: Kiti eismo įvykiai: | B19: 421 | C19: 19 | D19: 484 | E19: 475 | F19: 23 | G19: 535 | H19: 484 | I19: 14 | J19: 533 | K19: 431 | L19: 17 | M19: 463
A20: Viso: | B20: =SUM(B9:B19) -> 2925 | C20: 173 | D20: 3390 | E20: 3190 | F20: 186 | G20: 3771 | H20: 2826 | I20: 175 | J20: 3203 | K20: 2808 | L20: 148 | M20: 3211
A23: 3.2. Eismo įvykių pasiskirstymas pagal rūšis užmiestyje ir gyvenvietėje, 2018–2021 m.
A24: Eismo įvykių rūšys | B24: 2018 m. | E24: 2019 m. | H24: 2020 m. | K24: 2021 m.
B25: EĮ | C25: Žuvo | D25: Sužeista | E25: EĮ | F25: Žuvo | G25: Sužeista | H25: EĮ | I25: Žuvo | J25: Sužeista | K25: EĮ | L25: Žuvo | M25: Sužeista
A26: Užmiestyje
A27: Susidūrimas | B27: 270 | C27: 30 | D27: 460 | E27: 337 | F27: 39 | G27: 554 | H27: 312 | I27: 47 | J27: 473 | K27: 298 | L27: 39 | M27: 436
A28: Susidūrimas su motociklu | B28: 14 | C28: 5 | D28: 11 | E28: 13 | F28: 3 | G28: 13 | H28: 14 | I28: 0 | J28: 17 | K28: 19 | L28: 3 | M28: 19
A29: Susidūrimas su mopedu | B29: 3 | C29: 1 | D29: 4 | E29: 6 | F29: 0 | G29: 8 | H29: 4 | I29: 1 | J29: 3 | K29: 3 | L29: 0 | M29: 4
A30: Susidūrimas su dviračiu | B30: 29 | C30: 5 | D30: 25 | E30: 32 | F30: 7 | G30: 25 | H30: 32 | I30: 5 | J30: 29 | K30: 29 | L30: 3 | M30: 26
A31: Užvažiavimas ant pėsčiojo | B31: 63 | C31: 28 | D31: 39 | E31: 49 | F31: 17 | G31: 34 | H31: 47 | I31: 22 | J31: 26 | K31: 28 | L31: 8 | M31: 24
A32: Užvažiavimas ant kliūties | B32: 19 | C32: 5 | D32: 17 | E32: 21 | F32: 3 | G32: 25 | H32: 23 | I32: 4 | J32: 27 | K32: 19 | L32: 2 | M32: 17
A33: Užvažiavimas ant gyvūno | B33: 34 | C33: 1 | D33: 46 | E33: 29 | F33: 2 | G33: 33 | H33: 14 | I33: 0 | J33: 15 | K33: 24 | L33: 2 | M33: 32
A34: Apvirtimas | B34: 159 | C34: 11 | D34: 184 | E34: 190 | F34: 15 | G34: 233 | H34: 166 | I34: 17 | J34: 187 | K34: 140 | L34: 13 | M34: 177
A35: Susidūrimas su stovinčia TP | B35: 8 | C35: 1 | D35: 12 | E35: 14 | F35: 1 | G35: 20 | H35: 15 | I35: 0 | J35: 19 | K35: 15 | L35: 1 | M35: 23
A36: Susidūrimas su bėgine TP | B36: 0 | C36: 0 | D36: 0 | E36: 0 | F36: 0 | G36: 0 | H36: 1 | I36: 0 | J36: 1 | K36: 0 | L36: 0 | M36: 0
A37: Kiti eismo įvykiai : | B37: 144 | C37: 14 | D37: 169 | E37: 156 | F37: 9 | G37: 180 | H37: 137 | I37: 8 | J37: 156 | K37: 121 | L37: 7 | M37: 142
A38: Viso: | B38: =SUM(B27:B37) -> 743 | C38: 101 | D38: 967 | E38: 847 | F38: 96 | G38: 1125 | H38: 765 | I38: 104 | J38: 953 | K38: 696 | L38: 78 | M38: 900
A39: Gyvenvietėje
A40: Susidūrimas | B40: 691 | C40: 7 | D40: 885 | E40: 744 | F40: 20 | G40: 977 | H40: 549 | I40: 17 | J40: 684 | K40: 624 | L40: 20 | M40: 778
A41: Susidūrimas su motociklu | B41: 53 | C41: 4 | D41: 55 | E41: 78 | F41: 6 | G41: 85 | H41: 59 | I41: 5 | J41: 61 | K41: 72 | L41: 3 | M41: 81
A42: Susidūrimas su mopedu | B42: 19 | C42: 0 | D42: 19 | E42: 18 | F42: 0 | G42: 20 | H42: 21 | I42: 0 | J42: 24 | K42: 30 | L42: 0 | M42: 35
A43: Susidūrimas su dviračiu | B43: 211 | C43: 4 | D43: 212 | E43: 220 | F43: 4 | G43: 220 | H43: 265 | I43: 10 | J43: 264 | K43: 289 | L43: 5 | M43: 291
A44: Užvažiavimas ant pėsčiojo | B44: 790 | C44: 41 | D44: 776 | E44: 770 | F44: 38 | G44: 748 | H44: 620 | I44: 28 | J44: 608 | K44: 571 | L44: 19 | M44: 568
A45: Užvažiavimas ant kliūties | B45: 39 | C45: 3 | D45: 52 | E45: 55 | F45: 0 | G45: 66 | H45: 52 | I45: 0 | J45: 68 | K45: 41 | L45: 1 | M45: 46
A46: Užvažiavimas ant gyvūno | B46: 2 | C46: 0 | D46: 2 | E46: 6 | F46: 0 | G46: 7 | H46: 3 | I46: 0 | J46: 3 | K46: 8 | L46: 0 | M46: 9
A47: Apvirtimas | B47: 74 | C47: 7 | D47: 79 | E47: 103 | F47: 7 | G47: 131 | H47: 101 | I47: 4 | J47: 115 | K47: 117 | L47: 10 | M47: 130
A48: Susidūrimas su stovinčia TP | B48: 26 | C48: 1 | D48: 28 | E48: 30 | F48: 1 | G48: 37 | H48: 44 | I48: 1 | J48: 46 | K48: 47 | L48: 1 | M48: 50
A49: Susidūrimas su bėgine TP | B49: 0 | C49: 0 | D49: 0 | E49: 0 | F49: 0 | G49: 0 | H49: 0 | I49: 0 | J49: 0 | K49: 3 | L49: 1 | M49: 2
A50: Kiti eismo įvykiai: | B50: 277 | C50: 5 | D50: 315 | E50: 319 | F50: 14 | G50: 355 | H50: 347 | I50: 6 | J50: 377 | K50: 310 | L50: 10 | M50: 321
A51: Viso: | B51: =SUM(B40:B50) -> 2182 | C51: 72 | D51: 2423 | E51: 2343 | F51: 90 | G51: 2646 | H51: 2061 | I51: 71 | J51: 2250 | K51: 2112 | L51: 70 | M51: 2311
A52: Iš viso : | B52: =B38+B51 -> 2925 | C52: 173 | D52: 3390 | E52: 3190 | F52: 186 | G52: 3771 | H52: 2826 | I52: 175 | J52: 3203 | K52: 2808 | L52: 148 | M52: 3211

Sheet Eismo įvykiai pagal pobūdį
B6: 3.3. Eismo įvykių pasiskirstymas pagal vietą ir aplinkybes, 2018–2021 m.
B7: Eismo įvykiai | C7: 2018 m. | F7: 2019 m. | I7: 2020 m. | L7: 2021 m. | O7: 2021 m. 100-ui EĮ teko
C8: EĮ | D8: Žuvo | E8: Sužeista | F8: EĮ | G8: Žuvo | H8: Sužeista | I8: EĮ | J8: Žuvo | K8: Sužeista | L8: EĮ | M8: Žuvo | N8: Sužeista | O8: Žuvusių | P8: Sužeistų
B9: Nuvažiavimas nuo kelio | C9: 325 | D9: 26 | E9: 364 | F9: 407 | G9: 34 | H9: 507 | I9: 359 | J9: 23 | K9: 433 | L9: 321 | M9: 22 | N9: 375 | O9: =M9*100/L9 -> 6.853582555 | P9: =N9*100/L9 -> 116.8224299
B10: Nuvažiavimas nuo kelio atsitrenkiant į medį | C10: 48 | D10: 8 | E10: 63 | F10: 24 | G10: 3 | H10: 32 | I10: 51 | J10: 7 | K10: 56 | L10: 47 | M10: 9 | N10: 56 | O10: =M10*100/L10 -> 19.14893617 | P10: =N10*100/L10 -> 119.1489362
B11: Priešpriešiniai susidūrimai | C11: 196 | D11: 32 | E11: 337 | F11: 190 | G11: 32 | H11: 315 | I11: 191 | J11: 36 | K11: 301 | L11: 221 | M11: 39 | N11: 319 | O11: 17.64705882 | P11: 144.3438914
B12: Susidūrimai judant ta pačia kryptimi | C12: 286 | D12: 9 | E12: 341 | F12: 306 | G12: 15 | H12: 386 | I12: 279 | J12: 14 | K12: 331 | L12: 279 | M12: 13 | N12: 329 | O12: 4.659498208 | P12: 117.921147
B13: Eina šaligatviu, pėsčiųjų taku | C13: 28 | D13: 1 | E13: 29 | F13: 34 | G13: 2 | H13: 34 | I13: 37 | J13: 1 | K13: 36 | L13: 40 | M13: 0 | N13: 43 | O13: 0 | P13: 107.5
B14: Kiti EĮ su visuomeninio TP keleiviais | C14: 113 | D14: 0 | E14: 144 | F14: 117 | G14: 0 | H14: 126 | I14: 108 | J14: 0 | K14: 114 | L14: 109 | M14: 0 | N14: 111 | O14: 0 | P14: 101.8348624
B15: TP susidūrimas sankryžoje | C15: 743 | D15: 17 | E15: 928 | F15: 848 | G15: 30 | H15: 1080 | I15: 693 | J15: 30 | K15: 819 | L15: =371+401 -> 772 | M15: =19+7 -> 26 | N15: =447+477 -> 924 | O15: 3.367875648 | P15: 119.6891192
B16: Užvažiavimas ant gyvūno | C16: 36 | D16: 1 | E16: 48 | F16: 35 | G16: 2 | H16: 40 | I16: 17 | J16: 0 | K16: 18 | L16: 31 | M16: 2 | N16: 40 | O16: 6.451612903 | P16: 129.0322581
B17: Apvirtimas | C17: 37 | D17: 2 | E17: 39 | F17: 59 | G17: 4 | H17: 63 | I17: 66 | J17: 2 | K17: 73 | L17: 60 | M17: 2 | N17: 67 | O17: 3.333333333 | P17: 111.6666667
B18: Užvažiavimas ant pėsčiojo | C18: 839 | D18: 68 | E18: 801 | F18: 805 | G18: 54 | H18: 768 | I18: 653 | J18: 51 | K18: 619 | L18: 589 | M18: 27 | N18: 580 | O18: 4.584040747 | P18: 98.47198642
B19: Kiti susidūrimai | C19: 135 | D19: 6 | E19: 154 | F19: 194 | G19: 4 | H19: 232 | I19: 182 | J19: 6 | K19: 202 | L19: 184 | M19: 4 | N19: 201 | O19: 2.173913043 | P19: 109.2391304
B20: Kiti eismo įvykiai | C20: 139 | D20: 3 | E20: 142 | F20: 171 | G20: 6 | H20: 188 | I20: 190 | J20: 5 | K20: 201 | L20: 155 | M20: 4 | N20: 166 | O20: 2.580645161 | P20: 107.0967742
B21: Viso: | C21: =SUM(C9:C20) -> 2925 | D21: =SUM(D9:D20) -> 173 | E21: 3390 | F21: 3190 | G21: 186 | H21: 3771 | I21: 2826 | J21: 175 | K21: 3203 | L21: 2808 | M21: 148 | N21: 3211

Sheet Eismo įvykiai pagal paros metą
A6: 3.4. Eismo įvykių ir nukentėjusių pasiskirstymas šviesiu ir tamsiu paros metu, 2018–2021 m.
A7: Paros metas | C7: 2018 m. | F7: 2019 m. | I7: 2020 m. | L7: 2021 m.
C8: EĮ | D8: Žuvo | E8: Sužeista | F8: EĮ | G8: Žuvo | H8: Sužeista | I8: EĮ | J8: Žuvo | K8: Sužeista | L8: EĮ | M8: Žuvo | N8: Sužeista
A9: Diena (šviesu) | B9: sk. | C9: 2084 | D9: 92 | E9: 2403 | F9: 2248 | G9: 103 | H9: 2653 | I9: 2016 | J9: 104 | K9: 2310 | L9: 2131 | M9: 91 | N9: 2435
B10: % | C10: =C9/C15 -> 0.7124786325 | D10: 0.5317919075 | E10: 0.7088495575 | F10: 0.7047021944 | G10: 0.5537634409 | H10: 0.7035269159 | I10: 0.7133757962 | J10: 0.5942857143 | K10: 0.7211988761 | L10: 0.7589031339 | M10: 0.6148648649 | N10: 0.7583307381
A11: Sutemos (prieblanda) | B11: sk. | C11: 214 | D11: 9 | E11: 268 | F11: 207 | G11: 13 | H11: 242 | I11: 193 | J11: 14 | K11: 221 | L11: 193 | M11: 3 | N11: 212
B12: % | C12: =C11/C15 -> 0.07316239316 | D12: 0.05202312139 | E12: 0.0790560472 | F12: 0.06489028213 | G12: 0.06989247312 | H12: 0.06417395916 | I12: 0.06829440906 | J12: 0.08 | K12: 0.06899781455 | L12: 0.06873219373 | M12: 0.02027027027 | N12: 0.06602304578
A13: Naktis (tamsu) | B13: sk. | C13: 627 | D13: 72 | E13: 719 | F13: 735 | G13: 70 | H13: 876 | I13: 617 | J13: 57 | K13: 672 | L13: 484 | M13: 54 | N13: 564
B14: % | C14: =C13/C15 -> 0.2143589744 | D14: 0.4161849711 | E14: 0.2120943953 | F14: 0.2304075235 | G14: 0.376344086 | H14: 0.2322991249 | I14: 0.2183297948 | J14: 0.3257142857 | K14: 0.2098033094 | L14: 0.1723646724 | M14: 0.3648648649 | N14: 0.1756462161
A15: Viso: | B15: sk. | C15: =C9+C11+C13 -> 2925 | D15: 173 | E15: 3390 | F15: 3190 | G15: 186 | H15: 3771 | I15: 2826 | J15: 175 | K15: 3203 | L15: 2808 | M15: 148 | N15: 3211
C18: 3.5. Eismo įvykių ir nukentėjusiųjų juose pasiskirstymas pagal valandas 2021 m.
C19: Valanda | D19: EĮ | E19: Žuvo | F19: Sužeista | G19: EĮ | H19: Žuvo | I19: Sužeista
C21: 0 | D21: 39 | E21: 3 | F21: 50 | G21: =D21/$D$45 -> 0.01388888889 | H21: =E21/$E$45 -> 0.02027027027 | I21: =F21/$F$45 -> 0.01557147306
C22: 1 | D22: 19 | E22: 2 | F22: 20 | G22: =D22/$D$45 -> 0.006766381766 | H22: =E22/$E$45 -> 0.01351351351 | I22: =F22/$F$45 -> 0.006228589225
C23: 2 | D23: 10 | E23: 0 | F23: 12 | G23: 0.003561253561 | H23: 0 | I23: 0.003737153535
C24: 3 | D24: 16 | E24: 1 | F24: 23 | G24: 0.005698005698 | H24: 0.006756756757 | I24: 0.007162877608
C25: 4 | D25: 13 | E25: 2 | F25: 14 | G25: 0.00462962963 | H25: 0.01351351351 | I25: 0.004360012457
C26: 5 | D26: 17 | E26: 0 | F26: 20 | G26: 0.006054131054 | H26: 0 | I26: 0.006228589225
C27: 6 | D27: 35 | E27: 3 | F27: 34 | G27: 0.01246438746 | H27: 0.02027027027 | I27: 0.01058860168
C28: 7 | D28: 139 | E28: 6 | F28: 155 | G28: 0.0495014245 | H28: 0.04054054054 | I28: 0.04827156649
C29: 8 | D29: 119 | E29: 3 | F29: 132 | G29: 0.04237891738 | H29: 0.02027027027 | I29: 0.04110868888
C30: 9 | D30: 107 | E30: 2 | F30: 123 | G30: 0.03810541311 | H30: 0.01351351351 | I30: 0.03830582373
C31: 10 | D31: 130 | E31: 7 | F31: 142 | G31: 0.0462962963 | H31: 0.0472972973 | I31: 0.04422298349
C32: 11 | D32: 169 | E32: 8 | F32: 191 | G32: 0.06018518519 | H32: 0.05405405405 | I32: 0.05948302709
C33: 12 | D33: 182 | E33: 6 | F33: 206 | G33: 0.06481481481 | H33: 0.04054054054 | I33: 0.06415446901
C34: 13 | D34: 187 | E34: 8 | F34: 209 | G34: 0.0665954416 | H34: 0.05405405405 | I34: 0.0650887574
C35: 14 | D35: 193 | E35: 9 | F35: 238 | G35: 0.06873219373 | H35: 0.06081081081 | I35: 0.07412021177
C36: 15 | D36: 225 | E36: 10 | F36: 261 | G36: 0.08012820513 | H36: 0.06756756757 | I36: 0.08128308938
C37: 16 | D37: 253 | E37: 16 | F37: 298 | G37: 0.0900997151 | H37: 0.1081081081 | I37: 0.09280597945
C38: 17 | D38: 258 | E38: 12 | F38: 290 | G38: 0.09188034188 | H38: 0.08108108108 | I38: 0.09031454376
C39: 18 | D39: 207 | E39: 11 | F39: 225 | G39: 0.07371794872 | H39: 0.07432432432 | I39: 0.07007162878
C40: 19 | D40: 169 | E40: 7 | F40: 197 | G40: 0.06018518519 | H40: 0.0472972973 | I40: 0.06135160386
C41: 20 | D41: 125 | E41: 9 | F41: 146 | G41: 0.04451566952 | H41: 0.06081081081 | I41: 0.04546870134
C42: 21 | D42: 96 | E42: 7 | F42: 106 | G42: 0.03418803419 | H42: 0.0472972973 | I42: 0.03301152289
C43: 22 | D43: 61 | E43: 5 | F43: 73 | G43: 0.02172364672 | H43: 0.03378378378 | I43: 0.02273435067
C44: 23 | D44: 39 | E44: 11 | F44: 46 | G44: 0.01388888889 | H44: 0.07432432432 | I44: 0.01432575522
C45: Iš viso | D45: =SUM(D21:D44) -> 2808 | E45: =SUM(E21:E44) -> 148 | F45: 3211 | G45: 1 | H45: 1 | I45: 1

Sheet Eismo įvykiai pagal oro sąlygas
A6: 3.6. Eismo įvykių ir nukentėjusiųjų juose pasiskirstymas pagal oro sąlygas, 2018– 2021 m.
A7: Metai | C7: Oro sąlygos | K7: Viso
C8: Giedra | D8: Apsiniaukę | E8: Rūkas | F8: Lietus | G8: Sniegas, kruša | H8: Stiprus vėjas | I8: Lijundra | J8: Pūga
A9: 2018 m. | B9: EĮ | C9: 1723 | D9: 808 | E9: 42 | F9: 213 | G9: 103 | H9: 5 | I9: 24 | J9: 7 | K9: =SUM(C9:J9) -> 2925
B10: Žuvo | C10: 92 | D10: 46 | E10: 5 | F10: 16 | G10: 11 | H10: 0 | I10: 1 | J10: 2 | K10: =SUM(C10:J10) -> 173
B11: Sužeista | C11: 1988 | D11: 928 | E11: 52 | F11: 241 | G11: 142 | H11: 5 | I11: 25 | J11: 9 | K11: 3390
A12: 2019 m. | B12: EĮ | C12: 1869 | D12: 900 | E12: 26 | F12: 276 | G12: 73 | H12: 9 | I12: 33 | J12: 4 | K12: 3190
B13: Žuvo | C13: 96 | D13: 55 | E13: 7 | F13: 17 | G13: 10 | H13: 0 | I13: 1 | J13: 0 | K13: 186
B14: Sužeista | C14: 2233 | D14: 1032 | E14: 29 | F14: 327 | G14: 98 | H14: 11 | I14: 35 | J14: 6 | K14: 3771
A15: 2020 m. | B15: EĮ | C15: 1711 | D15: 804 | E15: 13 | F15: 255 | G15: 15 | H15: 5 | I15: 23 | J15: 0 | K15: 2826
B16: Žuvo | C16: 93 | D16: 59 | E16: 3 | F16: 17 | G16: 0 | H16: 1 | I16: 2 | J16: 0 | K16: 175
B17: Sužeista | C17: 1950 | D17: 901 | E17: 19 | F17: 283 | G17: 19 | H17: 4 | I17: 27 | J17: 0 | K17: 3203
A18: 2021 m. | B18: EĮ | C18: 1708 | D18: 740 | E18: 24 | F18: 217 | G18: 75 | H18: 8 | I18: 33 | J18: 3 | K18: 2808
B19: Žuvo | C19: 78 | D19: 47 | E19: 6 | F19: 8 | G19: 9 | H19: 0 | I19: 0 | J19: 0 | K19: 148
B20: Sužeista | C20: 1941 | D20: 820 | E20: 32 | F20: 270 | G20: 90 | H20: 11 | I20: 43 | J20: 4 | K20: 3211
A21: Vidutiniškai per 2018-2021 m. | B21: EĮ | C21: =(C9+C12+C15+C18)/4 -> 1752.75 | D21: =(D9+D12+D15+D18)/4 -> 813 | E21: 26.25 | F21: 240.25 | G21: 66.5 | H21: 6.75 | I21: 28.25 | J21: 3.5
B22: Žuvo | C22: =(C10+C13+C16+C19)/4 -> 89.75 | D22: 51.75 | E22: 5.25 | F22: 14.5 | G22: 7.5 | H22: 0.25 | I22: 1 | J22: 0.5
B23: Sužeista | C23: =(C11+C14+C17+C20)/4 -> 2028 | D23: 920.25 | E23: 33 | F23: 280.25 | G23: 87.25 | H23: 7.75 | I23: 32.5 | J23: 4.75
A25: 3.7. Eismo įvykių ir nukentėjusiųjų juose pasiskirstymas pagal kelio dangos būklę, 2018– 2021 m.
A26: Metai | C26: Kelio dangos būklė | H26: Viso
C27: Sausa | D27: Šlapia | E27: Apledėjusi | F27: Apsnigta | G27: Užteršta
A28: 2018 m. | B28: EĮ | C28: 1939 | D28: 741 | E28: 78 | F28: 165 | G28: 2 | H28: =SUM(C28:G28) -> 2925
B29: Žuvo | C29: 107 | D29: 49 | E29: 4 | F29: 13 | G29: 0 | H29: =SUM(C29:G29) -> 173
B30: Sužeista | C30: 2226 | D30: 830 | E30: 108 | F30: 223 | G30: 3 | H30: 3390
A31: 2019 m. | B31: EĮ | C31: 2140 | D31: 848 | E31: 88 | F31: 112 | G31: 2 | H31: 3190
B32: Žuvo | C32: 118 | D32: 52 | E32: 3 | F32: 13 | G32: 0 | H32: 186
B33: Sužeista | C33: 2532 | D33: 986 | E33: 110 | F33: 141 | G33: 2 | H33: 3771
A34: 2020 m. | B34: EĮ | C34: 1993 | D34: 762 | E34: 53 | F34: 17 | G34: 1 | H34: 2826
B35: Žuvo | C35: 114 | D35: 53 | E35: 5 | F35: 3 | G35: 0 | H35: 175
B36: Sužeista | C36: 2244 | D36: 860 | E36: 68 | F36: 30 | G36: 1 | H36: 3203
A37: 2021 m. | B37: EĮ | C37: 1859 | D37: 721 | E37: 70 | F37: 156 | G37: 2 | H37: 2808
B38: Žuvo | C38: 87 | D38: 44 | E38: 4 | F38: 13 | G38: 0 | H38: 148
B39: Sužeista | C39: 2106 | D39: 838 | E39: 75 | F39: 189 | G39: 3 | H39: 3211
A40: Vidutiniškai per 2018-2021 m. | B40: EĮ | C40: =(C28+C31+C34+C37)/4 -> 1982.75 | D40: =(D28+D31+D34+D37)/4 -> 768 | E40: 72.25 | F40: 112.5 | G40: 1.75
B41: Žuvo | C41: =(C29+C32+C35+C38)/4 -> 106.5 | D41: 49.5 | E41: 4 | F41: 10.5 | G41: 0
B42: Sužeista | C42: =(C30+C33+C36+C39)/4 -> 2277 | D42: 878.5 | E42: 90.25 | F42: 145.75 | G42: 2.25

Sheet Eismo įvykiai pagal metų laikus
A6: 3.8. Eismo įvykių ir nukentėjusiųjų juose pasiskirstymas pagal metų laikus
A7: Metų laikas | B7: 2018 m. | E7: 2019 m. | H7: 2021 m. | K7: 2021 m.
B8: EĮ | C8: Žuvo | D8: Sužeista | E8: EĮ | F8: Žuvo | G8: Sužeista | H8: EĮ | I8: Žuvo | J8: Sužeista | K8: EĮ | L8: Žuvo | M8: Sužeista
A9: Žiema | B9: 637 | C9: 51 | D9: 721 | E9: 661 | F9: 50 | G9: 764 | H9: 624 | I9: 48 | J9: 688 | K9: 417 | L9: 32 | M9: 489
A10: Pavasaris | B10: 710 | C10: 41 | D10: 828 | E10: 706 | F10: 24 | G10: 837 | H10: 470 | I10: 33 | J10: 527 | K10: 614 | L10: 28 | M10: 679
A11: Vasara | B11: 821 | C11: 41 | D11: 977 | E11: 981 | F11: 65 | G11: 1167 | H11: 958 | I11: 36 | J11: 1140 | K11: 1017 | L11: 42 | M11: 1187
A12: Ruduo | B12: 757 | C12: 40 | D12: 864 | E12: 842 | F12: 47 | G12: 1003 | H12: 774 | I12: 58 | J12: 848 | K12: 760 | L12: 46 | M12: 856
A13: Viso: | B13: =SUM(B9:B12) -> 2925 | C13: =SUM(C9:C12) -> 173 | D13: 3390 | E13: 3190 | F13: 186 | G13: 3771 | H13: 2826 | I13: 175 | J13: 3203 | K13: 2808 | L13: 148 | M13: 3211

Sheet Eismo įvykiai pagal mėnesius
A6: 3.9. Eismo įvykių ir juose nukentėjusiųjų pasiskirstymas pagal mėnesius ir ketvirčius
A7: Mėnuo | B7: 2018 m. | E7: 2019 m. | H7: 2020 m. | K7: 2021 m.
B8: EĮ | C8: Žuvo | D8: Sužeista | E8: EĮ | F8: Žuvo | G8: Sužeista | H8: EĮ | I8: Žuvo | J8: Sužeista | K8: EĮ | L8: Žuvo | M8: Sužeista
A9: Sausis | B9: 225 | C9: 25 | D9: 245 | E9: 202 | F9: 22 | G9: 246 | H9: 239 | I9: 19 | J9: 266 | K9: 97 | L9: 16 | M9: 108
A10: Vasaris | B10: 139 | C10: 10 | D10: 157 | E10: 169 | F10: 10 | G10: 195 | H10: 231 | I10: 9 | J10: 263 | K10: 100 | L10: 8 | M10: 113
A11: Kovas | B11: 172 | C11: 11 | D11: 209 | E11: 187 | F11: 12 | G11: 210 | H11: 147 | I11: 13 | J11: 165 | K11: 159 | L11: 8 | M11: 174
A12: Balandis | B12: 214 | C12: 12 | D12: 255 | E12: 256 | F12: 7 | G12: 312 | H12: 124 | I12: 2 | J12: 147 | K12: 193 | L12: 7 | M12: 215
A13: Gegužė | B13: 324 | C13: 18 | D13: 364 | E13: 263 | F13: 5 | G13: 315 | H13: 199 | I13: 18 | J13: 215 | K13: 262 | L13: 13 | M13: 290
A14: Birželis | B14: 256 | C14: 10 | D14: 305 | E14: 354 | F14: 19 | G14: 429 | H14: 298 | I14: 10 | J14: 344 | K14: 362 | L14: 9 | M14: 425
A15: Liepa | B15: 258 | C15: 15 | D15: 307 | E15: 303 | F15: 24 | G15: 361 | H15: 325 | I15: 12 | J15: 381 | K15: 340 | L15: 14 | M15: 383
A16: Rugpjūtis | B16: 307 | C16: 16 | D16: 365 | E16: 324 | F16: 22 | G16: 377 | H16: 335 | I16: 14 | J16: 415 | K16: 315 | L16: 19 | M16: 379
A17: Rugsėjis | B17: 280 | C17: 15 | D17: 311 | E17: 303 | F17: 18 | G17: 367 | H17: 339 | I17: 25 | J17: 386 | K17: 259 | L17: 10 | M17: 290
A18: Spalis | B18: 258 | C18: 13 | D18: 299 | E18: 271 | F18: 19 | G18: 314 | H18: 251 | I18: 13 | J18: 272 | K18: 277 | L18: 18 | M18: 321
A19: Lapkritis | B19: 219 | C19: 12 | D19: 254 | E19: 268 | F19: 10 | G19: 322 | H19: 184 | I19: 20 | J19: 190 | K19: 224 | L19: 18 | M19: 245
A20: Gruodis | B20: 273 | C20: 16 | D20: 319 | E20: 290 | F20: 18 | G20: 323 | H20: 154 | I20: 20 | J20: 159 | K20: 220 | L20: 8 | M20: 268
A21: Viso: | B21: =SUM(B9:B20) -> 2925 | C21: =SUM(C9:C20) -> 173 | D21: 3390 | E21: 3190 | F21: 186 | G21: 3771 | H21: 2826 | I21: 175 | J21: 3203 | K21: 2808 | L21: 148 | M21: 3211
A22: I ketvirtis | B22: =SUM(B9:B11) -> 536 | C22: =SUM(C9:C11) -> 46 | D22: =SUM(D9:D11) -> 611 | E22: 558 | F22: 44 | G22: 651 | H22: 617 | I22: 41 | J22: 694 | K22: 356 | L22: 32 | M22: 395
A23: II ketvirtis | B23: =SUM(B12:B14) -> 794 | C23: =SUM(C12:C14) -> 40 | D23: 924 | E23: 873 | F23: 31 | G23: 1056 | H23: 621 | I23: 30 | J23: 706 | K23: 817 | L23: 29 | M23: 930
A24: III ketvirtis | B24: =SUM(B15:B17) -> 845 | C24: =SUM(C15:C17) -> 46 | D24: 983 | E24: 930 | F24: 64 | G24: 1105 | H24: 999 | I24: 51 | J24: 1182 | K24: 914 | L24: 43 | M24: 1052
A25: IV ketvirtis | B25: =SUM(B18:B20) -> 750 | C25: =SUM(C18:C20) -> 41 | D25: 872 | E25: 829 | F25: 47 | G25: 959 | H25: 589 | I25: 53 | J25: 621 | K25: 721 | L25: 44 | M25: 834

Sheet Eismo įvykiai pagal savaitės d.
A6: 3.10. Eismo įvykių ir juose nukentėjusiųjų pasiskirstymas pagal savaitės dienas
A7: Diena | B7: 2018 m. | E7: 2019 m. | H7: 2020 m. | K7: 2021 m.
B8: EĮ | C8: Žuvo | D8: Sužeista | E8: EĮ | F8: Žuvo | G8: Sužeista | H8: EĮ | I8: Žuvo | J8: Sužeista | K8: EĮ | L8: Žuvo | M8: Sužeista
A9: I | B9: 449 | C9: 24 | D9: 512 | E9: 481 | F9: 23 | G9: 558 | H9: 376 | I9: 23 | J9: 418 | K9: 393 | L9: 25 | M9: 428
A10: II | B10: 401 | C10: 29 | D10: 432 | E10: 493 | F10: 25 | G10: 566 | H10: 403 | I10: 31 | J10: 435 | K10: 378 | L10: 19 | M10: 428
A11: III | B11: 450 | C11: 24 | D11: 510 | E11: 443 | F11: 22 | G11: 499 | H11: 433 | I11: 30 | J11: 473 | K11: 439 | L11: 23 | M11: 489
A12: IV | B12: 423 | C12: 21 | D12: 475 | E12: 444 | F12: 23 | G12: 505 | H12: 418 | I12: 24 | J12: 476 | K12: 418 | L12: 20 | M12: 463
A13: V | B13: 495 | C13: 28 | D13: 580 | E13: 513 | F13: 27 | G13: 603 | H13: 469 | I13: 21 | J13: 516 | K13: 475 | L13: 20 | M13: 537
A14: VI | B14: 393 | C14: 29 | D14: 497 | E14: 471 | F14: 48 | G14: 597 | H14: 411 | I14: 28 | J14: 502 | K14: 399 | L14: 27 | M14: 496
A15: VII | B15: 314 | C15: 18 | D15: 384 | E15: 345 | F15: 18 | G15: 443 | H15: 316 | I15: 18 | J15: 383 | K15: 306 | L15: 14 | M15: 370
A16: Viso: | B16: =SUM(B9:B15) -> 2925 | C16: =SUM(C9:C15) -> 173 | D16: 3390 | E16: 3190 | F16: 186 | G16: 3771 | H16: 2826 | I16: 175 | J16: 3203 | K16: 2808 | L16: 148 | M16: 3211

Sheet TP statistika
A6: 4.1. Motorinių transporto priemonių ir gyventojų skaičius 2001–2021 m.
A7: Metai | B7: Motorinės transporto priemonės | F7: Iš viso motorinių TP, be priekabų | G7: Gyventojų skaičius metų pabaigoje | H7: TP motorinių/ 1000 gyv. | I7: Priekabos | J7: Iš viso su priekabomis
B8: Automobiliai | E8: Motociklai ir mopedai
B9: Lengvieji | C9: Krovininiai | D9: Autobusai
B10: M1 | C10: N1+N2+N3 | D10: M2+M3 | E10: GK+L1+L2+L3+L4+L5+L6+L7 | I10: O1+O2+O3+O4
A11: 2001 | B11: 1116473 | C11: 142916 | D11: 16631 | E11: 25192 | F11: =SUM(B11:E11) -> 1301212 | G11: 3454637 | H11: 376.6566502 | I11: 82512 | J11: 1383724
A12: 2002 | B12: 1180718 | C12: 144801 | D12: 17299 | E12: 27532 | F12: 1370350 | G12: 3431497 | H12: 399.3446592 | I12: 108749 | J12: 1479099
A13: 2003 | B13: 1260034 | C13: 156326 | D13: 16881 | E13: 28775 | F13: 1462016 | G13: 3398929 | H13: 430.1402 | I13: 118460 | J13: 1580476
A14: 2004 | B14: 1318562 | C14: 152278 | D14: 15515 | E14: 28995 | F14: 1515350 | G14: 3355220 | H14: 451.6395348 | I14: 119004 | J14: 1634354
A15: 2005 | B15: 1450646 | C15: 159841 | D15: 15598 | E15: 29920 | F15: 1656005 | G15: 3289835 | H15: 503.3702298 | I15: 124227 | J15: 1780232
A16: 2006 | B16: 1595928 | C16: 173114 | D16: 16425 | E16: 32478 | F16: 1817945 | G16: 3249983 | H16: 559.3706182 | I16: 132357 | J16: 1950302
A17: 2007 | B17: 1596186 | C17: 177622 | D17: 15776 | E17: 40811 | F17: 1830395 | G17: 3212605 | H17: 569.7541403 | I17: 143080 | J17: 1973475
A18: 2008 | B18: 1704063 | C18: 183969 | D18: 15566 | E18: 50739 | F18: 1954337 | G18: 3183856 | H18: 613.8270701 | I18: 152379 | J18: 2106716
A19: 2009 | B19: 1726462 | C19: 178865 | D19: 15144 | E19: 57147 | F19: 1977618 | G19: 3141976 | H19: 629.418557 | I19: 156102 | J19: 2133720
A20: 2010 | B20: 1734047 | C20: 175209 | D20: 14744 | E20: 60688 | F20: 1984688 | G20: 3052588 | H20: 650.1656955 | I20: 159860 | J20: 2144548
A21: 2011 | B21: 1747557 | C21: 179093 | D21: 14502 | E21: 64467 | F21: 2005619 | G21: 3003641 | H21: 667.7292659 | I21: 168405 | J21: 2174024
A22: 2012 | B22: 1797721 | C22: 181890 | D22: 14285 | E22: 67605 | F22: 2061501 | G22: 2971905 | H22: 693.6631555 | I22: 176381 | J22: 2237882
A23: 2013 | B23: 1829997 | C23: 180720 | D23: 13700 | E23: 70156 | F23: 2094573 | G23: 2943472 | H23: 711.5994309 | I23: 181404 | J23: 2275977
A24: 2014 | B24: 1212886 | C24: 106188 | D24: 7548 | E24: 33176 | F24: 1359798 | G24: 2921262 | H24: 465.4830686 | I24: 129101 | J24: 1488899
A25: 2015 | B25: 1257473 | C25: 109814 | D25: 7473 | E25: 38202 | F25: 1412962 | G25: 2888558 | H25: 489.1582582 | I25: 136196 | J25: 1549158
A26: 2016 | B26: 1307298 | C26: 115853 | D26: 7469 | E26: 39818 | F26: 1470438 | G26: 2847904 | H26: 516.3228817 | I26: 143602 | J26: 1614040
A27: 2017 | B27: 1363591 | C27: 121728 | D27: 7681 | E27: 41885 | F27: 1534885 | G27: 2808901 | H27: 546.4361329 | I27: 150321 | J27: 1685206
A28: 2018 | B28: 1442747 | C28: 132172 | D28: 7997 | E28: 45304 | F28: 1628220 | G28: 2794184 | H28: 582.7175304 | I28: 165271 | J28: 1793491
A29: 2019 | B29: 1514150 | C29: 143285 | D29: 8293 | E29: 53283 | F29: 1719011 | G29: 2794090 | H29: 615.231077 | I29: 180314 | J29: 1899325
A30: 2020 | B30: 1573362 | C30: 150524 | D30: 8145 | E30: 60946 | F30: 1792977 | G30: 2795175 | H30: 641.4542918 | I30: 192952 | J30: 1985929
A31: 2021 | B31: 1620886 | C31: 160800 | D31: 8069 | E31: 69725 | F31: 1859480 | G31: 2805998 | H31: 663 | I31: 210411 | J31: =I31+F31 -> 2069891

Sheet TP gyventojų nukentėjusių stat
A6: 4.2. Transporto priemonių, eismo įvykių ir nukentėjusių juose pasiskirstymas 2001–2021 m.
A7: Metai | B7: Iš viso motorinių TP, be priekabų | C7: EĮ | D7: Žuvo | E7: VISO Sužeista | F7: Iš jų sunkiai sužeista* | G7: Iš jų lengvai sužeista | H7: Gyventojų skaičius metų pabaigoje | I7: Motorinių TP /1000 gyv. | J7: EĮ /1mln. gyv. | K7: Žuvusių /1mln. gyv. | L7: Viso sužeistų /1mln. gyv. | M7: Sunkiai sužeistų /1mln. gyv. | N7: Lengvai sužeistų /1mln. gyv.
A8: 2001 m. | B8: 1301212 | C8: 5972 | D8: 706 | E8: 7103 | H8: 3454637 | I8: =B8*1000/H8 -> 376.6566502 | J8: =C8*1000000/H8 -> 1728.691032 | K8: =D8*1000000/H8 -> 204.3630054 | L8: =E8*1000000/H8 -> 2056.077093
A9: 2002 m. | B9: 1370350 | C9: 6090 | D9: 697 | E9: 7427 | H9: 3431497 | I9: =B9*1000/H9 -> 399.3446592 | J9: =C9*1000000/H9 -> 1774.735633 | K9: =D9*1000000/H9 -> 203.1183475 | L9: =E9*1000000/H9 -> 2164.361502
A10: 2003 m. | B10: 1462016 | C10: 5963 | D10: 709 | E10: 7263 | H10: 3398929 | I10: 430.1402 | J10: 1754.376158 | K10: 208.5951192 | L10: 2136.849578
A11: 2004 m. | B11: 1515350 | C11: 6372 | D11: 751 | E11: 7877 | H11: 3355220 | I11: 451.6395348 | J11: 1899.13031 | K11: 223.8303301 | L11: 2347.6851
A12: 2005 m. | B12: 1656005 | C12: 6771 | D12: 773 | E12: 8466 | H12: 3289835 | I12: 503.3702298 | J12: 2058.157932 | K12: 234.9661913 | L12: 2573.38134
A13: 2006 m. | B13: 1817945 | C13: 6658 | D13: 760 | E13: 8334 | H13: 3249983 | I13: 559.3706182 | J13: 2048.626101 | K13: 233.847377 | L13: 2564.321106
A14: 2007 m. | B14: 1830395 | C14: 6448 | D14: 740 | E14: 8042 | H14: 3212605 | I14: 569.7541403 | J14: 2007.093932 | K14: 230.3426658 | L14: 2503.264485
A15: 2008 m. | B15: 1954337 | C15: 4795 | D15: 499 | E15: 5818 | H15: 3183856 | I15: 613.8270701 | J15: 1506.035449 | K15: 156.7281937 | L15: 1827.34395
A16: 2009 m. | B16: 1977618 | C16: 3805 | D16: 370 | E16: 4426 | H16: 3141976 | I16: 629.418557 | J16: 1211.021345 | K16: 117.7602884 | L16: 1408.667666
A17: 2010 m. | B17: 1984688 | C17: 3530 | D17: 299 | E17: 4230 | H17: 3052588 | I17: 650.1656955 | J17: 1156.395819 | K17: 97.94967418 | L17: 1385.709437
A18: 2011 m. | B18: 2005619 | C18: 3266 | D18: 296 | E18: 3919 | H18: 3003641 | I18: 667.7292659 | J18: 1087.34699 | K18: 98.54706338 | L18: 1304.749802
A19: 2012 m. | B19: 2061501 | C19: 3173 | D19: 301 | E19: 3712 | H19: 2971905 | I19: 693.6631555 | J19: 1067.665353 | K19: 101.2818377 | L19: 1249.030504
A20: 2013 m. | B20: 2094573 | C20: 3391 | D20: 256 | E20: 4007 | H20: 2943472 | I20: 711.5994309 | J20: 1152.040855 | K20: 86.97212 | L20: 1361.317519
A21: 2014 m. | B21: 1359798 | C21: 3255 | D21: 267 | E21: 3785 | H21: 2921262 | I21: 465.4830686 | J21: 1114.24446 | K21: 91.39885433 | L21: 1295.672898
A22: 2015 m. | B22: 1412962 | C22: 3033 | D22: 242 | E22: 3594 | H22: 2888558 | I22: 489.1582582 | J22: 1050.004881 | K22: 83.77882667 | L22: 1244.219434
A23: 2016 m. | B23: 1470438 | C23: 3201 | D23: 192 | E23: 3750 | H23: 2847904 | I23: 516.3228817 | J23: 1123.984516 | K23: 67.41800285 | L23: 1316.757868
A24: 2017 m. | B24: 1534885 | C24: 3051 | D24: 191 | E24: 3557 | F24: 368 | G24: 3189 | H24: 2808901 | I24: 546.4361329 | J24: 1086.189937 | K24: 67.99812453 | L24: 1266.331565 | M24: =F24*1000000/H24 -> 131.0120933 | N24: =G24*1000000/H24 -> 1135.319472
A25: 2018 m. | B25: 1628220 | C25: 2925 | D25: 173 | E25: 3390 | F25: 165 | G25: 3225 | H25: 2794184 | I25: 582.7175304 | J25: 1046.817246 | K25: 61.91431917 | L25: 1213.234347 | M25: =F25*1000000/H25 -> 59.05122927 | N25: =G25*1000000/H25 -> 1154.183118
A26: 2019 m. | B26: 1719011 | C26: 3190 | D26: 186 | E26: 3771 | F26: 308 | G26: 3463 | H26: 2794090 | I26: 615.231077 | J26: 1141.695507 | K26: 66.56907974 | L26: 1349.634407 | M26: =F26*1000000/H26 -> 110.2326697 | N26: =G26*1000000/H26 -> 1239.401737
A27: 2020 m. | B27: 1792977 | C27: 2826 | D27: 175 | E27: 3203 | F27: 376 | G27: 2827 | H27: 2795175 | I27: 641.4542918 | J27: 1011.027932 | K27: 62.6078868 | L27: 1145.903208 | M27: =F27*1000000/H27 -> 134.5175168 | N27: =G27*1000000/H27 -> 1011.385691
A28: 2021 m. | B28: 1859480 | C28: 2808 | D28: 148 | E28: 3211 | F28: 392 | G28: 2819 | H28: 2805998 | I28: 662.6804438 | J28: 1000.713472 | K28: 52.74415734 | L28: 1144.334387 | M28: =F28*1000000/H28 -> 139.7007411 | N28: =G28*1000000/H28 -> 1004.633645
A29: * eismo įvykyje dalyvavęs eismo dalyvis buvo gydomas ligoninėje

Sheet TP dalyvavo-apgadinta-sukėlė
A6: 4.3. Transporto priemonių tipai, sukėlę ir dalyvavę eismo įvykiuose 2018-2021 m.
A7: Transporto priemonė | B7: 2018 m. | H7: 2019 m. | N7: 2020 m. | T7: 2021 m.
B8: Dalyvavo EĮ | D8: Apgadinta EĮ metu | F8: Sukėlė EĮ | H8: Dalyvavo EĮ | J8: Apgadinta EĮ metu | L8: Sukėlė EĮ | N8: Dalyvavo EĮ | P8: Apgadinta EĮ metu | R8: Sukėlė EĮ | T8: Dalyvavo EĮ | V8: Apgadinta EĮ metu | X8: Sukėlė EĮ
B9: sk. | C9: % | D9: sk. | E9: % | F9: sk. | G9: % | H9: sk. | I9: % | J9: sk. | K9: % | L9: sk. | M9: % | N9: sk. | O9: % | P9: sk. | Q9: % | R9: sk. | S9: % | T9: sk. | U9: % | V9: sk. | W9: % | X9: sk. | Y9: %
A10: Lengvieji automobiliai | B10: 4391 | C10: =B10/$B$18 -> 0.7332999332 | D10: 3910 | E10: =D10/$D$18 -> 0.866385996 | F10: 1838 | G10: =F10/$F$18 -> 0.7573135558 | H10: 4913 | I10: =H10/$H$18 -> 0.7366921577 | J10: 4438 | K10: =J10/$J$18 -> 0.8674745895 | L10: 1969 | M10: =L10/$L$18 -> 0.7489539749 | N10: 3994 | O10: =N10/$N$18 -> 0.6988626422 | P10: 3587 | Q10: =P10/$P$18 -> 0.8622596154 | R10: 1682 | S10: =R10/$R$18 -> 0.7396657872 | T10: 4130 | U10: =T10/$T$18 -> 0.6817431496 | V10: 3670 | W10: =V10/$V$18 -> 0.8430967149 | X10: 1723 | Y10: =X10/$X$18 -> 0.6845450934
A11: Krovininiai automobiliai (ir priekabos) | B11: 410 | C11: =B11/$B$18 -> 0.06847027388 | D11: 269 | E11: =D11/$D$18 -> 0.05960558387 | F11: 164 | G11: =F11/$F$18 -> 0.06757313556 | H11: 440 | I11: =H11/$H$18 -> 0.06597690808 | J11: 302 | K11: =J11/$J$18 -> 0.05903049257 | L11: 169 | M11: =L11/$L$18 -> 0.06428299734 | N11: 452 | O11: =N11/$N$18 -> 0.07909011374 | P11: 292 | Q11: =P11/$P$18 -> 0.07019230769 | R11: 134 | S11: =R11/$R$18 -> 0.05892700088 | T11: 502 | U11: =T11/$T$18 -> 0.08286563222 | V11: 321 | W11: =V11/$V$18 -> 0.07374224673 | X11: 165 | Y11: =X11/$X$18 -> 0.06555423123
A12: Viešasis transportas (autobusai, troleibusai, mikro autobusai) | B12: 399 | C12: 0.06663326653 | D12: 129 | E12: 0.02858409041 | F12: 92 | G12: 0.03790688092 | H12: 406 | I12: 0.06087869246 | J12: 127 | K12: 0.02482408131 | L12: 93 | M12: 0.03537466717 | N12: 304 | O12: 0.05319335083 | P12: 54 | Q12: 0.01298076923 | R12: 54 | S12: 0.02374670185 | T12: 337 | U12: 0.05562892044 | V12: 106 | W12: 0.02435102228 | X12: 79 | Y12: 0.03138657132
A13: Dviračiai (dviračiai, el. dviračiai, el. ir mechaniniai paspirtukai) | B13: 372 | C13: 0.0621242485 | D13: 14 | E13: 0.003102149346 | F13: 162 | G13: 0.06674907293 | H13: 418 | I13: 0.06267806268 | J13: 20 | K13: 0.003909304144 | L13: 176 | M13: 0.06694560669 | N13: 534 | O13: 0.09343832021 | P13: 27 | Q13: 0.006490384615 | R13: 197 | S13: 0.08663148637 | T13: 601 | U13: 0.09920765929 | V13: 23 | W13: 0.005283712382 | X13: 300 | Y13: 0.1191895113
A14: Motociklai | B14: 260 | C14: 0.04342017368 | D14: 111 | E14: 0.02459561267 | F14: 115 | G14: 0.04738360115 | H14: 318 | I14: 0.04768331084 | J14: 149 | K14: 0.02912431587 | L14: 147 | M14: 0.0559147965 | N14: 277 | O14: 0.04846894138 | P14: 124 | Q14: 0.02980769231 | R14: 143 | S14: 0.06288478452 | T14: 334 | U14: 0.05513370749 | V14: 164 | W14: 0.03767516655 | X14: 182 | Y14: 0.07230830354
A15: Mopedai | B15: 81 | C15: 0.01352705411 | D15: 37 | E15: 0.008198537558 | F15: 35 | G15: 0.014421096 | H15: 92 | I15: 0.01379517169 | J15: 43 | K15: 0.008405003909 | L15: 47 | M15: 0.01787751997 | N15: 84 | O15: 0.01469816273 | P15: 45 | Q15: 0.01081730769 | R15: 41 | S15: 0.01802990325 | T15: 86 | U15: 0.01419610432 | V15: 40 | W15: 0.009189065013 | X15: 35 | Y15: 0.01390544299
A16: Žemės ūkio technika | B16: 36 | C16: 0.006012024048 | D16: 16 | E16: 0.003545313539 | F16: 11 | G16: 0.004532344458 | H16: 53 | I16: 0.007947218474 | J16: 21 | K16: 0.004104769351 | L16: 18 | M16: 0.006846709776 | N16: 42 | O16: 0.007349081365 | P16: 17 | Q16: 0.004086538462 | R16: 14 | S16: 0.006156552331 | T16: 50 | U16: 0.008253549026 | V16: 25 | W16: 0.005743165633 | X16: 26 | Y16: 0.01032975765
A17: Kitos TP | B17: 39 | C17: 0.006513026052 | D17: 27 | E17: 0.005982716596 | F17: 10 | G17: 0.004120313144 | H17: 29 | I17: 0.004348478033 | J17: 16 | K17: 0.003127443315 | L17: 10 | M17: 0.003803727653 | N17: 28 | O17: 0.004899387577 | P17: 14 | Q17: 0.003365384615 | R17: 9 | S17: 0.003957783641 | T17: 18 | U17: 0.002971277649 | V17: 4 | W17: 0.0009189065013 | X17: 7 | Y17: 0.002781088598
A18: Viso: | B18: =SUM(B10:B17) -> 5988 | C18: 1 | D18: 4513 | E18: 1 | F18: 2427 | G18: 1 | H18: 6669 | I18: 1 | J18: 5116 | K18: 1 | L18: 2629 | M18: 1 | N18: 5715 | O18: 1 | P18: 4160 | Q18: 1 | R18: 2274 | S18: 1 | T18: =SUM(T10:T17) -> 6058 | U18: =SUM(U10:U17) -> 1 | V18: =SUM(V10:V17) -> 4353 | W18: =SUM(W10:W17) -> 1 | X18: 2517 | Y18: 1

Sheet Žala dėl EĮ 2018–2021 m.
A6: 5.1. Žala, kurią sudarė eismo įvykyje žuvęs, sunkiai ar lengvai sužeistas žmogus, 2018–2021 m.
A7: Nukentėjusieji EĮ | B7: Žala, €
B9: 2018 m. | C9: 2019 m. | D9: 2020 m. | E9: 2021 m.
A10: Žūtis, € | B10: 591538.3 | C10: 607474.44 | D10: 588828.97 | E10: 634219.57
A11: Sunkus sužalojimas, € | B11: 84685.5 | C11: 86966.94 | D11: 84297.63 | E11: 90795.82
A12: Lengvas sužalojimas, € | B12: 5692.54 | C12: 5845.9 | D12: 5666.47 | E12: 6103.28
A14: 5.2. Žala Lietuvos ekonomikai dėl eismo įvykiuose nukentėjusių žmonių, 2018–2021 m.
A15: Metai | B15: EĮ | C15: Žuvo | D15: Sunkiai sužeista | E15: Lengvai sužeista | F15: Žala, mln. €
A16: =B9 -> 2018 m. | B16: 2925 | C16: 173 | D16: 165 | E16: 3225 | F16: 134.6676749
A17: =C9 -> 2019 m. | B17: 3190 | C17: 186 | D17: 308 | E17: 3463 | F17: 160.0204151
A18: =D9 -> 2020 m. | B18: 2826 | C18: 175 | D18: 376 | E18: 2827 | F18: 150.7600893
A19: =E9 -> 2021 m. | B19: 2808 | C19: 148 | D19: 392 | E19: 2819 | F19: 146.6616041
A22: Žalos Lietuvos ekonomikai dėl įskaitinių eismo įvykių kitimas, 2018–2021 m.
J24: Metai | K24: Eismo įvykiai | L24: Žala, mln. €
J25: 2017 m. | K25: 3051 | L25: 155.2781981
J26: 2018 m. | K26: 2925 | L26: 134.6676749
J27: 2019 m. | K27: 3190 | L27: 160.0204151
J28: 2020 m. | K28: 2826 | L28: 150.7600893
AL41: Police (vair+moc) | AM41: 92 | AN41: 2807
AL42: skirtumas | AM42: =AM41-#REF! ->  | AN42: =AN41-#REF! -> 

Sheet Žala LAKD_savivaldybėse dėl EĮ
A6: 5.3. Žala Lietuvos ekonomikai dėl įskaitinių eismo įvykių, įvykusių valstybinės ir vietinės reikšmės keliuose, 2018–2021 m.
A7: Metai | B7: EĮ | C7: Žuvo | D7: Sužeista | F7: Žala, mln.€
D8: Sunkiai sužeisti* | E8: Lengvai sužeisti
A9: 2018
A10: Valstybinės reikšmės keliai ** | B10: 1068 | C10: 118 | D10: 95 | E10: 1279 | F10: 85.12740056
A11: Vietiniai keliai ir gatvės *** | B11: 1857 | C11: 55 | D11: 70 | E11: 1946 | F11: 49.54027434
A12: Viso: | B12: =B10+B11 -> 2925 | C12: =C10+C11 -> 173 | D12: 165 | E12: 3225 | F12: 134.6676749
A13: 2019
A14: Valstybinės reikšmės keliai ** | B14: 1297 | C14: 120 | D14: 183 | E14: 1487 | F14: 97.50473612
A15: Vietiniai keliai ir gatvės *** | B15: 1893 | C15: 66 | D15: 125 | E15: 1976 | F15: 62.51567894
A16: Viso: | B16: =B14+B15 -> 3190 | C16: =C14+C15 -> 186 | D16: 308 | E16: 3463 | F16: 160.0204151
A17: 2020
A18: Valstybinės reikšmės keliai ** | B18: 1051 | C18: 127 | D18: 210 | E18: 1065 | F18: 98.51857204
A19: Vietiniai keliai ir gatvės *** | B19: 1775 | C19: 48 | D19: 166 | E19: 1762 | F19: 52.24151728
A20: Viso: | B20: =B18+B19 -> 2826 | C20: =C18+C19 -> 175 | D20: 376 | E20: 2827 | F20: 150.7600893
A21: 2021
A22: Valstybinės reikšmės keliai ** | B22: 1052 | C22: 107 | D22: 202 | E22: 1117 | F22: 93.02
A23: Vietiniai keliai ir gatvės *** | B23: 1756 | C23: 41 | D23: 190 | E23: 1702 | F23: 53.64
A24: Viso: | B24: =B22+B23 -> 2808 | C24: =C22+C23 -> 148 | D24: 392 | E24: 2819 | F24: 146.66
A25: * - eismo įvykyje dalyvavęs eismo dalyvis buvo gydomas ligoninėje; ** valstybinės reikšmės keliai, priklausantys LAKD; *** savivaldybėms priklausantys keliai ir gatvės
A27: 5.4. Žalos Lietuvos ekonomikai dėl įskaitinių eismo įvykių kitimas,valstybinės ir vietinės reikšmės keliuose, 2018–2021 m.
J31: Žala, Eur
J32: 2018 m. | K32: 2019 m. | L32: 2020 m. | M32: 2021 m. | O32: %
I33: Valstybinės reikšmės keliai | J33: =F10 -> 85.12740056 | K33: =F14 -> 97.50473612 | L33: =F18 -> 98.51857204 | M33: =F22 -> 93.02 | N33: =SUM(J33:M33) -> 374.1707087 | O33: =N33*100/$N$35 -> 63.19296402
I34: Vietiniai keliai ir gatvės | J34: =F11 -> 49.54027434 | K34: =F15 -> 62.51567894 | L34: =F19 -> 52.24151728 | M34: =F23 -> 53.64 | N34: =SUM(J34:M34) -> 217.9374706 | O34: =N34*100/$N$35 -> 36.80703598
J35: =SUM(J33:J34) -> 134.6676749 | K35: =SUM(K33:K34) -> 160.0204151 | L35: 150.7600893 | M35: 146.66 | N35: =SUM(J35:M35) -> 592.1081793

Sheet Žala pagal EĮ rūšis gyv_užm
A6: 5.5. Žala Lietuvos ekonomikai dėl įskaitinių eismo įvykių kitimas gyvenvietėse ir užmiesčio keliuose, 2018–2021 m.
A7: EĮ rūšys | B7: 2018 m. | I7: 2019 m. | P7: 2020 m. | W7: 2021 m. | AD7: Visa žala € per 2020 metus
B8: EĮ | C8: Žuvo | E8: Sunkiai sužeista | G8: Lengvai sužeista | I8: EĮ | J8: Žuvo | L8: Sunkiai sužeista | N8: Lengvai sužeista | P8: EĮ | Q8: Žuvo | S8: Sunkiai sužeista | U8: Lengvai sužeista | W8: EĮ | X8: Žuvo | Z8: Sunkiai sužeista | AB8: Lengvai sužeista
C9: sk. | D9: žala, € | E9: sk. | F9: žala, € | G9: sk. | H9: žala, € | J9: sk. | K9: žala, € | L9: sk. | M9: žala, € | N9: sk. | O9: žala, € | Q9: sk. | R9: žala, € | S9: sk. | T9: žala, € | U9: sk. | V9: žala, € | X9: sk. | Y9: žala, € | Z9: sk. | AA9: žala, € | AB9: sk. | AC9: žala, €
A10: Užmiestyje | B10: Užmiestyje | I10: Užmiestyje | P10: Užmiestyje | W10: Užmiestyje
A11: Susidūrimas | B11: 265 | C11: 30 | D11: 17746149 | E11: 35 | F11: 2963992.5 | G11: 420 | H11: 2390866.8 | I11: 336 | J11: 39 | K11: 23691503.16 | L11: 74 | M11: 6435553.56 | N11: 479 | O11: 2800186.1 | P11: 306 | Q11: 47 | R11: 27674961.59 | S11: 64 | T11: 5395048.32 | U11: 403 | V11: 2283587.41 | W11: 287 | X11: 37 | Y11: =X11*634219.57 -> 23466124.09 | Z11: 68 | AA11: =Z11*90795.82 -> 6174115.76 | AB11: 357 | AC11: =AB11*6103.28 -> 2178870.96 | AD11: =Y11+AA11+AC11 -> 31819110.81
A12: Susidūrimas su motociklu | B12: 14 | C12: 5 | D12: 2957691.5 | E12: 0 | F12: 0 | G12: 11 | H12: 62617.94 | I12: 14 | J12: 3 | K12: 1822423.32 | L12: 5 | M12: 434834.7 | N12: 9 | O12: 52613.1 | P12: 15 | Q12: 0 | R12: 0 | S12: 8 | T12: 674381.04 | U12: 10 | V12: 56664.7 | W12: 28 | X12: 5 | Y12: =X12*634219.57 -> 3171097.85 | Z12: 7 | AA12: =Z12*90795.82 -> 635570.74 | AB12: 21 | AC12: =AB12*6103.28 -> 128168.88 | AD12: =Y12+AA12+AC12 -> 3934837.47
A13: Susidūrimas su mopedu | B13: 3 | C13: 1 | D13: 591538.3 | E13: 1 | F13: 84685.5 | G13: 3 | H13: 17077.62 | I13: 5 | J13: 0 | K13: 0 | L13: 1 | M13: 86966.94 | N13: 6 | O13: 35075.4 | P13: 4 | Q13: 1 | R13: 588828.97 | S13: 0 | T13: 0 | U13: 3 | V13: 16999.41 | W13: 2 | X13: 0 | Y13: 0 | Z13: 0 | AA13: 0 | AB13: 3 | AC13: 18309.84 | AD13: 18309.84
A14: Susidūrimas su dviračiu | B14: 34 | C14: 6 | D14: 3549229.8 | E14: 7 | F14: 592798.5 | G14: 22 | H14: 125235.88 | I14: 35 | J14: 7 | K14: 4252321.08 | L14: 0 | M14: 0 | N14: 28 | O14: 163685.2 | P14: 35 | Q14: 5 | R14: 2944144.85 | S14: 3 | T14: 252892.89 | U14: 28 | V14: 158661.16 | W14: 29 | X14: 5 | Y14: 3171097.85 | Z14: 2 | AA14: 181591.64 | AB14: 22 | AC14: 134272.16 | AD14: 3486961.65
A15: Susidūrimas tarp dviračių | B15: 0 | C15: 0 | D15: 0 | E15: 0 | F15: 0 | G15: 0 | H15: 0 | I15: 0 | J15: 0 | K15: 0 | L15: 0 | M15: 0 | N15: 0 | O15: 0 | P15: 0 | Q15: 0 | R15: 0 | S15: 0 | T15: 0 | U15: 0 | V15: 0 | W15: 0 | X15: 0 | Y15: 0 | Z15: 0 | AA15: 0 | AB15: 0 | AC15: 0 | AD15: 0
A16: Susidūrimas dviračio ir paspirtuko | B16: 0 | C16: 0 | D16: 0 | E16: 0 | F16: 0 | G16: 0 | H16: 0 | I16: 0 | J16: 0 | K16: 0 | L16: 0 | M16: 0 | N16: 0 | O16: 0 | P16: 0 | Q16: 0 | R16: 0 | S16: 0 | T16: 0 | U16: 0 | V16: 0 | W16: 0 | X16: 0 | Y16: 0 | Z16: 0 | AA16: 0 | AB16: 0 | AC16: 0 | AD16: 0
A17: Susidūrimas su paspirtuku | B17: 0 | C17: 0 | D17: 0 | E17: 0 | F17: 0 | G17: 0 | H17: 0 | I17: 1 | J17: 0 | K17: 0 | L17: 0 | M17: 0 | N17: 1 | O17: 5845.9 | P17: 2 | Q17: 0 | R17: 0 | S17: 0 | T17: 0 | U17: 2 | V17: 11332.94 | W17: 6 | X17: 0 | Y17: 0 | Z17: 1 | AA17: 90795.82 | AB17: 5 | AC17: 30516.4 | AD17: 121312.22
A18: Užvažiavimas ant pėsčiojo | B18: 62 | C18: 28 | D18: 16563072.4 | E18: 9 | F18: 762169.5 | G18: 29 | H18: 165083.66 | I18: 51 | J18: 18 | K18: 10934539.92 | L18: 10 | M18: 869669.4 | N18: 25 | O18: 146147.5 | P18: 50 | Q18: 24 | R18: 14131895.28 | S18: 8 | T18: 674381.04 | U18: 19 | V18: 107662.93 | W18: 26 | X18: 7 | Y18: 4439536.99 | Z18: 7 | AA18: 635570.74 | AB18: 16 | AC18: 97652.48 | AD18: 5172760.21
A19: Užvažiavimas ant kliūties | B19: 19 | C19: 5 | D19: 2957691.5 | E19: 1 | F19: 84685.5 | G19: 16 | H19: 91080.64 | I19: 20 | J19: 3 | K19: 1822423.32 | L19: 3 | M19: 260900.82 | N19: 21 | O19: 122763.9 | P19: 24 | Q19: 4 | R19: 2355315.88 | S19: 4 | T19: 337190.52 | U19: 24 | V19: 135995.28 | W19: 5 | X19: 0 | Y19: 0 | Z19: 0 | AA19: 0 | AB19: 5 | AC19: 30516.4 | AD19: 30516.4
A20: Užvažiavimas ant gyvūno | B20: 34 | C20: 1 | D20: 591538.3 | E20: 2 | F20: 169371 | G20: 44 | H20: 250471.76 | I20: 29 | J20: 2 | K20: 1214948.88 | L20: 2 | M20: 173933.88 | N20: 31 | O20: 181222.9 | P20: 15 | Q20: 0 | R20: 0 | S20: 3 | T20: 252892.89 | U20: 13 | V20: 73664.11 | W20: 24 | X20: 2 | Y20: 1268439.14 | Z20: 2 | AA20: 181591.64 | AB20: 30 | AC20: 183098.4 | AD20: 1633129.18
A21: Apvirtimas | B21: 161 | C21: 11 | D21: 6506921.3 | E21: 6 | F21: 508113 | G21: 180 | H21: 1024657.2 | I21: 188 | J21: 15 | K21: 9112116.6 | L21: 18 | M21: 1565404.92 | N21: 213 | O21: 1245176.7 | P21: 166 | Q21: 17 | R21: 10010092.49 | S21: 43 | T21: 3624798.09 | U21: 144 | V21: 815971.68 | W21: 142 | X21: 13 | Y21: 8244854.41 | Z21: 32 | AA21: 2905466.24 | AB21: 147 | AC21: 897182.16 | AD21: 12047502.81
A22: Susidūrimas su stovinčia TP | B22: 8 | C22: 1 | D22: 591538.3 | E22: 0 | F22: 0 | G22: 12 | H22: 68310.48 | I22: 14 | J22: 1 | K22: 607474.44 | L22: 5 | M22: 434834.7 | N22: 15 | O22: 87688.5 | P22: 15 | Q22: 0 | R22: 0 | S22: 6 | T22: 505785.78 | U22: 13 | V22: 73664.11 | W22: 16 | X22: 2 | Y22: 1268439.14 | Z22: 3 | AA22: 272387.46 | AB22: 20 | AC22: 122065.6 | AD22: 1662892.2
A23: Susidūrimas su bėgine TP | B23: 0 | C23: 0 | D23: 0 | E23: 0 | F23: 0 | G23: 0 | H23: 0 | I23: 0 | J23: 0 | K23: 0 | L23: 0 | M23: 0 | N23: 0 | O23: 0 | P23: 1 | Q23: 0 | R23: 0 | S23: 1 | T23: 84297.63 | U23: 0 | V23: 0 | W23: 0 | X23: 0 | Y23: 0 | Z23: 0 | AA23: 0 | AB23: 0 | AC23: 0 | AD23: 0
A24: Kiti eismo įvykiai | B24: 143 | C24: 14 | D24: 8281536.2 | E24: 9 | F24: 762169.5 | G24: 159 | H24: 905113.86 | I24: 154 | J24: 9 | K24: 5467269.96 | L24: 17 | M24: 1478437.98 | N24: 161 | O24: 941189.9 | P24: 135 | Q24: 7 | R24: 4121802.79 | S24: 27 | T24: 2276036.01 | U24: 129 | V24: 730974.63 | W24: 131 | X24: 7 | Y24: 4439536.99 | Z24: 32 | AA24: 2905466.24 | AB24: 120 | AC24: 732393.6 | AD24: 8077396.83
A25: Viso: | B25: 743 | C25: 102 | D25: 60336906.6 | E25: 70 | F25: 5927985 | G25: 896 | H25: 5100515.84 | I25: 847 | J25: 97 | K25: 58925020.68 | L25: 135 | M25: 11740536.9 | N25: 989 | O25: 5781595.1 | P25: 768 | Q25: 105 | R25: 61827041.85 | S25: 167 | T25: 14077704.21 | U25: 788 | V25: 4465178.36 | W25: =SUM(W11:W24) -> 696 | X25: =SUM(X11:X24) -> 78 | Y25: 49469126.46 | Z25: 154 | AA25: 13982556.28 | AB25: 746 | AC25: 4553046.88 | AD25: 68004729.62
A26: Gyvenvietėje | B26: Gyvenvietėje | I26: Gyvenvietėje | P26: Gyvenvietėje | W26: Gyvenvietėje
A27: Susidūrimas | B27: 670 | C27: 7 | D27: 4140768.1 | E27: 19 | F27: 1609024.5 | G27: 842 | H27: 4793118.68 | I27: 707 | J27: 20 | K27: 12149488.8 | L27: 37 | M27: 3217776.78 | N27: 901 | O27: 5267155.9 | P27: 502 | Q27: 16 | R27: 9421263.52 | S27: 39 | T27: 3287607.57 | U27: 594 | V27: 3365883.18 | W27: 525 | X27: 19 | Y27: =X27*634219.57 -> 12050171.83 | Z27: 53 | AA27: =Z27*90795.82 -> 4812178.46 | AB27: 618 | AC27: =AB27*6103.28 -> 3771827.04 | AD27: =Y27+AA27+AC27 -> 20634177.33
A28: Susidūrimas su motociklu | B28: 53 | C28: 4 | D28: 2366153.2 | E28: 5 | F28: 423427.5 | G28: 50 | H28: 284627 | I28: 77 | J28: 6 | K28: 3644846.64 | L28: 9 | M28: 782702.46 | N28: 75 | O28: 438442.5 | P28: 58 | Q28: 5 | R28: 2944144.85 | S28: 10 | T28: 842976.3 | U28: 50 | V28: 283323.5 | W28: 101 | X28: 3 | Y28: =X28*634219.57 -> 1902658.71 | Z28: 20 | AA28: =Z28*90795.82 -> 1815916.4 | AB28: 93 | AC28: =AB28*6103.28 -> 567605.04 | AD28: =Y28+AA28+AC28 -> 4286180.15
A29: Susidūrimas su mopedu | B29: 19 | C29: 0 | D29: 0 | E29: 1 | F29: 84685.5 | G29: 18 | H29: 102465.72 | I29: 19 | J29: 0 | K29: 0 | L29: 1 | M29: 86966.94 | N29: 20 | O29: 116918 | P29: 21 | Q29: 0 | R29: 0 | S29: 4 | T29: 337190.52 | U29: 20 | V29: 113329.4 | W29: 29 | X29: 0 | Y29: 0 | Z29: 4 | AA29: 363183.28 | AB29: 30 | AC29: 183098.4 | AD29: 546281.68
A30: Susidūrimas su dviračiu | B30: 229 | C30: 3 | D30: 1774614.9 | E30: 6 | F30: 508113 | G30: 227 | H30: 1292206.58 | I30: 242 | J30: 4 | K30: 2429897.76 | L30: 14 | M30: 1217537.16 | N30: 229 | O30: 1338711.1 | P30: 295 | Q30: 11 | R30: 6477118.67 | S30: 21 | T30: 1770250.23 | U30: 273 | V30: 1546946.31 | W30: 211 | X30: 6 | Y30: 3805317.42 | Z30: 11 | AA30: 998754.02 | AB30: 196 | AC30: 1196242.88 | AD30: 6000314.32
A31: Susidūrimas tarp dviračių | B31: 5 | C31: 0 | D31: 0 | E31: 0 | F31: 0 | G31: 8 | H31: 45540.32 | I31: 7 | J31: 0 | K31: 0 | L31: 0 | M31: 0 | N31: 7 | O31: 40921.3 | P31: 9 | Q31: 0 | R31: 0 | S31: 1 | T31: 84297.63 | U31: 9 | V31: 50998.23 | W31: 21 | X31: 0 | Y31: 0 | Z31: 4 | AA31: 363183.28 | AB31: 21 | AC31: 128168.88 | AD31: 491352.16
A32: Susidūrimas dviračio ir paspirtuko | B32: 1 | C32: 0 | D32: 0 | E32: 0 | F32: 0 | G32: 1 | H32: 5692.54 | I32: 1 | J32: 0 | K32: 0 | L32: 0 | M32: 0 | N32: 2 | O32: 11691.8 | P32: 6 | Q32: 0 | R32: 0 | S32: 0 | T32: 0 | U32: 7 | V32: 39665.29 | W32: 7 | X32: 0 | Y32: 0 | Z32: 0 | AA32: 0 | AB32: 8 | AC32: 48826.24 | AD32: 48826.24
A33: Susidūrimas su paspirtuku | B33: 5 | C33: 0 | D33: 0 | E33: 0 | F33: 0 | G33: 5 | H33: 28462.7 | I33: 15 | J33: 0 | K33: 0 | L33: 1 | M33: 86966.94 | N33: 14 | O33: 81842.6 | P33: 28 | Q33: 0 | R33: 0 | S33: 3 | T33: 252892.89 | U33: 27 | V33: 152994.69 | W33: 199 | X33: 1 | Y33: 634219.57 | Z33: 16 | AA33: 1452733.12 | AB33: 190 | AC33: 1159623.2 | AD33: 3246575.89
A34: Užvažiavimas ant pėsčiojo | B34: 803 | C34: 41 | D34: 24253070.3 | E34: 51 | F34: 4318960.5 | G34: 738 | H34: 4201094.52 | I34: 785 | J34: 38 | K34: 23084028.72 | L34: 71 | M34: 6174652.74 | N34: 692 | O34: 4045362.8 | P34: 641 | Q34: 27 | R34: 15898382.19 | S34: 60 | T34: 5057857.8 | U34: 572 | V34: 3241220.84 | W34: 589 | X34: 20 | Y34: 12684391.4 | Z34: 81 | AA34: 7354461.42 | AB34: 506 | AC34: 3088259.68 | AD34: 23127112.5
A35: Užvažiavimas ant kliūties | B35: 39 | C35: 3 | D35: 1774614.9 | E35: 0 | F35: 0 | G35: 52 | H35: 296012.08 | I35: 56 | J35: 0 | K35: 0 | L35: 5 | M35: 434834.7 | N35: 62 | O35: 362445.8 | P35: 51 | Q35: 0 | R35: 0 | S35: 7 | T35: 590083.41 | U35: 60 | V35: 339988.2 | W35: 26 | X35: 0 | Y35: 0 | Z35: 4 | AA35: 363183.28 | AB35: 28 | AC35: 170891.84 | AD35: 534075.12
A36: Užvažiavimas ant gyvūno | B36: 2 | C36: 0 | D36: 0 | E36: 0 | F36: 0 | G36: 2 | H36: 11385.08 | I36: 6 | J36: 0 | K36: 0 | L36: 0 | M36: 0 | N36: 7 | O36: 40921.3 | P36: 2 | Q36: 0 | R36: 0 | S36: 0 | T36: 0 | U36: 2 | V36: 11332.94 | W36: 7 | X36: 0 | Y36: 0 | Z36: 2 | AA36: 181591.64 | AB36: 6 | AC36: 36619.68 | AD36: 218211.32
A37: Apvirtimas | B37: 72 | C37: 7 | D37: 4140768.1 | E37: 1 | F37: 84685.5 | G37: 76 | H37: 432633.04 | I37: 105 | J37: 7 | K37: 4252321.08 | L37: 6 | M37: 521801.64 | N37: 127 | O37: 742429.3 | P37: 101 | Q37: 4 | R37: 2355315.88 | S37: 22 | T37: 1854547.86 | U37: 93 | V37: 526981.71 | W37: 117 | X37: 10 | Y37: 6342195.7 | Z37: 17 | AA37: 1543528.94 | AB37: 112 | AC37: 683567.36 | AD37: 8569292
A38: Susidūrimas su stovinčia TP | B38: 26 | C38: 1 | D38: 591538.3 | E38: 1 | F38: 84685.5 | G38: 27 | H38: 153698.58 | I38: 30 | J38: 1 | K38: 607474.44 | L38: 7 | M38: 608768.58 | N38: 30 | O38: 175377 | P38: 44 | Q38: 1 | R38: 588828.97 | S38: 5 | T38: 421488.15 | U38: 41 | V38: 232325.27 | W38: 44 | X38: 1 | Y38: 634219.57 | Z38: 4 | AA38: 363183.28 | AB38: 44 | AC38: 268544.32 | AD38: 1265947.17
A39: Susidūrimas su bėgine TP | B39: 0 | C39: 0 | D39: 0 | E39: 0 | F39: 0 | G39: 0 | H39: 0 | I39: 0 | J39: 0 | K39: 0 | L39: 0 | M39: 0 | N39: 0 | O39: 0 | P39: 0 | Q39: 0 | R39: 0 | S39: 0 | T39: 0 | U39: 0 | V39: 0 | W39: 3 | X39: 1 | Y39: 634219.57 | Z39: 1 | AA39: 90795.82 | AB39: 1 | AC39: 6103.28 | AD39: 731118.67
A40: Kiti eismo įvykiai | B40: 258 | C40: 5 | D40: 2957691.5 | E40: 11 | F40: 931540.5 | G40: 283 | H40: 1610988.82 | I40: 293 | J40: 13 | K40: 7897167.72 | L40: 22 | M40: 1913272.68 | N40: 308 | O40: 1800537.2 | P40: 300 | Q40: 6 | R40: 3532973.82 | S40: 37 | T40: 3119012.31 | U40: 291 | V40: 1648942.77 | W40: 233 | X40: 9 | Y40: 5707976.13 | Z40: 21 | AA40: 1906712.22 | AB40: 220 | AC40: 1342721.6 | AD40: 8957409.95
A41: Viso: | B41: 2182 | C41: 71 | D41: 41999219.3 | E41: 95 | F41: 8045122.5 | G41: 2329 | H41: 13257925.66 | I41: 2343 | J41: 89 | K41: 54065225.16 | L41: 173 | M41: 15045280.62 | N41: 2474 | O41: 14462756.6 | P41: 2058 | Q41: 70 | R41: 41218027.9 | S41: 209 | T41: 17618204.67 | U41: 2039 | V41: 11553932.33 | W41: =SUM(W27:W40) -> 2112 | X41: =SUM(X27:X40) -> 70 | Y41: 44395369.9 | Z41: 238 | AA41: 21609405.16 | AB41: 2073 | AC41: 12652099.44 | AD41: 78656874.5
A43: Nukentėjusieji eismo įvykiuose
A45: Žūtis, €
A46: Sunkus sužalojimas, €
A47: Lengvas sužalojimas, €

Sheet Juodųjų dėmių 2022 statistika
A7: 6.1. 2021 m. ir 2022 m. nustatytų „juodųjų dėmių“ palyginimas
A8: Kelių paskirtis | B8: 2021 m. „juodosios dėmės“, (2017-2020 m. duomenys) | G8: 2022 m. „juodosios dėmės“, (2018-2021 m. duomenys)
B10: JD skaičius | C10: EĮ | D10: Žuvo | E10: Sužeista | F10: Žala, mln. € | G10: JD skaičius | H10: EĮ | I10: Žuvo | J10: Sužeista | K10: Žala, mln. €
A11: Valstybinės reikšmės užmiesčio keliai
A12: Magistraliniai | B12: 7 | C12: 35 | D12: 5 | E12: 50 | F12: 29.77 | G12: 5 | H12: 23 | I12: 2 | J12: 41 | K12: 8.107233
A13: Krašto | B13: 18 | C13: 85 | D13: 15 | E13: 134 | G13: 10 | H13: 46 | I13: 6 | J13: 75
A14: Rajoniniai | B14: 4 | C14: 17 | D14: 1 | E14: 23 | G14: 3 | H14: 15 | I14: 2 | J14: 15
A15: JD užmiesčio keliuose: | B15: 29 | C15: 137 | D15: 21 | E15: 207 | G15: 18 | H15: 84 | I15: 10 | J15: 131
A16: Valstybinės reikšmės užmiesčio keliai, kertantys gyvenvietes
A17: Sankryžose | B17: 10 | C17: 49 | D17: 4 | E17: 55 | F17: 9.79 | G17: 15 | H17: 67 | I17: 4 | J17: 76 | K17: 4.69
A18: Gatvių ruožuose | B18: 5 | C18: 21 | D18: 2 | E18: 19 | G18: 9 | H18: 41 | I18: 2 | J18: 41
A19: JD gyvenvietėse: | B19: 15 | C19: 70 | D19: 6 | E19: 74 | G19: 24 | H19: 108 | I19: 6 | J19: 117
A20: Viso JD valstybinės reikšmės kelių tinkle: | B20: 44 | C20: 207 | D20: 27 | E20: 281 | F20: =F12+F17 -> 39.56 | G20: 42 | H20: 192 | I20: 16 | J20: 248 | K20: =K12+K17 -> 12.797233
A23: Žala šalies ekonomikai dėl valstybinės reikšmės keliuose nustatytų „juodųjų dėmių“, 2021 m. ir 2022 m.
A25: 2021 m.
A26: 2022 m.
G29: JD | H29: Žala
F31: 2020 m. | G31: 45 | H31: 37.828
F32: 2021 m. | G32: 44 | H32: 39.56

Sheet ES žuvusių skaičius 2010–2021 m
A6: 7.1. Žuvusiųjų skaičius Lietuvoje ir kitose Europos Sąjungos šalyse, 2010-2021 m.
A7: Nr. | B7: Šalis | C7: Žuvusių sk. | O7: Skirtumas 2011-2021 m., sk. | P7: Skirtumas 2011-2021 m., %
C8: 2010 m. | D8: 2011 m. | E8: 2012 m. | F8: 2013 m. | G8: 2014 m. | H8: 2015 m. | I8: 2016 m. | J8: 2017 m. | K8: 2018 m. | L8: 2019 m. | M8: 2020 m. | N8: 2021 m.
A9: 1 | B9: Malta | C9: 15 | D9: 17 | E9: 9 | F9: 18 | G9: 10 | H9: 11 | I9: 22 | J9: 19 | K9: 18 | L9: 16 | M9: 12 | N9: 9 | O9: =N9-D9 -> -8 | P9: =(N9*100/D9)-100 -> -47.05882353
A10: 2 | B10: Olandija | C10: 640 | D10: 661 | E10: 650 | F10: 570 | G10: 570 | H10: 620 | I10: 629 | J10: 613 | K10: 678 | L10: 661 | M10: 610 | N10: 582 | O10: =N10-D10 -> -79 | P10: =(N10*100/D10)-100 -> -11.9515885
A11: 3 | B11: Kipras | C11: 60 | D11: 71 | E11: 51 | F11: 44 | G11: 45 | H11: 57 | I11: 46 | J11: 53 | K11: 49 | L11: 52 | M11: 48 | N11: 45 | O11: -26 | P11: -36.61971831
A12: 4 | B12: Vokietija | C12: 3651 | D12: 4009 | E12: 3601 | F12: 3340 | G12: 3368 | H12: 3459 | I12: 3206 | J12: 3177 | K12: 3275 | L12: 3059 | M12: 2719 | N12: 2569 | O12: -1440 | P12: -35.91918184
A13: 5 | B13: Švedija | C13: 266 | D13: 319 | E13: 285 | F13: 260 | G13: 270 | H13: 259 | I13: 270 | J13: 253 | K13: 324 | L13: 221 | M13: 204 | N13: 192 | O13: -127 | P13: -39.81191223
A14: 6 | B14: Vengrija | C14: 740 | D14: 638 | E14: 605 | F14: 591 | G14: 626 | H14: 644 | I14: 607 | J14: 625 | K14: 633 | L14: 602 | M14: 460 | N14: 544 | O14: -94 | P14: -14.73354232
A15: 7 | B15: Prancūzija | C15: 3992 | D15: 3963 | E15: 3653 | F15: 3268 | G15: 3384 | H15: 3461 | I15: 3477 | J15: 3448 | K15: 3248 | L15: 3244 | M15: 2541 | N15: 2947 | O15: -1016 | P15: -25.63714358
A16: 8 | B16: Bulgarija | C16: 776 | D16: 657 | E16: 601 | F16: 601 | G16: 660 | H16: 708 | I16: 708 | J16: 682 | K16: 611 | L16: 628 | M16: 463 | N16: 561 | O16: -96 | P16: -14.61187215
A17: 9 | B17: Rumunija | C17: 2377 | D17: 2018 | E17: 2042 | F17: 1861 | G17: 1818 | H17: 1893 | I17: 1913 | J17: 1951 | K17: 1867 | L17: 1864 | M17: 1646 | N17: 1779 | O17: -239 | P17: -11.84340932
A18: 10 | B18: Danija | C18: 255 | D18: 220 | E18: 167 | F18: 191 | G18: 183 | H18: 178 | I18: 211 | J18: 183 | K18: 175 | L18: 199 | M18: 155 | N18: 135 | O18: -85 | P18: -38.63636364
A19: 11 | B19: Suomija | C19: 272 | D19: 292 | E19: 255 | F19: 258 | G19: 229 | H19: 270 | I19: 258 | J19: 238 | K19: 239 | L19: 211 | M19: 221 | N19: 223 | O19: -69 | P19: -23.63013699
A20: 12 | B20: Italija | C20: 4114 | D20: 3860 | E20: 3753 | F20: 3401 | G20: 3381 | H20: 3428 | I20: 3283 | J20: 3378 | K20: 3334 | L20: 3173 | M20: 2395 | N20: 2843 | O20: -1017 | P20: -26.34715026
A21: 13 | B21: Čekija | C21: 802 | D21: 773 | E21: 742 | F21: 654 | G21: 688 | H21: 737 | I21: 611 | J21: 577 | K21: 658 | L21: 617 | M21: 517 | N21: 531 | O21: -242 | P21: -31.30659767
B22: ES-27 | C22: 29691 | D22: 28865 | E22: 26534 | F22: 24296 | G22: 24189 | H22: 24416 | I22: 23880 | J22: 23454 | K22: 23361 | L22: 22763 | M22: 18861 | N22: 19823 | O22: -9042 | P22: -31.32513425
A23: 14 | B23: Belgija | C23: 850 | D23: 884 | E23: 827 | F23: 764 | G23: 745 | H23: 762 | I23: 670 | J23: 609 | K23: 604 | L23: 646 | M23: 484 | N23: 484 | O23: -400 | P23: -45.24886878
A24: 15 | B24: Austrija | C24: 552 | D24: 523 | E24: 531 | F24: 455 | G24: 430 | H24: 479 | I24: 432 | J24: 414 | K24: 409 | L24: 416 | M24: 344 | N24: 362 | O24: -161 | P24: -30.78393881
A25: 16 | B25: Lenkija | C25: 3907 | D25: 4189 | E25: 3571 | F25: 3357 | G25: 3202 | H25: 2938 | I25: 3026 | J25: 2831 | K25: 2862 | L25: 2909 | M25: 2491 | N25: 2245 | O25: -1944 | P25: -46.4072571
A26: 17 | B26: Slovėnija | C26: 138 | D26: 141 | E26: 130 | F26: 125 | G26: 108 | H26: 120 | I26: 130 | J26: 104 | K26: 91 | L26: 102 | M26: 80 | N26: 114 | O26: -27 | P26: -19.14893617
A27: 18 | B27: Slovakija | C27: 345 | D27: 324 | E27: 296 | F27: 223 | G27: 259 | H27: 274 | I27: 242 | J27: 250 | K27: 229 | L27: 245 | M27: 224 | N27: 226 | O27: -98 | P27: -30.24691358
A28: 19 | B28: Ispanija | C28: 2478 | D28: 2060 | E28: 1903 | F28: 1680 | G28: 1688 | H28: 1689 | I28: 1810 | J28: 1830 | K28: 1806 | L28: 1755 | M28: 1370 | N28: 1508 | O28: -552 | P28: -26.7961165
A29: 20 | B29: Kroatija | C29: 426 | D29: 418 | E29: 393 | F29: 368 | G29: 308 | H29: 348 | I29: 307 | J29: 331 | K29: 317 | L29: 297 | M29: 237 | N29: 292 | O29: -126 | P29: -30.14354067
A30: 21 | B30: Portugalija | C30: 937 | D30: 891 | E30: 718 | F30: 637 | G30: 638 | H30: 593 | I30: 563 | J30: 602 | K30: 675 | L30: 626 | M30: 509 | N30: 514 | O30: -377 | P30: -42.31200898
A31: 22 | B31: Liuksemburgas | C31: 32 | D31: 33 | E31: 34 | F31: 45 | G31: 35 | H31: 36 | I31: 32 | J31: 25 | K31: 36 | L31: 22 | M31: 26 | N31: 24 | O31: -9 | P31: -27.27272727
A32: 23 | B32: Airija | C32: 212 | D32: 186 | E32: 163 | F32: 188 | G32: 192 | H32: 162 | I32: 182 | J32: 154 | K32: 135 | L32: 140 | M32: 147 | N32: 137 | O32: -49 | P32: -26.34408602
A33: 24 | B33: Estija | C33: 79 | D33: 101 | E33: 87 | F33: 81 | G33: 78 | H33: 67 | I33: 71 | J33: 48 | K33: 67 | L33: 52 | M33: 60 | N33: 55 | O33: -46 | P33: -45.54455446
A34: 25 | B34: Lietuva | C34: 299 | D34: 296 | E34: 302 | F34: 256 | G34: 267 | H34: 242 | I34: 192 | J34: 191 | K34: 173 | L34: 186 | M34: 175 | N34: 148 | O34: -148 | P34: -50
A35: 26 | B35: Latvija | C35: 218 | D35: 179 | E35: 177 | F35: 179 | G35: 212 | H35: 188 | I35: 158 | J35: 136 | K35: 148 | L35: 132 | M35: 139 | N35: 147 | O35: -32 | P35: -17.87709497
A36: 27 | B36: Graikija | C36: 1258 | D36: 1141 | E36: 988 | F36: 879 | G36: 795 | H36: 793 | I36: 824 | J36: 731 | K36: 700 | L36: 688 | M36: 584 | N36: 608 | O36: -533 | P36: -46.71340929
A38: Nr. | B38: Šalis | C38: 2010 | D38: 2011 | E38: 2012 | F38: 2013 | G38: 2014 | H38: 2015 | I38: 2016 | J38: 2017 | K38: 2018 | L38: 2019 | M38: 2020 | N38: 2021 | O38: Skirtumas 2011-2021 m. | P38: Skirtumas 2011-2021 m.
C39: Žuvo | D39: Žuvo | E39: Žuvo | F39: Žuvo | G39: Žuvo | H39: Žuvo | I39: Žuvo | J39: Žuvo | K39: Žuvo | L39: Žuvo | M39: Žuvo | N39: Žuvo | O39: Žuvo | P39: Žuvo
C40: sk. | D40: sk. | E40: sk. | F40: sk. | G40: sk. | H40: sk. | I40: sk. | J40: sk. | K40: sk. | L40: sk. | M40: sk. | N40: sk. | O40: sk. | P40: %
A41: 1 | B41: Lichtenšteinas* | C41: 0 | D41: 2 | E41: 1 | F41: 2 | G41: 3 | H41: 2 | I41: 0 | J41: 2 | K41: 0 | L41: 0 | M41: 1 | N41: 1 | O41: =N41-D41 -> -1 | P41: =(N41*100/D41)-100 -> -50
A42: 2 | B42: Jungtinė Karalystė | C42: 1905 | D42: 1960 | E42: 1802 | F42: 1770 | G42: 1854 | H42: 1804 | I42: 1860 | J42: 1856 | K42: 1839 | L42: 1808 | M42: 1516 | N42: 1610 | O42: =N42-D42 -> -350 | P42: =(N42*100/D42)-100 -> -17.85714286
A43: 3 | B43: Islandija* | C43: 8 | D43: 12 | E43: 9 | F43: 15 | G43: 4 | H43: 16 | I43: 18 | J43: 16 | K43: 18 | L43: 6 | M43: 8 | N43: 8 | O43: -4 | P43: =(N43*100/D43)-100 -> -33.33333333
A44: 4 | B44: Šveicarija | C44: 327 | D44: 320 | E44: 339 | F44: 269 | G44: 243 | H44: 253 | I44: 216 | J44: 230 | K44: 233 | L44: 187 | M44: 227 | N44: 200 | O44: -120 | P44: -37.5
A45: 5 | B45: Norvegija | C45: 208 | D45: 168 | E45: 145 | F45: 187 | G45: 147 | H45: 117 | I45: 135 | J45: 106 | K45: 108 | L45: 108 | M45: 93 | N45: 80 | O45: -88 | P45: -52.38095238
A46: Šaltinis: https://etsc.eu/16th-annual-road-safety-performance-index-pin-report/
C47: Source: CARE (Community Road Accident) database. Figures are those as reported by police.
C48: Notes:
C49: (1) Ireland - provisional figures for 2018 and 2019
C50: (2) Netherlands - The number of fatalities registered by the police is under-reported and equates to around 85% of the total number of fatalities published nationally. In 2019, the overall total was 661.
C51: (3) Portugal - as of 2018, includes data for Azores and Madeira which account for around 4% of the total
A53: 7.2. Žuvusiųjų skaičius, tenkantis 1 mln. gyventojų Lietuvoje ir kitose Europos Sąjungos šalyse
A54: Nr. | B54: Šalis | C54: Žuvusių sk./ 1 mln. Gyventojų
C55: 2010 m. | D55: 2011 m. | E55: 2012 m. | F55: 2013 m. | G55: 2014 m. | H55: 2015 m. | I55: 2016 m. | J55: 2017 m. | K55: 2018 m. | L55: 2019 m. | M55: 2020 m. | N55: 2021 m.
A56: 1 | B56: Rumunija | C56: 117.1242734 | D56: 99.90564412 | E56: 101.6122814 | F56: 92.95669936 | G56: 91.14010405 | H56: 95.2661481 | I56: 96.91141548 | J56: 99.31608834 | K56: 95.59342962 | L56: 96.07426334 | M56: 85.2 | N56: 92.7
A57: 2 | B57: Bulgarija | C57: 104.557325 | D57: 89.01637046 | E57: 82.02287797 | F57: 82.50335779 | G57: 91.08879681 | H57: 98.30332351 | I57: 98.96860179 | J57: 96.03119409 | K57: 86.52440541 | L57: 89.71378588 | M57: 66.6 | N57: 81.1
A58: 3 | B58: Lenkija | C58: 102.7802505 | D58: 110.0551989 | E58: 93.81619151 | F58: 88.19696323 | G58: 84.22358168 | H58: 77.30436877 | I58: 79.70035406 | J58: 74.55304253 | K58: 75.36202408 | L58: 76.60744219 | M58: 65.6 | N58: 59.3
A59: 4 | B59: Kroatija | C59: 99.00421744 | D59: 97.43914541 | E59: 91.20707655 | F59: 86.34160304 | G59: 72.52504174 | H59: 82.36070391 | I59: 73.25799294 | J59: 79.67814842 | K59: 77.21362574 | L59: 72.86115705 | M59: 58.4 | N59: 72.3
A60: 5 | B60: Latvija | C60: 102.8057481 | D60: 86.28148491 | E60: 86.56048255 | F60: 88.44638247 | G60: 105.9222531 | H60: 94.65806285 | I60: 80.24553101 | J60: 69.73944114 | K60: 76.5103426 | L60: 68.75114585 | M60: 72.9 | N60: 77.6
A61: 6 | B61: Lietuva | C61: 95.16304389 | D61: 96.96690153 | E61: 100.544639 | F61: 86.14003476 | G61: 90.70920328 | H61: 82.84090917 | I61: 66.46915174 | J61: 67.06686742 | K61: 61.58992432 | L61: 65.85106779 | M61: 62.6 | N61: 52.6
A62: 7 | B62: Graikija | C62: 113.1367302 | D62: 102.5766241 | E62: 89.11815064 | F62: 79.8828385 | G62: 72.7568447 | H62: 73.03358679 | I62: 76.41128112 | J62: 67.88511313 | K62: 65.16983958 | L62: 64.91152494 | M62: 54 | N62: 56.9
A63: 8 | B63: Portugalija | C63: 79.89234196 | D63: 84.27348078 | E63: 68.10594705 | F63: 60.74019701 | G63: 61.18553593 | H63: 57.15760714 | I63: 54.44174009 | J63: 58.39233109 | K63: 68.02042206 | L63: 62.92729285 | M63: 50.5 | N63: 52.1
A64: 9 | B64: Vengrija | C64: 73.89415401 | D64: 63.89122389 | E64: 61.01536208 | F64: 59.64396489 | G64: 63.37722662 | H64: 65.34375329 | I64: 61.74669917 | J64: 63.79138645 | K64: 64.73470888 | L64: 61.59981893 | M64: 47.5 | N64: 55.9
A65: 10 | B65: Kipras | C65: 73.24755231 | D65: 84.54887223 | E65: 59.16397819 | F65: 50.81547285 | G65: 52.44755245 | H65: 67.29570441 | I65: 54.22488474 | J65: 62.0026626 | K65: 56.69747615 | L65: 59.36764326 | M65: 54.1 | N65: 50.2
A66: 11 | B66: Čekija | C66: 76.65773792 | D66: 73.61684018 | E66: 70.63003995 | F66: 62.28529996 | G66: 65.44640201 | H66: 69.65086791 | I66: 57.89360331 | J66: 54.54294524 | K66: 61.82814321 | L66: 58.02925877 | M66: 48.3 | N66: 49.6
A67: 12 | B67: Belgija | C67: 78.41397134 | D67: 80 | E67: 75 | F67: 68.59416264 | G67: 66.63184519 | H67: 67.81004005 | I67: 59.23376091 | J67: 53.64822463 | K67: 52.98901469 | L67: 56.33103745 | M67: 42 | N67: 41.8
A68: 13 | B68: Italija | C68: 69.50481603 | D68: 65.02181684 | E68: 63.18798061 | F68: 56.98227469 | G68: 55.62440925 | H68: 56.38564836 | I68: 54.11637982 | J68: 55.75228491 | K68: 55.12204035 | L68: 52.56832117 | M68: 40.1 | N68: 48
B69: ES-27 | C69: 67.48687458 | D69: 65.5771121 | E69: 60.27561975 | F69: 55.14216872 | G69: 54.77308216 | H69: 55.16896427 | I69: 53.78428149 | J69: 52.73639168 | K69: 52.56085072 | L69: 51.13429106 | M69: 42.3 | N69: 44.6
A70: 14 | B70: Prancūzija | C70: 63.602088 | D70: 62.83460258 | E70: 57.64014251 | F70: 51.30470228 | G70: 52.8520556 | H70: 53.78905255 | I70: 53.72682524 | J70: 53.09931071 | K70: 50.15059702 | L70: 50.04351562 | M70: 39 | N70: 45
A71: 15 | B71: Slovakija | C71: 68.82593346 | D71: 60.26949551 | E71: 65.13305462 | F71: 46.38839543 | G71: 54.46875515 | H71: 57.18133992 | I71: 50.67954824 | J71: 50.7787641 | K71: 47.76672203 | L71: 50 | M71: 41 | N71: 41.4
A72: 16 | B72: Slovėnija | C72: 67.41652076 | D72: 68.77414716 | E72: 63.24507564 | F72: 60.71436031 | G72: 52.39958566 | H72: 58.17126979 | I72: 62.97875969 | J72: 50.34137747 | K72: 44.02771327 | L72: 49.0170637 | M72: 38.2 | N72: 54.1
A73: 17 | B73: Austrija | C73: 66.09477919 | D73: 62.44653836 | E73: 63.15323007 | F73: 53.83430393 | G73: 50.54193888 | H73: 55.7954722 | I73: 49.65248433 | J73: 47.19096897 | K73: 46.35996621 | L73: 46.95908859 | M73: 38.6 | N73: 40.5
A74: 18 | B74: Estija | C74: 59.25192569 | D74: 75.95926778 | E74: 65.64962568 | F74: 61.35554859 | G74: 59.27866979 | H74: 50.95560778 | I74: 53.95366368 | J74: 36.48428325 | K74: 50.79093617 | L74: 39.25061518 | M74: 45.1 | N74: 41.4
A75: 19 | B75: Suomija | C75: 50.82756431 | D75: 54.32279198 | E75: 47.21114509 | F75: 47.5429333 | G75: 42.00855947 | H75: 49.34433261 | I75: 47.01759041 | J75: 43.24680278 | K75: 43.35105466 | L75: 38.23905353 | M75: 40 | N75: 40.3
A76: 20 | B76: Ispanija | C76: 53.32717357 | D76: 44.14237725 | E76: 40.62521045 | F76: 35.95283245 | G76: 36.29155439 | H76: 36.36201975 | I76: 38.97493845 | J76: 39.3319678 | K76: 38.70681765 | L76: 37.39243124 | M76: 28.9 | N76: 31.8
A77: 21 | B77: Vokietija | C77: 44.59534656 | D77: 49.97378215 | E77: 44.81630915 | F77: 41.46602916 | G77: 41.8113913 | H77: 42.59981433 | I77: 39.01397401 | J77: 38.53534054 | K77: 39.55679432 | L77: 36.69030204 | M77: 32.8 | N77: 30.9
A78: 22 | B78: Liuksemburgas | C78: 63.7366402 | D78: 64.4732729 | E78: 64.78004317 | F78: 83.79279717 | G78: 63.67340998 | H78: 63.94793217 | I78: 55.53154973 | J78: 42.32503255 | K78: 59.80016777 | L78: 35.8368057 | M78: 41.5 | N78: 37.8
A79: 23 | B79: Danija | C79: 46.07264156 | D79: 39.5638766 | E79: 29.9255481 | F79: 34.09114437 | G79: 32.34270472 | H79: 31.45034688 | I79: 36.97051347 | J79: 30.44129969 | K79: 29.57868536 | L79: 34.27440988 | M79: 26.6 | N79: 23.1
A80: 24 | B80: Olandija | C80: 32.39821155 | D80: 32.78137542 | E80: 33.59165034 | F80: 28.36782219 | G80: 28.34344339 | H80: 31.41876864 | I80: 31.39149732 | J80: 31.32042155 | K80: 34.80572006 | L80: 33.90779268 | M80: 35 | N80: 33.3
A81: 25 | B81: Malta | C81: 31.39891843 | D81: 38.55523881 | E81: 21.55451136 | F81: 40.2358293 | G81: 23.28700771 | H81: 25.01756916 | I81: 51.06401874 | J81: 41.27769679 | K81: 37.8388946 | L81: 32.41760357 | M81: 23.3 | N81: 17.4
A82: 26 | B82: Airija | C82: 46.59926479 | D82: 40.69237418 | E82: 35.51749978 | F82: 40.78286616 | G82: 41.39847498 | H82: 34.63294529 | I82: 38.50803781 | J82: 32.39707189 | K82: 28.77613245 | L82: 28.54680841 | M82: 30 | N82: 27.4
A83: 27 | B83: Švedija | C83: 28.47757798 | D83: 33.88005187 | E83: 30.05423999 | F83: 27.20834149 | G83: 27.99417389 | H83: 26.57131088 | I83: 27.40833764 | J83: 25.31226886 | K83: 32.0150447 | L83: 21.60273739 | M83: 19.8 | N83: 18.5
A85: Nr. | B85: Šalis | C85: Žuvusių sk./ 1 mln. gyventojų
C86: 2010 m. | D86: 2011 m. | E86: 2012 m. | F86: 2013 m. | G86: 2014 m. | H86: 2015 m. | I86: 2016 m. | J86: 2017 m. | K86: 2018 m. | L86: 2019 m. | M86: 2020 m. | N86: 2021 m.
A87: 1 | B87: Jungtinė Karalystė* | C87: 30.47502794 | D87: 31.09998818 | E87: 28.38005199 | F87: 27.69723455 | G87: 28.8106717 | H87: 27.80725105 | I87: 28.44795483 | J87: 28.18777713 | K87: 27.74861583 | L87: 27.12795717 | M87: 24.4 | N87: 23.9
A88: 2 | B88: Šveicarija | C88: 42.12794411 | D88: 40.66004467 | E88: 42.61651846 | F88: 33.46162362 | G88: 29.85393318 | H88: 30.71258291 | I88: 25.93932168 | J88: 27.31737444 | K88: 27.46303982 | L88: 21.89100084 | M88: 26.4 | N88: 23.1
A89: 3 | B89: Norvegija | C89: 42.81421984 | D89: 34.1442248 | E89: 29.68388666 | F89: 37.02035625 | G89: 28.77855586 | H89: 23.80725184 | I89: 25.89190418 | J89: 20.15854122 | K89: 20.39421643 | L89: 20.26946375 | M89: 17.3 | N89: 14.8
A90: 4 | B90: Islandija | C90: 25.1865378 | D90: 37.68228807 | E90: 28.16240319 | F90: 46.60454798 | G90: 12.28233401 | H90: 48.61744151 | I90: 54.13061718 | J90: 47.28845068 | K90: 51.65733965 | L90: 16.8071464 | M90: 22 | N90: 22
A91: 5 | B91: Lichtenšteinas | C91: 0 | D91: 55.32656505 | E91: 27.41603838 | F91: 54.29176394 | G91: 80.79937515 | H91: 53.52459455 | I91: 0 | J91: 52.89605924 | K91: 0 | L91: 0 | M91: 0 | N91: 0
A135: 10.2. Žuvusiųjų skaičius, tenkantis 1 mln. gyventojų Lietuvoje ir kitose Europos Sąjungos šalyse 2017 m.
A229: 10.3. Žuvusiųjų eismo įvykiuose pasiskirstymas pagal kelius valdančias institucijas 2011–2017 m.
C230: LRA | D230: Municipalities
C231: LAKD | D231: Savivaldybės | E231: Iš viso
A232: 2011 m. | B232: 2011 | C232: 212 | D232: 85 | E232: =SUM(C232:D232) -> 297
A233: 2012 m. | B233: 2012 | C233: 206 | D233: 95 | E233: =SUM(C233:D233) -> 301
A234: 2013 m. | B234: 2013 | C234: 173 | D234: 85 | E234: =SUM(C234:D234) -> 258
A235: 2014 m. | B235: 2014 | C235: 171 | D235: 96 | E235: =C235+D235 -> 267
A236: 2015 m. | B236: 2015 | C236: 174 | D236: 68 | E236: =C236+D236 -> 242
A237: 2016 m. | B237: 2016 | C237: 121 | D237: 71 | E237: 192
A238: 2017 m. | B238: 2017 | C238: 128 | D238: 64 | E238: 192
A239: 2018 m. | B239: 2018
A240: 2019 m. | B240: 2019
A241: 2020 m. | B241: 2020

Sheet Žuvusių sk. pasaulyje 2010–2020
A6: 7.3. Žuvusiųjų skaičius, tenkantis 1 mln. gyventojų Europos Sąjungos ir kitose šalyse, 2010-2020 m.
A7: Šalis | B7: Žuvusių sk./ 1 mln. gyventojų
B8: 2010 m. | C8: 2011 m. | D8: 2012 m. | E8: 2013 m. | F8: 2014 m. | G8: 2015 m. | H8: 2016 m. | I8: 2017 m. | J8: 2018 m. | K8: 2019 m. | L8: 2020 m.
A9: Lichtenšteinas | B9: 0 | C9: 55.32656505 | D9: 27.41603838 | E9: 54.29176394 | F9: 80.79937515 | G9: 53.52459455 | H9: 0 | I9: 52.89605924 | J9: 0 | K9: 0 | L9: 1
A10: Israelis | B10: 49.19400542 | C10: 49.18623815 | D10: 36.66106216 | E10: 38.34079883 | F10: 38.82857004 | G10: 42.06347331 | H10: 43.68988295 | I10: 41.7752172 | J10: 35.57436844 | K10: 39.2 | L10: 33.1
A11: Islandija | B11: 25.1865378 | C11: 37.68228807 | D11: 28.16240319 | E11: 46.60454798 | F11: 12.28233401 | G11: 48.61744151 | H11: 54.13061718 | I11: 47.28845068 | J11: 51.65733965 | K11: 16.8071464 | L11: 21.8
A12: Norvegija | B12: 42.81421984 | C12: 34.1442248 | D12: 29.68388666 | E12: 37.02035625 | F12: 28.77855586 | G12: 23.80725184 | H12: 25.89190418 | I12: 20.15854122 | J12: 20.39421643 | K12: 20.26946375 | L12: 17.3
A13: Šveicarija | B13: 42.12794411 | C13: 40.66004467 | D13: 42.61651846 | E13: 33.46162362 | F13: 29.85393318 | G13: 30.71258291 | H13: 25.93932168 | I13: 27.31737444 | J13: 27.46303982 | K13: 21.89100084 | L13: 26.3
A14: Jungtinė Karalystė | B14: 30.3539916 | C14: 30.97093323 | D14: 28.28662038 | E14: 27.6106691 | F14: 28.70113346 | G14: 27.70694299 | H14: 27.94333998 | I14: 28.10408183 | J14: 27.68096298 | K14: 27 | L14: 22.7
A15: Japonija | B15: 45.510628 | C15: 43.31019805 | D15: 41.25789123 | E15: 40.57440474 | F15: 38.06960805 | G15: 38.43581573 | H15: 37.01165182 | I15: 34.97071962 | J15: 32.9476523 | K15: 31.06993112 | L15: 27.1
A16: Australija | B16: 61.2752051 | C16: 57.16197977 | D16: 57.14043152 | E16: 51.23631055 | F16: 49.02945115 | G16: 50.59624845 | H16: 53.49117336 | I16: 49.79298313 | J16: 45.4714881 | K16: 46.67744322 | L16: 42.5
A17: ES-27 | B17: 67.48687458 | C17: 65.5771121 | D17: 60.27561975 | E17: 55.14216872 | F17: 54.77308216 | G17: 55.16896427 | H17: 53.78428149 | I17: 52.73639168 | J17: 52.56085072 | K17: 51.13429106 | L17: 42
A18: Kanada* | B18: 65.8133206 | C18: 58.90612233 | D18: 59.70857382 | E18: 55.49822256 | F18: 51.80017714 | G18: 52.72596888 | H18: 52.37399256 | I18: 50.57019117 | J18: 51.85460056 | K18: 46.9 | L18: 46.9
A19: Lietuva | B19: 92.14377264 | C19: 92.51954475 | D19: 101.0301043 | E19: 86.94296643 | F19: 91 | G19: 84 | H19: 67 | I19: 67.99812453 | J19: 61.91431917 | K19: 66.56907974 | L19: 63
A20: Korėja | B20: 111.09068 | C20: 104.7126961 | D20: 107.4106731 | E20: 100.9738604 | F20: 93.83868995 | G20: 90.58129571 | H20: 83.79898685 | I20: 81.48061313 | J20: 73.26577574 | K20: 64.8 | L20: 59.5
A21: Naujoji Zelandija | B21: 85.85518634 | C21: 64.46077653 | D21: 69.47702747 | E21: 56.5862605 | F21: 64.96832517 | G21: 69.18006396 | H21: 69.67824419 | I21: 78.85349521 | J21: 77.37133945 | K21: 70.6940874 | L21: 62.5
A22: Serbija | B22: 90.32833941 | C22: 100.8060485 | D22: 95.33510636 | E22: 90.51027605 | F22: 74.99903103 | G22: 84.19551745 | H22: 85.77841866 | I22: 82.24114068 | J22: 78.26956839 | K22: 76.68266759 | L22: 71.2
A23: Čilė | B23: 121.093173 | C23: 118.5034018 | D23: 113.7184437 | E23: 119.782546 | F23: 118.7492894 | G23: 118.624443 | H23: 119.7237186 | I23: 104.7680797 | J23: 105.3782356 | K23: 105.3584462 | L23: 93.8
A24: Argentina* | B24: 125.7189506 | C24: 123.2258895 | D24: 122.9107117 | E24: 123.4274346 | F24: 123.7183468 | G24: - | H24: 127.3217056 | I24: 127.3929862 | J24: 123.453455 | K24: 108.8593727 | L24: 109
A25: Jungtinės Amerikos valstijos | B25: 106.6818255 | C25: 104.247419 | D25: 107.6439264 | E25: 104.0938425 | F25: 102.8711791 | G25: 110.6678371 | H25: 117.0677108 | I25: 115.3066691 | J25: 112.7530129 | K25: 109.9684757 | L25: 117.4
A26: Rusija | J26: 126 | K26: 117.6 | L26: 112.1
A27: Kolumbija** | B27: 113.7578982 | C27: 119.5407232 | D27: 126.3659512 | E27: 131.7669038 | F27: 133.3982714 | G27: 141.7949624 | H27: 146.8581866 | I27: 136.2909456 | J27: - | K27: 136 | L27: 136
A28: Šaltinis: OECD duomenų bazė.
